Workbook

Sheet CoverSheet
A3: Electricity Distribution Business
A4: Price-Quality Regulation 1 April 2020 Reset
A5: MAR Waterfall model
A6: Draft determination
A17: Published 29 May 2019 v1

Sheet Table of Contents
A1: Table of Contents
B4: Sheet Name | C4: Link
B5: Waterfall | C5: Waterfall calculations and chart for chosen EDB
C6: EDB names and values of MAR 2019/20
C7: Waterfall chart for chosen EDB
B8: WfallCht | C8: Display of waterfall charts for 15 non-exempt EDBs
B9: Inputs | C9: Inputs
B10: EDB data | C10: Inputs for the selected distributor
B11: TIMING | C11: Intra-year timing
C12: Inputs
C13: Calculations
C14: Outputs
C15: Check for timing of revenue receipt
B16: RAB | C16: Regulatory asset base
C17: Inputs
C18: Calculations
C19: Outputs
B20: TAX | C20: Tax calculations
C21: Inputs
C22: Calculations
C23: Outputs
B24: BBAR | C24: Building blocks allowable revenue
C25: Inputs
C26: Calculations
C27: Outputs
B28: REV | C28: Revenue growth index
C29: Inputs
C30: Calculations
C31: Outputs
B32: MAR | C32: Maximum allowable revenue
C33: Inputs
C34: Calculations
C35: Outputs
B36: Reconciliation | C36: Reconciliation with financial models outputs
C37: Outputs

Sheet Description
A1: Description
B2: This model has been prepared and published for consultation purposes only.
A3: Purpose
B4: This waterfall model produces a waterfall chart for each non-exempt EDB to show a breakdown of the drivers of the change in the building blocks allowable revenue (BBAR) from the 2015 reset to the BBAR for the 2020 rest. A waterfall chart for each of the 17 EDBs is on the 'WaterfallCht' sheet.
A6: Version
C7: Excludes Orion, Powerco, Wellington as these EDBs are on CPPs and charts for them cannot be prepared by this model. Added chart for total of non-exempts except those on CPPs.
A9: Overview of model structure
B10: 1 | C10: This model incorporates a copy of much of the 2015 EDB DPP reset financial model. The sheets from 'Inputs' to 'MAR' are the copied sheets.
B11: 2 | C11: The modifications extend the capability of the 2015 model to take into account accelerated depreciation. With this modification, the copied sheets can perform the calculations for the 2020 reset.
B12: 3 | C12: The model inputs include both the set of inputs used for the 2015 reset and the set used for the 2020 reset. When all the 2015 inputs are used, then the results reconcile with the 2015 financial model. When the 2020 reset inputs are used, the results reconcile with the 2020 financial model.
B13: 4 | C13: For each EDB, the model recalculates the MAR values for 15 different sets of input data, each of these 15 sets being a combination of input data from the 2015 reset for some inputs and input data from the 2020 reset for the rest of the data. Arranging the sequence of these data combinations allows for the impact of various impacts to be determined for the waterfall charts.
B14: 5 | C14: We discuss the 15 sets of input data combinations below in the context of the waterfall chart for one EDB.
A16: Waterfall chart
C17: The chart below is an example of the waterfall charts that this model prepares for each non-exempt EDB. A full set of 15 charts is available on the sheet 'WfallCht'.
B43: 6 | C43: The chart starts at its left hand with the brown column, indicating the value of the 2015/16 MAR (ie the MAR for the first year of the 2015 EDB reset) as 100%. All subsequent MAR values shown in the chart are relative to this value.
B44: 7 | C44: The chart ends at its right hand end with another blue column, this one indicating the 2020/21 MAR. Between these 2 columns, there are a series of rises and fall, indicating the impact of the various input categories listed along the x axis.
B45: 8 | C45: Consider, for example, the green rise column above the word 'Opex' on the x axis. The lower edge of this rise indicates the MAR if all the inputs for the parameters listed to the left of this Opex rise are at their 2020 reset values. These parameters are: CPI for revals; RAB, Depn; Tax; Capex and Disposals. The Opex values themselves will be set to their 2015 reset values for this MAR value, as will all the other parameters to the right of the Opex rise. The MAR represented by the upper edge of the Opex rise will reflect the same input values as the lower edge, except that the 2020 reset Opex values will be used. The height of the green rise therefore represents the impact of the change in opex forecasts from the 2015 reset to the 2020 reset.
C46: Input categories
B47: The 14 input data categories are listed below, with commentary for some categories. The numbers in the "Mode" column below indicate the mode number used on Row 4 and Column D of the Inputs sheet to manage whether 2015 reset data or 2020 reset data is used for the category.
B48: Mode
B49: 1 | C49: CPI for revals This is the forecast change in CPI from one quarter to the quarter 1 year later, and is used for calculating CPI indexed revaluations. There is just one row of inputs in the Inputs sheet for this category, being the one with the row heading "Forecast change in CPI used for revaluations".
B50: 2 | C50: RAB, Depn Six rows of inputs are in this category, the main ones being Opening RAB, Total depreciation and Closing RAB. These are all for the base year. For almost all EDBs, the rise in MAR for this category is one of most significant drivers of rises in the MAR. The impact of these inputs is entirely driven by information disclosure data and input methodologies, so there is no impact from Commission decisions taken as part of the 2020 reset. The opening RAB divided by total depreciation give the average remaining life for existing assets, so are a key determinant of the depreciation building block. The Closing RAB for the base year is the key determinant of the starting RAB at the start of the regulatory period, and so is in turn a key determinant of the return on the RAB and depreciation throughout the regulatory period.
B51: 3 | C51: Tax Five rows of inputs are in this category, being Opening RAB excluding revaluations, Adjusted depreciation, Tax depreciation, Opening regulatory tax asset value and Amortisation of initial differences in asset values. The Tax depreciation divided by the Opening regulatory tax asset value determines the effective average diminishing value depreciation rate for the base year, and this rate is used for determining the tax depreciation throughout the regulatory period. The other three input parameters are used to account for amortisations of differences between regulatory tax and cash tax. Rises and falls for this 'Tax' category do not reflect changes in the tax allowance building block. That building block will be strongly driven by the BBAR, which is an output of financial modelling rather than an input.
B52: 4 | C52: Capex Seven rows of inputs are in this category, being the panel of data of capex for the 5 years of the regulatory period plus two prior years.
B53: 5 | C53: Disposed assets Seven rows of inputs are in this category, being the panel of data of Disposed assets for the 5 years of the regulatory period plus two prior years.
B54: 6 | C54: Operating expenditure Seven rows of inputs are in this category, being the panel of data of Operating expenditure for the 5 years of the regulatory period plus two prior years.
B55: 7 | C55: Other regulated income Seven rows of inputs are in this category, being the panel of data of Other regulated income for the 5 years of the regulatory period plus two prior years. Other regulated income was accounted for in the 2015 reset by having a forecast values and taking account of this income when setting the price path. For the 2020 reset, the revenue cap with wash-up process will take account of actual values of other regulated income, and no forecast value will be used when setting the price path. We account for this change in approach to other regulated income in this waterfall model by setting the other regulated income forecast value for the 2020 reset to nil.
B56: 8 | C56: TCSD (Term Credit Spread Differential) This is a one row category.
B57: 9 | C57: Add. Allow. (Additional allowance) This is a one row category. The impact of this category is nil for most EDBs and is generally immaterial.
B58: 10 | C58: WACC (Vanilla WACC (67th percentile)) This is a single value input. It is a strong determinant of the return on capital building block and is the most significant source of 'fall' categories for almost all EDBs. The value for the draft decision is from a cost of capital determination that will be made in April 2019. This value will be updated for the final decision from a cost of capital determination that will be made in September 2019.
B59: 11 | C59: Accel'ed Depn (Adjustment factor (for accelerated depreciation)) This is a one row category. It relates to a mechanism from the 2016 input methodology review for an EDB to apply for an acceleration of the depreciation of its 'existing assets'. The provision for accelerated deprecation did not exist for the 2015 reset, so an additional row has been added to the Inputs sheet to allow for this. The values entered for the 2015 reset have been set to nil to reflect that the provision did not apply.
B60: 12 | C60: CPI, price path (Forecast changes in the CPI element of the price path) This is the forecast change in CPI from one year to the next and is used for calculating the CPI indexation of the price path. There is just one row of inputs in the Inputs sheet for this category, being the one with the row heading "Forecast change in CPI used for revaluations". This CPI change parameter is calculated differently from the 'CPI for revals', in that this calculation is based on the sum of 4 consecutive CPI values divided by the sum of the 4 consecutive CPI values from one year earlier.
B61: 13 | C61: CPRG (Constant price revenue growth) Seven rows of inputs are in this category, being the panel of data of Other regulated income for the 5 years of the regulatory period plus two prior years. CPRG was taken into account in the 2015 reset in calculating the profile of the price path. This was because the form of control used at the time of that reset was a weighted average price path.by having a forecast values and taking account of this income when setting the price path. The form of control was changed to a revenue cap as part of the 2016 input methodologies review, and this means that CPRG will no longer be required for setting the price path. We account for this change in the form of control in this waterfall model by setting the CPRG forecast value for the 2020 reset to nil.
B62: 14 | C62: X (for CPI-X) Two rows are in this category, being Industry-wide X factor and Alternative X factor. A non-zero X can have a significant impact on MAR values, but has no impact on BBAR values.
A64: Miscellaneous notes
B66: 1 | C66: For Orion, the input values of constant price revenue growth (CPRG) in the 2015 DPP reset model were #DIV/0!. For the inputs to this waterfall model, the 2015 CPRG values have been set to zero. This allows the waterfall chart for Orion to be prepared, as #DIV/0! values would otherwise prevent this.
A69: Inputs sheet & overall operation of this workbook
B71: 1 | C71: The inputs sheet is an adaptation of the Inputs sheet of the 2015 DPP reset financial model on which this workbook is based. It includes all the inputs to this workbook, together with a significant amount of the processing required to produce the waterfall charts.
B72: 2 | C72: The sheet is divided into a number of panels, the panels being separated by rows and columns that have a light yellow fill colour. The panels are referred to as Panels A, B, C and D, these being the panels with a top left corner at Cell A1, A9, U9 and AM9 respectively. The panels are labelled with cells with a green fill colour.
B73: 3 | C73: Panel A is very simple and sets just: - which EDB is to be focused on in doing the various calculations and producing the EDB's waterfall chart (Cell C6). - the "mode", being a number determining the extent to which the 2015 versus 2020 reset inputs are to be used (Cell C5). If the chosen mode at Cell C5 is less than the mode number in Column A for each line of inputs, then the 2015 model inputs are used for that row of inputs, otherwise the 2020 inputs are used. A data table is used in the "Waterfall" sheet to step through 14 different values of the mode. This generates the data necessary to draw the waterfall chart for the chosen EDB. The macro for preparing the set of 15 waterfall charts steps through the choice of the 14 EDBs plus the chart for the totals of the 14 EDBs. There is a macro button on the "WfallCht" sheet to prepare this sheet.
B74: 4 | C74: Panel B consists of most of the used area of the Inputs sheet in the 2015 model. The links that transfer data from the Inputs sheet to the 'EDB data' sheet and other sheets from the 2015 model are largely still the same links in this workbook. The key difference in the Inputs sheet in this workbook is that the cells in this panel are no longer values but are instead formulas that reference the data in Panels C and D.
B75: 5 | C75: Panel C consists of the inputs to the 2020 financial model, while Panel D consists of the inputs to the 2015 financial model. The data in Panels C and D are largely filled by links to the 2015 and 2020 financial model Inputs sheets respectively.
A77: Reconciliation sheet
C79: The "Reconciliation" sheet checks that this model produces outputs consistent with the 2015 and 2020 financial models. When the mode is set to 0, this workbook should produce the same outputs as the 2015 financial model. When the mode is set to 14, this workbook should produce the same outputs as the 2020 financial model. There are notes on the Reconciliation sheet as to how it operates. See Cells F2, W10 and C39.
A81: The "Totals for selected EDBs" chart
C82: A waterfall chart of the totals for all non-exempt EDBs except those currently on a CPP is prepared by this workbook, and is the last chart on the WfallCht sheet. It is prepared on the Waterfall sheet when 'Totals for selected EDBs' is selected at Waterfall!D3.
C83: Data for this chart is prepared in the named range "IndustryTotals" on the 'Waterfall' sheet. The values in this table are inserted through the VBA routine "Regenerate", which is the routine that also generates the charts on the WfallCht sheet. The VBA code that inserts the data starts with the VBA comment "Build table on the Waterfall sheet to chart the total for all non-exempts, except Orion, Powerco, Wellington."
C84: Note the formula at Waterfall!C21 and below. The formula selects the data from the data table to its immediate left except when "Totals for selected EDBs" is selected at D3. When the totals chart is selected, the data for the Column C formulas is taken from the totals column at the right of the "IndustryTotals" range.
A86: Model suite
C87: Data flow map of the draft EDB DPP3 (1 April 2020–31 March 2025) model suite

Sheet Waterfall
A1: Waterfall calculations and chart for chosen EDB
A3: EDB | D3: Total for selected EDBs
A4: Distributor number | D4: =MATCH(WfallEDB,EDBnames,0) -> 15
A5: Chosen mode | D5: 14
A7: EDB names and values of MAR 2019/20
B9: 1 | C9: 2 | D9: 3 | E9: 4 | F9: 5 | G9: 6 | H9: 7 | I9: 8 | J9: 9 | K9: 10 | L9: 11 | M9: 12 | N9: 13 | O9: 14 | P9: 15
B10: Alpine Energy | C10: Aurora Energy | D10: Centralines | E10: EA Networks | F10: Eastland Network | G10: Electricity Invercargill | H10: Horizon Energy | I10: Nelson Electricity | J10: Network Tasman | K10: OtagoNet | L10: The Lines Company | M10: Top Energy | N10: Unison Networks | O10: Vector Lines | P10: Total for selected EDBs
A11: Estimated 2019/20 allowable revenue | B11: =[1]Outputs!B7 -> 49031.94082 | C11: =[1]Outputs!C7 -> 66161.11083 | D11: =[1]Outputs!D7 -> 14205.96553 | E11: =[1]Outputs!E7 -> 37590.68241 | F11: =[1]Outputs!F7 -> 27649.21065 | G11: =[1]Outputs!G7 -> 13647.75688 | H11: =[1]Outputs!H7 -> 23365.19633 | I11: =[1]Outputs!I7 -> 6827.807441 | J11: =[1]Outputs!J7 -> 27299.99241 | K11: =[1]Outputs!L7 -> 27261.36736 | L11: =[1]Outputs!M7 -> 41508.19907 | M11: =[1]Outputs!N7 -> 44114.13772 | N11: =[1]Outputs!O7 -> 113887.2732 | O11: =[1]Outputs!P7 -> 417925.3742 | P11: =SUM(B11:O11) -> 910476.0149
A13: Waterfall chart for chosen EDB
A16: PV(BBAR) for chosen EDB and chosen mode | G16: =BBAR!C57 -> 193138.7089
A17: Starting price for applicable X factor | G17: =MAR!D57 -> 42189.2595
G19: Direction | H19: Base | I19: Fall | J19: Rise
B20: =G17 -> 42189.2595 | C20: =B20 -> 42189.2595
A21: 0 | B21: 34231.36848 | C21: =IF(WfallEDB=$P$10,S49,B21) -> 812302.6813 | D21: MAR 2015/16 | E21: 1 | F21: =C21/$C$21 -> 1 | H21: 0 | I21: 0 | J21: 1
A22: 1 | B22: 34261.35698 | C22: 812957.0717 | D22: CPI for revals | E22: =A22 -> 1 | F22: =C22/$C$21 -> 1.000805599 | G22: =IF(F22>F21,">","<") -> > | H22: =H21+J21-I22-0.00002%*0 -> 0.99999 | I22: =IF(F22<F21,F21-F22+0.00001,0.00001) -> 1e-05 | J22: =IF(F22>=F21,F22-F21+0.00001,0.00001) -> 0.0008155991897
A23: 2 | B23: 40517.78234 | C23: 938256.7532 | D23: RAB, Depn | E23: 2 | F23: 1.155058053 | G23: > | H23: =H22+J22-I23-0.00002%*0 -> 1.000795599 | I23: =IF(F23<F22,F22-F23+0.00001,0.00001) -> 1e-05 | J23: =IF(F23>=F22,F23-F22+0.00001,0.00001) -> 0.1542624533
A24: 3 | B24: 39340.3215 | C24: 920072.7027 | D24: Tax | E24: 3 | F24: 1.132672246 | G24: < | H24: 1.132662246 | I24: 0.02239580623 | J24: 1e-05
A25: 4 | B25: 39394.85089 | C25: 930426.8859 | D25: Capex | E25: 4 | F25: 1.145418952 | G25: > | H25: 1.132662246 | I25: 1e-05 | J25: 0.01275670557
A26: 5 | B26: 39394.94649 | C26: 929354.8547 | D26: Disposals | E26: 5 | F26: 1.144099208 | G26: < | H26: 1.144089208 | I26: 0.001329743418 | J26: 1e-05
A27: 6 | B27: 43040.81015 | C27: 999055.3403 | D27: Opex | E27: 6 | F27: 1.22990526 | G27: > | H27: 1.144089208 | I27: 1e-05 | J27: 0.08581605129
A28: 7 | B28: 43363.71959 | C28: 1000897.911 | D28: OR Income | E28: 7 | F28: 1.232173591 | G28: > | H28: 1.22989526 | I28: 1e-05 | J28: 0.002278330779
A29: 8 | B29: 43363.71959 | C29: 1001240.613 | D29: TCSD | E29: 8 | F29: 1.232595479 | G29: > | H29: 1.232163591 | I29: 1e-05 | J29: 0.00043188862
A30: 9 | B30: 43363.71959 | C30: 1001098.058 | D30: Add. Allow. | E30: 9 | F30: 1.232419984 | G30: < | H30: 1.232409984 | I30: 0.0001854949087 | J30: 1e-05
A31: 10 | B31: 37227.70214 | C31: 859394.6934 | D31: WACC | E31: 10 | F31: 1.057973479 | G31: < | H31: 1.057963479 | I31: 0.1744565057 | J31: 1e-05
A32: 11 | B32: 37227.70214 | C32: 859394.6934 | D32: Accel'ed Depn | E32: 11 | F32: 1.057973479 | G32: < | H32: 1.057963479 | I32: 1e-05 | J32: 1e-05
A33: 12 | B33: 37016.04747 | C33: 854633.9088 | D33: CPI, price path | E33: 12 | F33: 1.052112628 | G33: < | H33: 1.052102628 | I33: 0.005870850506 | J33: 1e-05
A34: 13 | B34: 36829.5804 | C34: 864916.6482 | D34: CPRG | E34: 13 | F34: 1.064771382 | G34: > | H34: 1.052102628 | I34: 1e-05 | J34: 0.01266875345
A35: 14 | B35: 42189.2595 | C35: 868024.9633 | D35: X (CPI-X) | E35: 14 | F35: 1.068597929 | G35: =IF(F35>F34,">","<") -> > | H35: 1.064761382 | I35: 1e-05 | J35: 0.003836547858
D36: MAR 2020/21 | H36: 1.068597929 | K36: =K42/C21 -> 1.120858069
G37: Check value, should = 0 | H37: =F35-H36 -> 0
E40: Text for textbox in chart and data for orange dot
J41: 2020/21 revenue | K41: =C35 -> 868024.9633
J42: Est 2019/20 allowable revenue | K42: =INDEX(B11:P11,1,SuppNum) -> 910476.0149
J43: MAR increase, 2020/21 MAR from est 2019/20 allowable rev | K43: =(K41-K42)/K42 -> -0.04662511792
K45: ="Revenue increase, est 2019/20 allow. revenue to 2020/21 MAR: " & TEXT(K43,"0.00%") -> Revenue increase, est 2019/20 allow. revenue to 2020/21 MAR: -4.66%
D48: Named range, Anchor2 | E48: =B10 -> Alpine Energy | F48: =C10 -> Aurora Energy | G48: Centralines | H48: EA Networks | I48: =F10 -> Eastland Network | J48: Electricity Invercargill | K48: Horizon Energy | L48: Nelson Electricity | M48: Network Tasman | N48: OtagoNet | O48: The Lines Company | P48: Top Energy | Q48: Unison Networks | R48: Vector Lines | S48: Total for selected EDBs
D49: MAR 2015/16 | E49: 30458.39221 | F49: 56511.66603 | G49: 9983.311486 | H49: 33046.58332 | I49: 22731.95846 | J49: 13565.26038 | K49: 22026.85063 | L49: 6824.407415 | M49: 28091.76336 | N49: 24779.53509 | O49: 34705.26322 | P49: 34231.36848 | Q49: 100101.5151 | R49: 395244.8061 | S49: =SUM(E49:R49) -> 812302.6813
D50: CPI for revals | E50: 30494.40317 | F50: 56549.11552 | G50: 9992.182228 | H50: 33076.02768 | I50: 22750.71392 | J50: 13571.46035 | K50: 22045.59807 | L50: 6828.26181 | M50: 28112.68938 | N50: 24807.31895 | O50: 34743.79306 | P50: 34261.35698 | Q50: 100193.449 | R50: 395530.7016 | S50: =SUM(E50:R50) -> 812957.0717
D51: RAB, Depn | E51: 38417.92087 | F51: 74836.20918 | G51: 10163.629 | H51: 40319.28362 | I51: 26364.11212 | J51: 15946.07758 | K51: 24639.58945 | L51: 6676.079709 | M51: 30327.65233 | N51: 29392.05906 | O51: 37052.92959 | P51: 40517.78234 | Q51: 112836.647 | R51: 450766.7813 | S51: 938256.7532
D52: Tax | E52: 36715.28171 | F52: 72338.38301 | G52: 10131.80432 | H52: 39125.5977 | I52: 26138.61286 | J52: 15554.97837 | K52: 24542.84703 | L52: 6494.086102 | M52: 30248.46409 | N52: 27657.09616 | O52: 36440.05565 | P52: 39340.3215 | Q52: 110540.3581 | R52: 444804.8161 | S52: 920072.7027
D53: VCA | E53: 37286.10798 | F53: 76443.55256 | G53: 10097.58707 | H53: 39333.51148 | I53: 24949.28105 | J53: 14868.92945 | K53: 24400.31141 | L53: 6795.574504 | M53: 29380.27542 | N53: 28883.36626 | O53: 36596.89364 | P53: 39394.85089 | Q53: 110903.2796 | R53: 451093.3645 | S53: 930426.8859
D54: Disposals | E54: 37342.26855 | F54: 76467.80524 | G54: 10090.77791 | H54: 39383.24157 | I54: 24995.94974 | J54: 14901.71815 | K54: 24410.58315 | L54: 6773.706195 | M54: 29322.40299 | N54: 28812.65684 | O54: 36437.60977 | P54: 39394.94649 | Q54: 110504.9417 | R54: 450516.2464 | S54: 929354.8547
D55: Opex | E55: 40885.58919 | F55: 95434.59469 | G55: 9404.461562 | H55: 44535.65197 | I55: 27654.27043 | J55: 14409.82654 | K55: 28020.95268 | L55: 6414.29316 | M55: 32305.88071 | N55: 29331.02724 | O55: 39260.02304 | P55: 43040.81015 | Q55: 117429.1879 | R55: 470928.771 | S55: 999055.3403
D56: OR Income | E56: 40654.3079 | F56: 97434.37964 | G56: 9514.881771 | H56: 44463.15825 | I56: 27576.39245 | J56: 14311.13185 | K56: 28127.34655 | L56: 6503.673122 | M56: 32738.60701 | N56: 29899.08296 | O56: 39269.5709 | P56: 43363.71959 | Q56: 116907.5507 | R56: 470134.1088 | S56: 1000897.911
D57: TCSD | E57: 40654.3079 | F57: 97434.37964 | G57: 9514.881771 | H57: 44463.15825 | I57: 27576.39245 | J57: 14311.13185 | K57: 28127.34655 | L57: 6503.673122 | M57: 32738.60701 | N57: 29899.08296 | O57: 39311.88547 | P57: 43363.71959 | Q57: 116908.2865 | R57: 470433.7596 | S57: 1001240.613
D58: Add. Allow. | E58: 40549.48983 | F58: 97434.37964 | G58: 9514.881771 | H58: 44463.15825 | I58: 27576.39245 | J58: 14311.13185 | K58: 28127.34655 | L58: 6503.673122 | M58: 32738.60701 | N58: 29884.88688 | O58: 39288.34464 | P58: 43363.71959 | Q58: 116908.2865 | R58: 470433.7596 | S58: 1001098.058
D59: WACC | E59: 36655.13349 | F59: 85142.79175 | G59: 8360.725324 | H59: 37666.68566 | I59: 23862.96625 | J59: 12330.25799 | K59: 25136.92644 | L59: 5555.805286 | M59: 28676.54276 | N59: 25058.18458 | O59: 34462.07851 | P59: 37227.70214 | Q59: 102221.3539 | R59: 397037.5394 | S59: 859394.6934
D60: Accel'ed Depn | E60: 36655.13349 | F60: 85142.79175 | G60: 8360.725324 | H60: 37666.68566 | I60: 23862.96625 | J60: 12330.25799 | K60: 25136.92644 | L60: 5555.805286 | M60: 28676.54276 | N60: 25058.18458 | O60: 34462.07851 | P60: 37227.70214 | Q60: 102221.3539 | R60: 397037.5394 | S60: 859394.6934
D61: CPI, price path | E61: 36442.59553 | F61: 84673.4071 | G61: 8313.282918 | H61: 37459.30517 | I61: 23729.85932 | J61: 12262.44661 | K61: 24998.76103 | L61: 5525.173622 | M61: 28518.53329 | N61: 24920.21185 | O61: 34273.19928 | P61: 37016.04747 | Q61: 101658.6343 | R61: 394842.4514 | S61: 854633.9088
D62: CPRG | E62: 36644.88672 | F62: 85609.88118 | G62: 8204.559056 | H62: 37696.14503 | I62: 23637.79515 | J62: 12291.59231 | K62: 25008.55222 | L62: 5588.24628 | M62: 28780.563 | N62: 25084.60058 | O62: 33943.50402 | P62: 36829.5804 | Q62: 102250.9767 | R62: 403345.7655 | S62: 864916.6482
D63: X (CPI-X) | E63: 45361.38032 | F63: 72030.72752 | G63: 9398.539633 | H63: 37696.14503 | I63: 25055.11062 | J63: 12291.59231 | K63: 25008.55222 | L63: 5588.24628 | M63: 28780.563 | N63: 25084.60058 | O63: 33943.50402 | P63: 42189.2595 | Q63: 102250.9767 | R63: 403345.7655 | S63: 868024.9633

Sheet WfallCht
A1: Display of waterfall charts for 15 non-exempt EDBs
AX3: Waterfall Charts
AX4: An aid to interpreting these charts is on the Description sheet, under the headings 'Waterfall Chart' and 'Input categories'.
AX5: The chart "Total for selected EDBs" is for all non-exempt EDBs except those on a CPP, ie, except Orion, Powerco and Wellington.

Sheet Inputs
A1: Inputs
A2: A | B2: Choice of which EDB to consider and the chosen 'mode'.
B3: All input data is entered into this worksheet
B4: Waterfall chart parameters
B5: Chosen mode | C5: =Waterfall!D5 -> 14
A10: B | B10: Values for chosen mode | U10: C | V10: Values for 2020 reset model | AM10: D | AN10: Values for 2015 reset model
A11: Mode | B11: Inputs that are the same for all distributors
A12: 1 | B12: 2020 reset timeline | C12: Value | D12: =IF($C$5<$A12,AN12,V12) -> 2018/19 | E12: 2019/20 | F12: 2020/21 | G12: 2021/22 | H12: 2022/23 | I12: 2023/24 | J12: 2024/25 | V12: 2018/19 | W12: =LEFT(V12,4)+1 & "/" & RIGHT(V12,2)+1 -> 2019/20 | X12: =LEFT(W12,4)+1 & "/" & RIGHT(W12,2)+1 -> 2020/21 | Y12: 2021/22 | Z12: 2022/23 | AA12: 2023/24 | AB12: 2024/25 | AN12: 2013/14 | AO12: =LEFT(AN12,4)+1 & "/" & RIGHT(AN12,2)+1 -> 2014/15 | AP12: =LEFT(AO12,4)+1 & "/" & RIGHT(AO12,2)+1 -> 2015/16 | AQ12: 2016/17 | AR12: 2017/18 | AS12: 2018/19 | AT12: 2019/20
A13: 0 | B13: Year in modelling period | D13: 1 | E13: 2 | F13: 3 | G13: 4 | H13: 5 | I13: 6 | J13: 7 | V13: 1 | W13: 2 | X13: 3 | Y13: 4 | Z13: 5 | AA13: 6 | AB13: 7 | AN13: 1 | AO13: 2 | AP13: 3 | AQ13: 4 | AR13: 5 | AS13: 6 | AT13: 7
A14: 0 | B14: Year in regulatory period | F14: 1 | G14: 2 | H14: 3 | I14: 4 | J14: 5 | X14: 1 | Y14: 2 | Z14: 3 | AA14: 4 | AB14: 5 | AP14: 1 | AQ14: 2 | AR14: 3 | AS14: 4 | AT14: 5
A15: 1 | B15: Forecast changes in CPI used for revaluations | D15: =IF($C$5<$A15,AN15,V15) -> 0.016 | E15: 0.017 | F15: 0.021 | G15: 0.021 | H15: 0.02066666667 | I15: 0.02033333333 | J15: 0.02 | V15: =[2]Inputs!C7 -> 0.016 | W15: =[2]Inputs!D7 -> 0.017 | X15: =[2]Inputs!E7 -> 0.021 | Y15: =[2]Inputs!F7 -> 0.021 | Z15: =[2]Inputs!G7 -> 0.02066666667 | AA15: =[2]Inputs!H7 -> 0.02033333333 | AB15: =[2]Inputs!I7 -> 0.02 | AN15: 0.01533219761 | AO15: 0.01426174497 | AP15: 0.01736972705 | AQ15: 0.02113821138 | AR15: 0.02166934189 | AS15: 0.0211128946 | AT15: 0.0205564473
A16: =A44+1 -> 12 | B16: Forecast changes in the CPI element of the price path | F16: =IF($C$5<$A16,AP16,X16) -> 0.01975379478 | G16: =IF($C$5<$A16,AQ16,Y16) -> 0.02074952399 | H16: =IF($C$5<$A16,AR16,Z16) -> 0.02066666667 | I16: =IF($C$5<$A16,AS16,AA16) -> 0.02033333333 | J16: =IF($C$5<$A16,AT16,AB16) -> 0.02 | X16: =[2]Inputs!E8 -> 0.01975379478 | Y16: =[2]Inputs!F8 -> 0.02074952399 | Z16: =[2]Inputs!G8 -> 0.02066666667 | AA16: =[2]Inputs!H8 -> 0.02033333333 | AB16: =[2]Inputs!I8 -> 0.02 | AP16: 0.01529961751 | AQ16: 0.01506906656 | AR16: 0.01773195876 | AS16: 0.02106969206 | AT16: 0.02152879479
A17: 0 | B17: Company tax rate | D17: 0.28 | E17: =IF($C$5<$A17,AO17,W17) -> 0.28 | F17: 0.28 | G17: 0.28 | H17: 0.28 | I17: 0.28 | J17: 0.28 | V17: =[2]Inputs!C9 -> 0.28 | W17: =[2]Inputs!D9 -> 0.28 | X17: =[2]Inputs!E9 -> 0.28 | Y17: =[2]Inputs!F9 -> 0.28 | Z17: =[2]Inputs!G9 -> 0.28 | AA17: =[2]Inputs!H9 -> 0.28 | AB17: =[2]Inputs!I9 -> 0.28 | AN17: 0.28 | AO17: 0.28 | AP17: 0.28 | AQ17: 0.28 | AR17: 0.28 | AS17: 0.28 | AT17: 0.28
A18: 0 | B18: Days in a year | C18: =IF($C$5<$A18,AM18,U18) -> 365 | N18: Working area | U18: =[2]Inputs!B10 -> 365 | AM18: 365
A19: 0 | B19: Days from mid-year to year-end | C19: 182 | N19: =D12 -> 2018/19 | U19: =[2]Inputs!B11 -> 182 | AM19: 182
A20: 0 | B20: Days from revenue date to year-end | C20: 148 | N20: =E12 -> 2019/20 | U20: =[2]Inputs!B12 -> 148 | AM20: 148
A21: 0 | B21: Last day of year 1 of the DPP period | C21: 2021-03-31 | N21: =F12 -> 2020/21 | U21: =[2]Inputs!B13 -> 2021-03-31 | AM21: 2016-03-31
A22: =A45+1 -> 10 | B22: Vanilla WACC (67th percentile) | C22: 0.0513 | N22: =G12 -> 2021/22 | U22: =[2]Inputs!B14 -> 0.0513 | AM22: 0.0719
A23: =A22 -> 10 | B23: Cost of debt | C23: 0.0361 | N23: =H12 -> 2022/23 | U23: =[2]Inputs!B15 -> 0.0361 | AM23: 0.0609
A24: =A31+1 -> 3 | B24: Leverage | C24: 0.42 | N24: =I12 -> 2023/24 | U24: =[2]Inputs!B16 -> 0.42 | AM24: 0.44
A25: 0 | B25: Years of remaining life for newly commissioned assets | C25: 44 | N25: =J12 -> 2024/25 | U25: =[2]Inputs!B17 -> 44 | AM25: 44
A26: =A56+1 -> 14 | B26: Industry-wide X factor | C26: 0 | U26: =[2]Inputs!B18 -> 0 | AM26: 0
B27: Inputs that are specific to individual distributors
B28: Name | C28: Alpine Energy | D28: Aurora Energy | E28: Centralines | F28: EA Networks | G28: Eastland Network | H28: Electricity Invercargill | I28: Horizon Energy | J28: Nelson Electricity | K28: Network Tasman | L28: Orion | M28: OtagoNet | N28: Powerco | O28: The Lines Company | P28: Top Energy | Q28: Unison | R28: Vector | S28: Wellington Electricity | U28: Alpine Energy | V28: Aurora Energy | W28: Centralines | X28: EA Networks | Y28: Eastland Network | Z28: Electricity Invercargill | AA28: Horizon Energy | AB28: Nelson Electricity | AC28: Network Tasman | AD28: Orion | AE28: OtagoNet | AF28: Powerco | AG28: The Lines Company | AH28: Top Energy | AI28: Unison | AJ28: Vector | AK28: Wellington Electricity | AM28: Alpine Energy | AN28: Aurora Energy | AO28: Centralines | AP28: EA Networks | AQ28: Eastland Network | AR28: Electricity Invercargill | AS28: Horizon Energy | AT28: Nelson Electricity | AU28: Network Tasman | AV28: Orion | AW28: OtagoNet | AX28: Powerco | AY28: The Lines Company | AZ28: Top Energy | BA28: Unison | BB28: Vector | BC28: Wellington Electricity
B29: Distributor number | C29: 1 | D29: 2 | E29: 3 | F29: 4 | G29: 5 | H29: 6 | I29: 7 | J29: 8 | K29: 9 | L29: 10 | M29: 11 | N29: 12 | O29: 13 | P29: 14 | Q29: 15 | R29: 16 | S29: 17 | U29: 1 | V29: 2 | W29: 3 | X29: 4 | Y29: 5 | Z29: 6 | AA29: 7 | AB29: 8 | AC29: 9 | AD29: 10 | AE29: 11 | AF29: 12 | AG29: 13 | AH29: 14 | AI29: 15 | AJ29: 16 | AK29: 17 | AM29: 1 | AN29: 2 | AO29: 3 | AP29: 4 | AQ29: 5 | AR29: 6 | AS29: 7 | AT29: 8 | AU29: 9 | AV29: 10 | AW29: 11 | AX29: 12 | AY29: 13 | AZ29: 14 | BA29: 15 | BB29: 16 | BC29: 17
B30: Initial conditions
A31: =A15+1 -> 2 | B31: Opening RAB | C31: =IF($C$5<$A31,AM31,U31) -> 199620.7032 | D31: =IF($C$5<$A31,AN31,V31) -> 393922 | E31: =IF($C$5<$A31,AO31,W31) -> 54013 | F31: =IF($C$5<$A31,AP31,X31) -> 259359.001 | G31: =IF($C$5<$A31,AQ31,Y31) -> 154613.2058 | H31: =IF($C$5<$A31,AR31,Z31) -> 84072.05987 | I31: =IF($C$5<$A31,AS31,AA31) -> 124949.9691 | J31: =IF($C$5<$A31,AT31,AB31) -> 41110.98197 | K31: =IF($C$5<$A31,AU31,AC31) -> 165522 | L31: =IF($C$5<$A31,AV31,AD31) -> 1051194 | M31: =IF($C$5<$A31,AW31,AE31) -> 186531.164 | N31: =IF($C$5<$A31,AX31,AF31) -> 1657736.859 | O31: =IF($C$5<$A31,AY31,AG31) -> 188818.5386 | P31: =IF($C$5<$A31,AZ31,AH31) -> 251488.161 | Q31: =IF($C$5<$A31,BA31,AI31) -> 586194.8 | R31: =IF($C$5<$A31,BB31,AJ31) -> 2951716.311 | S31: =IF($C$5<$A31,BC31,AK31) -> 611855.0815 | U31: =[2]Inputs!B23 -> 199620.7032 | V31: =[2]Inputs!C23 -> 393922 | W31: =[2]Inputs!D23 -> 54013 | X31: =[2]Inputs!E23 -> 259359.001 | Y31: =[2]Inputs!F23 -> 154613.2058 | Z31: =[2]Inputs!G23 -> 84072.05987 | AA31: =[2]Inputs!H23 -> 124949.9691 | AB31: =[2]Inputs!I23 -> 41110.98197 | AC31: =[2]Inputs!J23 -> 165522 | AD31: =[2]Inputs!K23 -> 1051194 | AE31: =[2]Inputs!L23 -> 186531.164 | AF31: =[2]Inputs!M23 -> 1657736.859 | AG31: =[2]Inputs!N23 -> 188818.5386 | AH31: =[2]Inputs!O23 -> 251488.161 | AI31: =[2]Inputs!P23 -> 586194.8 | AJ31: =[2]Inputs!Q23 -> 2951716.311 | AK31: =[2]Inputs!R23 -> 611855.0815 | AM31: 153233.2191 | AN31: 318316 | AO31: 54463.9198 | AP31: 207829 | AQ31: 123188.7994 | AR31: 65348.37841 | AS31: 104497.7564 | AT31: 30348.79332 | AU31: 150493 | AV31: 864649 | AW31: 144589 | AX31: 1385118.8 | AY31: 173379.1192 | AZ31: 183788.51 | BA31: 491717.721 | BB31: 2536404 | BC31: 555989.8374
A32: =A31 -> 2 | B32: Lost assets | C32: 0 | D32: 0 | E32: 0 | F32: 0 | G32: 0 | H32: 0 | I32: 0 | J32: 0 | K32: 0 | L32: 0 | M32: 0 | N32: 0 | O32: 0 | P32: 0 | Q32: 0 | R32: 0 | S32: 0 | U32: 0 | V32: 0 | W32: 0 | X32: 0 | Y32: 0 | Z32: 0 | AA32: 0 | AB32: 0 | AC32: 0 | AD32: 0 | AE32: 0 | AF32: 0 | AG32: 0 | AH32: 0 | AI32: 0 | AJ32: 0 | AK32: 0 | AM32: 0 | AN32: 0 | AO32: 0 | AP32: 0 | AQ32: 0 | AR32: 0 | AS32: 0 | AT32: 0 | AU32: 0 | AV32: 0 | AW32: 0 | AX32: 0 | AY32: 0 | AZ32: 0 | BA32: 0 | BB32: 0 | BC32: 0
A33: =A31 -> 2 | B33: Found assets | C33: 0 | D33: 0 | E33: 0 | F33: 0 | G33: 0 | H33: 0 | I33: 0 | J33: 0 | K33: 0 | L33: 0 | M33: 0 | N33: 0 | O33: 0 | P33: 0 | Q33: 0 | R33: 0 | S33: 0 | U33: 0 | V33: 0 | W33: 0 | X33: 0 | Y33: 0 | Z33: 0 | AA33: 0 | AB33: 0 | AC33: 0 | AD33: 0 | AE33: 0 | AF33: 0 | AG33: 0 | AH33: 0 | AI33: 0 | AJ33: 0 | AK33: 0 | AM33: 0 | AN33: 0 | AO33: 0 | AP33: 0 | AQ33: 0 | AR33: 0 | AS33: 0 | AT33: 0 | AU33: 0 | AV33: 0 | AW33: 0 | AX33: 0 | AY33: 0 | AZ33: 0 | BA33: 0 | BB33: 0 | BC33: 0
A34: =A31 -> 2 | B34: Total depreciation | C34: 14657.68055 | D34: 15666.76686 | E34: 2638.505966 | F34: 9907.162647 | G34: 6020.052549 | H34: 3178.037329 | I34: 6206.241873 | J34: 1471.814946 | K34: 7299.708834 | L34: 42205.82349 | M34: 7192.949336 | N34: 72538.67137 | O34: 9126.411931 | P34: 9527.547071 | Q34: 27671.43593 | R34: 115387.4597 | S34: 30673.44801 | U34: =[2]Inputs!B24 -> 14657.68055 | V34: =[2]Inputs!C24 -> 15666.76686 | W34: =[2]Inputs!D24 -> 2638.505966 | X34: =[2]Inputs!E24 -> 9907.162647 | Y34: =[2]Inputs!F24 -> 6020.052549 | Z34: =[2]Inputs!G24 -> 3178.037329 | AA34: =[2]Inputs!H24 -> 6206.241873 | AB34: =[2]Inputs!I24 -> 1471.814946 | AC34: =[2]Inputs!J24 -> 7299.708834 | AD34: =[2]Inputs!K24 -> 42205.82349 | AE34: =[2]Inputs!L24 -> 7192.949336 | AF34: =[2]Inputs!M24 -> 72538.67137 | AG34: =[2]Inputs!N24 -> 9126.411931 | AH34: =[2]Inputs!O24 -> 9527.547071 | AI34: =[2]Inputs!P24 -> 27671.43593 | AJ34: =[2]Inputs!Q24 -> 115387.4597 | AK34: =[2]Inputs!R24 -> 30673.44801 | AM34: 9784.564581 | AN34: 11473 | AO34: 2561.60348 | AP34: 6958.449264 | AQ34: 5090.053905 | AR34: 2526.462 | AS34: 4656.23989 | AT34: 1172.906946 | AU34: 6574 | AV34: 34384.22 | AW34: 6607 | AX34: 59856.67668 | AY34: 8968 | AZ34: 7326.490474 | BA34: 21312 | BB34: 90831 | BC34: 26602
A35: =A31 -> 2 | B35: Revaluations | C35: 0 | D35: 0 | E35: 0 | F35: 0 | G35: 0 | H35: 0 | I35: 0 | J35: 0 | K35: 0 | L35: 0 | M35: 0 | N35: 0 | O35: 0 | P35: 0 | Q35: 0 | R35: 0 | S35: 0 | AM35: 2346.818894 | AN35: 4878.505963 | AO35: 834.4512413 | AP35: 3158.581459 | AQ35: 1881.665337 | AR35: 993.1686809 | AS35: 1604.129049 | AT35: 465.3136965 | AU35: 2306.698467 | AV35: 12839.50426 | AW35: 2194.580677 | AX35: 21062.76409 | AY35: 2654.971163 | AZ35: 2816.920331 | BA35: 7424.551088 | BB35: 38684 | BC35: 8517.846814
A36: =A31 -> 2 | B36: Closing RAB | C36: 208993.8659 | D36: 480520.0526 | E36: 55780.40194 | F36: 278029.8126 | G36: 163053.7378 | H36: 86866.63228 | I36: 126856.7588 | J36: 41892.17866 | K36: 173813.5212 | L36: 1113129.191 | M36: 199434.0866 | N36: 1820403.258 | O36: 199756.4819 | P36: 268572.3018 | Q36: 609185.4367 | R36: 3053381.115 | S36: 631633.1137 | U36: =[2]Inputs!B25 -> 208993.8659 | V36: =[2]Inputs!C25 -> 480520.0526 | W36: =[2]Inputs!D25 -> 55780.40194 | X36: =[2]Inputs!E25 -> 278029.8126 | Y36: =[2]Inputs!F25 -> 163053.7378 | Z36: =[2]Inputs!G25 -> 86866.63228 | AA36: =[2]Inputs!H25 -> 126856.7588 | AB36: =[2]Inputs!I25 -> 41892.17866 | AC36: =[2]Inputs!J25 -> 173813.5212 | AD36: =[2]Inputs!K25 -> 1113129.191 | AE36: =[2]Inputs!L25 -> 199434.0866 | AF36: =[2]Inputs!M25 -> 1820403.258 | AG36: =[2]Inputs!N25 -> 199756.4819 | AH36: =[2]Inputs!O25 -> 268572.3018 | AI36: =[2]Inputs!P25 -> 609185.4367 | AJ36: =[2]Inputs!Q25 -> 3053381.115 | AK36: =[2]Inputs!R25 -> 631633.1137 | AM36: 156778.6951 | AN36: 324967 | AO36: 55053.95459 | AP36: 220520.608 | AQ36: 125598.5524 | AR36: 64392 | AS36: 110624.3089 | AT36: 42202.80799 | AU36: 155232 | AV36: 890508 | AW36: 147442.648 | AX36: 1439790 | AY36: 175959 | AZ36: 199303.1546 | BA36: 521046.0044 | BB36: 2618855 | BC36: 569510.1895
A37: =A24 -> 3 | B37: Opening RAB excluding revaluations | C37: 203325.759 | D37: 361563.5 | E37: 48747.22429 | F37: 239189.6093 | G37: 141773.7422 | H37: 77208.89175 | I37: 114782.717 | J37: 37936.33016 | K37: 149927.8526 | L37: 964649.6337 | M37: 171841.6988 | N37: 1514714.947 | O37: 168225.2525 | P37: 224194.2399 | Q37: 536307.9835 | R37: 2687318.477 | S37: 556618.5435 | U37: =[2]Inputs!B26 -> 203325.759 | V37: =[2]Inputs!C26 -> 361563.5 | W37: =[2]Inputs!D26 -> 48747.22429 | X37: =[2]Inputs!E26 -> 239189.6093 | Y37: =[2]Inputs!F26 -> 141773.7422 | Z37: =[2]Inputs!G26 -> 77208.89175 | AA37: =[2]Inputs!H26 -> 114782.717 | AB37: =[2]Inputs!I26 -> 37936.33016 | AC37: =[2]Inputs!J26 -> 149927.8526 | AD37: =[2]Inputs!K26 -> 964649.6337 | AE37: =[2]Inputs!L26 -> 171841.6988 | AF37: =[2]Inputs!M26 -> 1514714.947 | AG37: =[2]Inputs!N26 -> 168225.2525 | AH37: =[2]Inputs!O26 -> 224194.2399 | AI37: =[2]Inputs!P26 -> 536307.9835 | AJ37: =[2]Inputs!Q26 -> 2687318.477 | AK37: =[2]Inputs!R26 -> 556618.5435 | AM37: 145352.6386 | AN37: 299146 | AO37: 51405.49591 | AP37: 197005 | AQ37: 116251.3099 | AR37: 61562.159 | AS37: 98492.50273 | AT37: 28617 | AU37: 140998 | AV37: 813508.7 | AW37: 137117 | AX37: 1302563 | AY37: 161685 | AZ37: 174771 | BA37: 462687 | BB37: 2379108 | BC37: 521133.3345
A38: =$A$36+1 -> 3 | B38: Adjusted depreciation | C38: 14929.73412 | D38: 14379.82915 | E38: 2381.275658 | F38: 9136.719198 | G38: 5520.132471 | H38: 2918.600311 | I38: 5701.236338 | J38: 1358.159184 | K38: 6611.98916 | L38: 38731.03554 | M38: 6626.49933 | N38: 66280.36842 | O38: 8131.049858 | P38: 8493.525758 | Q38: 25316.51936 | R38: 105051.7122 | S38: 27904.33629 | U38: =[2]Inputs!B27 -> 14929.73412 | V38: =[2]Inputs!C27 -> 14379.82915 | W38: =[2]Inputs!D27 -> 2381.275658 | X38: =[2]Inputs!E27 -> 9136.719198 | Y38: =[2]Inputs!F27 -> 5520.132471 | Z38: =[2]Inputs!G27 -> 2918.600311 | AA38: =[2]Inputs!H27 -> 5701.236338 | AB38: =[2]Inputs!I27 -> 1358.159184 | AC38: =[2]Inputs!J27 -> 6611.98916 | AD38: =[2]Inputs!K27 -> 38731.03554 | AE38: =[2]Inputs!L27 -> 6626.49933 | AF38: =[2]Inputs!M27 -> 66280.36842 | AG38: =[2]Inputs!N27 -> 8131.049858 | AH38: =[2]Inputs!O27 -> 8493.525758 | AI38: =[2]Inputs!P27 -> 25316.51936 | AJ38: =[2]Inputs!Q27 -> 105051.7122 | AK38: =[2]Inputs!R27 -> 27904.33629 | AM38: 9044.833523 | AN38: 10727 | AO38: 2422.72053 | AP38: 6459 | AQ38: 4594.492001 | AR38: 2326.458 | AS38: 4378.64617 | AT38: 1078 | AU38: 6184.02697 | AV38: 32282.4 | AW38: 6400 | AX38: 56102 | AY38: 8599 | AZ38: 6297 | BA38: 20012 | BB38: 85581 | BC38: 25002.70595
A39: 3 | B39: Tax depreciation | C39: 15569.58297 | D39: 24098.09022 | E39: 2146.017618 | F39: 12197.39475 | G39: 6214.87137 | H39: 3255.623889 | I39: 5153.852701 | J39: 1283.53217 | K39: 4667.473348 | L39: 46081.94008 | M39: 15134.16914 | N39: 71110.92004 | O39: 4785.561895 | P39: 11094.77118 | Q39: 29192.0653 | R39: 101502.9067 | S39: 29304.36863 | U39: =[2]Inputs!B28 -> 15569.58297 | V39: =[2]Inputs!C28 -> 24098.09022 | W39: =[2]Inputs!D28 -> 2146.017618 | X39: =[2]Inputs!E28 -> 12197.39475 | Y39: =[2]Inputs!F28 -> 6214.87137 | Z39: =[2]Inputs!G28 -> 3255.623889 | AA39: =[2]Inputs!H28 -> 5153.852701 | AB39: =[2]Inputs!I28 -> 1283.53217 | AC39: =[2]Inputs!J28 -> 4667.473348 | AD39: =[2]Inputs!K28 -> 46081.94008 | AE39: =[2]Inputs!L28 -> 15134.16914 | AF39: =[2]Inputs!M28 -> 71110.92004 | AG39: =[2]Inputs!N28 -> 4785.561895 | AH39: =[2]Inputs!O28 -> 11094.77118 | AI39: =[2]Inputs!P28 -> 29192.0653 | AJ39: =[2]Inputs!Q28 -> 101502.9067 | AK39: =[2]Inputs!R28 -> 29304.36863 | AM39: 8307.997801 | AN39: 14927 | AO39: 2462.291061 | AP39: 10145 | AQ39: 6884.509381 | AR39: 2173.406 | AS39: 3708 | AT39: 891 | AU39: 3490 | AV39: 32886.8 | AW39: 7427.587 | AX39: 69941 | AY39: 4007 | AZ39: 7367.897964 | BA39: 25109 | BB39: 90303 | BC39: 28396.70973
A40: 3 | B40: Opening regulatory tax asset value | C40: 122940.0287 | D40: 234075 | E40: 24361 | F40: 135023.0164 | G40: 70420.64605 | H40: 41298.6 | I40: 51563.82529 | J40: 18236.93456 | K40: 63876 | L40: 416309.5404 | M40: 94615.36681 | N40: 1001328.027 | O40: 48557.93282 | P40: 136235.1804 | Q40: 316064.482 | R40: 1230174.595 | S40: 353460.3293 | U40: =[2]Inputs!B29 -> 122940.0287 | V40: =[2]Inputs!C29 -> 234075 | W40: =[2]Inputs!D29 -> 24361 | X40: =[2]Inputs!E29 -> 135023.0164 | Y40: =[2]Inputs!F29 -> 70420.64605 | Z40: =[2]Inputs!G29 -> 41298.6 | AA40: =[2]Inputs!H29 -> 51563.82529 | AB40: =[2]Inputs!I29 -> 18236.93456 | AC40: =[2]Inputs!J29 -> 63876 | AD40: =[2]Inputs!K29 -> 416309.5404 | AE40: =[2]Inputs!L29 -> 94615.36681 | AF40: =[2]Inputs!M29 -> 1001328.027 | AG40: =[2]Inputs!N29 -> 48557.93282 | AH40: =[2]Inputs!O29 -> 136235.1804 | AI40: =[2]Inputs!P29 -> 316064.482 | AJ40: =[2]Inputs!Q29 -> 1230174.595 | AK40: =[2]Inputs!R29 -> 353460.3293 | AM40: 86577.36469 | AN40: 163270 | AO40: 25808.01647 | AP40: 106837 | AQ40: 72106.66916 | AR40: 25280.2579 | AS40: 31886.65545 | AT40: 9314.944 | AU40: 42509.93782 | AV40: 270627.684 | AW40: 90115 | AX40: 896706.035 | AY40: 41312 | AZ40: 85698.4935 | BA40: 266951.682 | BB40: 966964 | BC40: 345886.8305
A41: 3 | B41: Amortisation of initial differences in asset values | C41: 2756.174785 | D41: 4992.566549 | E41: 1254.538462 | F41: 2142.610548 | G41: 1904.499165 | H41: 1268.35 | I41: 4218.944535 | J41: 693.0454545 | K41: 3239.360324 | L41: 15348.54813 | M41: 1345 | N41: 10277.92979 | O41: 4085.257898 | P41: 3399.105263 | Q41: 5670.095238 | R41: 34390.625 | S41: 7150.784348 | U41: =[2]Inputs!B30 -> 2756.174785 | V41: =[2]Inputs!C30 -> 4992.566549 | W41: =[2]Inputs!D30 -> 1254.538462 | X41: =[2]Inputs!E30 -> 2142.610548 | Y41: =[2]Inputs!F30 -> 1904.499165 | Z41: =[2]Inputs!G30 -> 1268.35 | AA41: =[2]Inputs!H30 -> 4218.944535 | AB41: =[2]Inputs!I30 -> 693.0454545 | AC41: =[2]Inputs!J30 -> 3239.360324 | AD41: =[2]Inputs!K30 -> 15348.54813 | AE41: =[2]Inputs!L30 -> 1345 | AF41: =[2]Inputs!M30 -> 10277.92979 | AG41: =[2]Inputs!N30 -> 4085.257898 | AH41: =[2]Inputs!O30 -> 3399.105263 | AI41: =[2]Inputs!P30 -> 5670.095238 | AJ41: =[2]Inputs!Q30 -> 34390.625 | AK41: =[2]Inputs!R30 -> 7150.784348 | AM41: 2834.603957 | AN41: 3587.244898 | AO41: 1286.627995 | AP41: 2215.533923 | AQ41: 1045.900058 | AR41: 1333.070536 | AS41: 4218.944535 | AT41: 704.2117458 | AU41: 2753.869874 | AV41: 15754.34193 | AW41: 1366.888889 | AX41: 10748.87086 | AY41: 4085.29437 | AZ41: 3399.086957 | BA41: 5741.516288 | BB41: 35098.30556 | BC41: 6153.707972
A42: =A80+1 -> 8 | B42: Term credit spread differential allowance | C42: 0 | D42: 0 | E42: 0 | F42: 0 | G42: 0 | H42: 0 | I42: 0 | J42: 0 | K42: 0 | L42: 0 | M42: 0 | N42: 0 | O42: 40.47461221 | P42: 0 | Q42: 1.146262998 | R42: 805.2566826 | S42: 591.6347574 | U42: =[2]Inputs!B31 -> 0 | V42: =[2]Inputs!C31 -> 0 | W42: =[2]Inputs!D31 -> 0 | X42: =[2]Inputs!E31 -> 0 | Y42: =[2]Inputs!F31 -> 0 | Z42: =[2]Inputs!G31 -> 0 | AA42: =[2]Inputs!H31 -> 0 | AB42: =[2]Inputs!I31 -> 0 | AC42: =[2]Inputs!J31 -> 0 | AD42: =[2]Inputs!K31 -> 0 | AE42: =[2]Inputs!L31 -> 0 | AF42: =[2]Inputs!M31 -> 0 | AG42: =[2]Inputs!N31 -> 40.47461221 | AH42: =[2]Inputs!O31 -> 0 | AI42: =[2]Inputs!P31 -> 1.146262998 | AJ42: =[2]Inputs!Q31 -> 805.2566826 | AK42: =[2]Inputs!R31 -> 591.6347574 | AM42: 0 | AN42: 0 | AO42: 0 | AP42: 0 | AQ42: 0 | AR42: 0 | AS42: 0 | AT42: 0 | AU42: 0 | AV42: 0 | AW42: 0 | AX42: 0 | AY42: 1.948709971 | AZ42: 0 | BA42: 0.4620765114 | BB42: 518.3295847 | BC42: 563.4100427
A43: =A37 -> 3 | B43: Opening deferred tax balance | C43: -6558.11944 | D43: -22753.59863 | E43: -2742.750769 | F43: -12536.51979 | G43: -7388.304107 | H43: -3456.65892 | I43: -997.9245478 | J43: -1471.275932 | K43: -1578.940655 | L43: -45788.67892 | M43: -12560.96 | N43: -68683.50015 | O43: -9922.853224 | P43: -10333.3514 | Q43: -30234.73171 | R43: -83246.815 | S43: -33671.50644 | U43: =[2]Inputs!B32 -> -6558.11944 | V43: =[2]Inputs!C32 -> -22753.59863 | W43: =[2]Inputs!D32 -> -2742.750769 | X43: =[2]Inputs!E32 -> -12536.51979 | Y43: =[2]Inputs!F32 -> -7388.304107 | Z43: =[2]Inputs!G32 -> -3456.65892 | AA43: =[2]Inputs!H32 -> -997.9245478 | AB43: =[2]Inputs!I32 -> -1471.275932 | AC43: =[2]Inputs!J32 -> -1578.940655 | AD43: =[2]Inputs!K32 -> -45788.67892 | AE43: =[2]Inputs!L32 -> -12560.96 | AF43: =[2]Inputs!M32 -> -68683.50015 | AG43: =[2]Inputs!N32 -> -9922.853224 | AH43: =[2]Inputs!O32 -> -10333.3514 | AI43: =[2]Inputs!P32 -> -30234.73171 | AJ43: =[2]Inputs!Q32 -> -83246.815 | AK43: =[2]Inputs!R32 -> -33671.50644 | AM43: -1026.793487 | AN43: -2683 | AO43: -1326.028793 | AP43: -3876.24 | AQ43: -3312.588673 | AR43: -1536.38799 | AS43: -2873.311492 | AT43: -428.3922743 | AU43: -473.4501144 | AV43: -20636.53 | AW43: -3135 | AX43: -23571.72 | AY43: -3843.58902 | AZ43: -2693 | BA43: -14382.88581 | BB43: -43155 | BC43: -17901.38546
A44: =A22+1 -> 11 | B44: Adjustment factor (for accelerated depreciation) | C44: 1 | D44: 1 | E44: 1 | F44: 1 | G44: 1 | H44: 1 | I44: 1 | J44: 1 | K44: 1 | L44: 1 | M44: 1 | N44: 1 | O44: 1 | P44: 1 | Q44: 1 | R44: 1 | S44: 1 | U44: =[2]Inputs!B33 -> 1 | V44: =[2]Inputs!C33 -> 1 | W44: =[2]Inputs!D33 -> 1 | X44: =[2]Inputs!E33 -> 1 | Y44: =[2]Inputs!F33 -> 1 | Z44: =[2]Inputs!G33 -> 1 | AA44: =[2]Inputs!H33 -> 1 | AB44: =[2]Inputs!I33 -> 1 | AC44: =[2]Inputs!J33 -> 1 | AD44: =[2]Inputs!K33 -> 1 | AE44: =[2]Inputs!L33 -> 1 | AF44: =[2]Inputs!M33 -> 1 | AG44: =[2]Inputs!N33 -> 1 | AH44: =[2]Inputs!O33 -> 1 | AI44: =[2]Inputs!P33 -> 1 | AJ44: =[2]Inputs!Q33 -> 1 | AK44: =[2]Inputs!R33 -> 1 | AM44: 1 | AN44: 1 | AO44: 1 | AP44: 1 | AQ44: 1 | AR44: 1 | AS44: 1 | AT44: 1 | AU44: 1 | AV44: 1 | AW44: 1 | AX44: 1 | AY44: 1 | AZ44: 1 | BA44: 1 | BB44: 1 | BC44: 1
A45: =A42+1 -> 9 | B45: Additional allowance in 1 April 2015 PV terms | C45: 0 | D45: 0 | E45: 0 | F45: 0 | G45: 0 | H45: 0 | I45: 0 | J45: 0 | K45: 0 | L45: 0 | M45: 0 | N45: 0 | O45: 0 | P45: 0 | Q45: 0 | R45: 0 | S45: 0 | U45: =[2]Inputs!B34 -> 0 | V45: =[2]Inputs!C34 -> 0 | W45: =[2]Inputs!D34 -> 0 | X45: =[2]Inputs!E34 -> 0 | Y45: =[2]Inputs!F34 -> 0 | Z45: =[2]Inputs!G34 -> 0 | AA45: =[2]Inputs!H34 -> 0 | AB45: =[2]Inputs!I34 -> 0 | AC45: =[2]Inputs!J34 -> 0 | AD45: =[2]Inputs!K34 -> 0 | AE45: =[2]Inputs!L34 -> 0 | AF45: =[2]Inputs!M34 -> 0 | AG45: =[2]Inputs!N34 -> 0 | AH45: =[2]Inputs!O34 -> 0 | AI45: =[2]Inputs!P34 -> 0 | AJ45: =[2]Inputs!Q34 -> 0 | AK45: =[2]Inputs!R34 -> 0 | AM45: 563.2195093 | AN45: 0 | AO45: 0 | AP45: 0 | AQ45: 0 | AR45: 0 | AS45: 0 | AT45: 0 | AU45: 0 | AV45: 0 | AW45: 61.95290349 | AX45: 0 | AY45: 101.1145677 | AZ45: 0 | BA45: 0 | BB45: 0 | BC45: 0
A46: =A26 -> 14 | B46: Alternative X factor | C46: 0 | D46: -0.089 | E46: 0 | F46: 0 | G46: 0 | H46: 0 | I46: 0 | J46: 0 | K46: 0 | L46: 0 | M46: 0 | N46: 0 | O46: 0 | P46: 0 | Q46: 0 | R46: 0 | S46: 0 | U46: =[2]Inputs!B35 -> 0 | V46: =[2]Inputs!C35 -> -0.089 | W46: =[2]Inputs!D35 -> 0 | X46: =[2]Inputs!E35 -> 0 | Y46: =[2]Inputs!F35 -> 0 | Z46: =[2]Inputs!G35 -> 0 | AA46: =[2]Inputs!H35 -> 0 | AB46: =[2]Inputs!I35 -> 0 | AC46: =[2]Inputs!J35 -> 0 | AD46: =[2]Inputs!K35 -> 0 | AE46: =[2]Inputs!L35 -> 0 | AF46: =[2]Inputs!M35 -> 0 | AG46: =[2]Inputs!N35 -> 0 | AH46: =[2]Inputs!O35 -> 0 | AI46: =[2]Inputs!P35 -> 0 | AJ46: =[2]Inputs!Q35 -> 0 | AK46: =[2]Inputs!R35 -> 0 | AM46: -0.11 | AN46: 0 | AO46: -0.07 | AP46: 0 | AQ46: -0.03 | AR46: 0 | AS46: 0 | AT46: 0 | AU46: 0 | AV46: 0 | AW46: 0 | AX46: 0 | AY46: 0 | AZ46: -0.07 | BA46: 0 | BB46: 0 | BC46: 0
B47: Operating expenditure | U47: 2015 values plus:
A48: =A72+1 -> 6 | B48: ="Operating expenditure, " & N19 -> Operating expenditure, 2018/19 | C48: =IF($C$5<$A48,AM48,U48) ->  | M48: =IF($C$5<$A48,AW48,AE48) ->  | AM48: 15271.56043 | AN48: 22317 | AO48: 4333 | AP48: 8214 | AQ48: 7809.87415 | AR48: 4814.067 | AS48: 7731 | AT48: 2232 | AU48: 8543 | AV48: 50934 | AW48: 7679.596 | AX48: 67817.64887 | AY48: 10693 | AZ48: 12617.32594 | BA48: 34853.7856 | BB48: 106706 | BC48: 29611.04613
A49: =$A$48 -> 6 | B49: Operating expenditure, 2019/20 | AM49: 14209.9316 | AN49: 21223.49879 | AO49: 4340.90464 | AP49: 8234.319145 | AQ49: 7839.332903 | AR49: 5257.400281 | AS49: 7543.447404 | AT49: 2366.771252 | AU49: 8798.712851 | AV49: 51168.28541 | AW49: 7191.930764 | AX49: 68411.04165 | AY49: 10417.89066 | AZ49: 13112.3355 | BA49: 34603.45205 | BB49: 103926.5115 | BC49: 29751.79577
A50: 6 | B50: Operating expenditure, 2020/21 | C50: 18958.27695 | D50: 40108.01182 | E50: 3806.103561 | F50: 13505.51834 | G50: 10850.673 | H50: 4993.638188 | I50: 11291.42424 | J50: 2122.383493 | K50: 12096.42151 | L50: 61022.97054 | M50: 7993.842907 | N50: 77973.23545 | O50: 13361.49606 | P50: 17657.33647 | Q50: 42559.57526 | R50: 128568.6903 | S50: 36822.09577 | U50: =[2]Inputs!B37 -> 18958.27695 | V50: =[2]Inputs!C37 -> 40108.01182 | W50: =[2]Inputs!D37 -> 3806.103561 | X50: =[2]Inputs!E37 -> 13505.51834 | Y50: =[2]Inputs!F37 -> 10850.673 | Z50: =[2]Inputs!G37 -> 4993.638188 | AA50: =[2]Inputs!H37 -> 11291.42424 | AB50: =[2]Inputs!I37 -> 2122.383493 | AC50: =[2]Inputs!J37 -> 12096.42151 | AD50: =[2]Inputs!K37 -> 61022.97054 | AE50: =[2]Inputs!L37 -> 7993.842907 | AF50: =[2]Inputs!M37 -> 77973.23545 | AG50: =[2]Inputs!N37 -> 13361.49606 | AH50: =[2]Inputs!O37 -> 17657.33647 | AI50: =[2]Inputs!P37 -> 42559.57526 | AJ50: =[2]Inputs!Q37 -> 128568.6903 | AK50: =[2]Inputs!R37 -> 36822.09577 | AM50: 14721.62113 | AN50: 22066.86006 | AO50: 4488.344134 | AP50: 8561.4606 | AQ50: 8100.774963 | AR50: 5444.163505 | AS50: 7780.667126 | AT50: 2462.677659 | AU50: 9144.412963 | AV50: 53114.88425 | AW50: 7457.328616 | AX50: 70948.05312 | AY50: 10710.81759 | AZ50: 13594.83444 | BA50: 35854.23933 | BB50: 108576.8916 | BC50: 30899.2206
A51: 6 | B51: Operating expenditure, 2021/22 | C51: 19558.63749 | D51: 41758.76769 | E51: 3878.336392 | F51: 13998.54116 | G51: 11158.75254 | H51: 5127.712059 | I51: 11609.988 | J51: 2191.999503 | K51: 12483.73592 | L51: 63364.75771 | M51: 8233.409552 | N51: 80518.99376 | O51: =IF($C$5<$A51,AY51,AG51) -> 13747.62658 | P51: 18209.31413 | Q51: 43930.83323 | R51: 133812.7745 | S51: 38003.60011 | U51: =[2]Inputs!B38 -> 19558.63749 | V51: =[2]Inputs!C38 -> 41758.76769 | W51: =[2]Inputs!D38 -> 3878.336392 | X51: =[2]Inputs!E38 -> 13998.54116 | Y51: =[2]Inputs!F38 -> 11158.75254 | Z51: =[2]Inputs!G38 -> 5127.712059 | AA51: =[2]Inputs!H38 -> 11609.988 | AB51: =[2]Inputs!I38 -> 2191.999503 | AC51: =[2]Inputs!J38 -> 12483.73592 | AD51: =[2]Inputs!K38 -> 63364.75771 | AE51: =[2]Inputs!L38 -> 8233.409552 | AF51: =[2]Inputs!M38 -> 80518.99376 | AG51: =[2]Inputs!N38 -> 13747.62658 | AH51: =[2]Inputs!O38 -> 18209.31413 | AI51: =[2]Inputs!P38 -> 43930.83323 | AJ51: =[2]Inputs!Q38 -> 133812.7745 | AK51: =[2]Inputs!R38 -> 38003.60011 | AM51: 15182.34764 | AN51: 22846.17041 | AO51: 4620.347102 | AP51: 8856.714952 | AQ51: 8341.41749 | AR51: 5609.713195 | AS51: 7994.897 | AT51: 2550.141432 | AU51: 9458.042905 | AV51: 54967.77546 | AW51: 7695.304275 | AX51: 73328.77141 | AY51: 10977.5035 | AZ51: 14045.84886 | BA51: 36996.18617 | BB51: 113032.7584 | BC51: 31949.9157
A52: 6 | B52: Operating expenditure, 2022/23 | C52: 20151.66449 | D52: 43420.9089 | E52: 3946.829692 | F52: 14490.62343 | G52: 11460.5961 | H52: 5258.511716 | I52: 11921.95492 | J52: 2260.942989 | K52: 12866.63178 | L52: 65710.50062 | M52: 8469.089503 | N52: 83039.30707 | O52: 14126.45338 | P52: 18754.02958 | Q52: 45287.07074 | R52: 139088.9347 | S52: 39171.80533 | U52: =[2]Inputs!B39 -> 20151.66449 | V52: =[2]Inputs!C39 -> 43420.9089 | W52: =[2]Inputs!D39 -> 3946.829692 | X52: =[2]Inputs!E39 -> 14490.62343 | Y52: =[2]Inputs!F39 -> 11460.5961 | Z52: =[2]Inputs!G39 -> 5258.511716 | AA52: =[2]Inputs!H39 -> 11921.95492 | AB52: =[2]Inputs!I39 -> 2260.942989 | AC52: =[2]Inputs!J39 -> 12866.63178 | AD52: =[2]Inputs!K39 -> 65710.50062 | AE52: =[2]Inputs!L39 -> 8469.089503 | AF52: =[2]Inputs!M39 -> 83039.30707 | AG52: =[2]Inputs!N39 -> 14126.45338 | AH52: =[2]Inputs!O39 -> 18754.02958 | AI52: =[2]Inputs!P39 -> 45287.07074 | AJ52: =[2]Inputs!Q39 -> 139088.9347 | AK52: =[2]Inputs!R39 -> 39171.80533 | AM52: 15599.29113 | AN52: 23565.0798 | AO52: 4738.552418 | AP52: 9128.095505 | AQ52: 8557.280878 | AR52: 5758.810547 | AS52: 8184.496143 | AT52: 2630.907359 | AU52: 9746.066557 | AV52: 56674.00952 | AW52: 7911.390151 | AX52: 75507.66286 | AY52: 11209.05654 | AZ52: 14457.92501 | BA52: 38032.60446 | BB52: 117234.2962 | BC52: 32913.54284
A53: 6 | B53: Operating expenditure, 2023/24 | C53: 20709.7457 | D53: 44972.79235 | E53: 4003.142186 | F53: 14960.7268 | G53: 11738.52793 | H53: 5379.542644 | I53: 12207.88699 | J53: 2324.809394 | K53: 13221.66223 | L53: 67829.46906 | M53: 8674.731494 | N53: 85377.3673 | O53: 14453.9179 | P53: 19260.57163 | Q53: 46545.18499 | R53: 143907.6248 | S53: 40251.97425 | U53: =[2]Inputs!B40 -> 20709.7457 | V53: =[2]Inputs!C40 -> 44972.79235 | W53: =[2]Inputs!D40 -> 4003.142186 | X53: =[2]Inputs!E40 -> 14960.7268 | Y53: =[2]Inputs!F40 -> 11738.52793 | Z53: =[2]Inputs!G40 -> 5379.542644 | AA53: =[2]Inputs!H40 -> 12207.88699 | AB53: =[2]Inputs!I40 -> 2324.809394 | AC53: =[2]Inputs!J40 -> 13221.66223 | AD53: =[2]Inputs!K40 -> 67829.46906 | AE53: =[2]Inputs!L40 -> 8674.731494 | AF53: =[2]Inputs!M40 -> 85377.3673 | AG53: =[2]Inputs!N40 -> 14453.9179 | AH53: =[2]Inputs!O40 -> 19260.57163 | AI53: =[2]Inputs!P40 -> 46545.18499 | AJ53: =[2]Inputs!Q40 -> 143907.6248 | AK53: =[2]Inputs!R40 -> 40251.97425 | AM53: 16026.3849 | AN53: 24304.63962 | AO53: 4859.38762 | AP53: 9407.029859 | AQ53: 8778.018483 | AR53: 5911.391148 | AS53: 8377.919793 | AT53: 2714.023323 | AU53: 10042.04692 | AV53: 58428.63052 | AW53: 8132.918752 | AX53: 77745.00165 | AY53: 11444.61487 | AZ53: 14880.92715 | BA53: 39094.88869 | BB53: 121582.3695 | BC53: 33903.49023
A54: =$A$48 -> 6 | B54: Operating expenditure, 2024/25 | C54: 21127.6113 | D54: 46239.73787 | E54: 4030.604862 | F54: 15333.11227 | G54: 11935.25806 | H54: 5463.106639 | I54: 12409.24676 | J54: 2372.995228 | K54: 13487.11339 | L54: 69504.64817 | M54: 8820.378022 | N54: 87139.19481 | O54: 14680.81739 | P54: 19636.11582 | Q54: 47488.35882 | R54: 147804.197 | S54: 41059.39379 | U54: =[2]Inputs!B41 -> 21127.6113 | V54: =[2]Inputs!C41 -> 46239.73787 | W54: =[2]Inputs!D41 -> 4030.604862 | X54: =[2]Inputs!E41 -> 15333.11227 | Y54: =[2]Inputs!F41 -> 11935.25806 | Z54: =[2]Inputs!G41 -> 5463.106639 | AA54: =[2]Inputs!H41 -> 12409.24676 | AB54: =[2]Inputs!I41 -> 2372.995228 | AC54: =[2]Inputs!J41 -> 13487.11339 | AD54: =[2]Inputs!K41 -> 69504.64817 | AE54: =[2]Inputs!L41 -> 8820.378022 | AF54: =[2]Inputs!M41 -> 87139.19481 | AG54: =[2]Inputs!N41 -> 14680.81739 | AH54: =[2]Inputs!O41 -> 19636.11582 | AI54: =[2]Inputs!P41 -> 47488.35882 | AJ54: =[2]Inputs!Q41 -> 147804.197 | AK54: =[2]Inputs!R41 -> 41059.39379 | AM54: 16401.80378 | AN54: 24970.93416 | AO54: 4964.125222 | AP54: 9657.178814 | AQ54: 8969.795329 | AR54: 6044.660845 | AS54: 8542.917001 | AT54: 2789.002432 | AU54: 10307.19432 | AV54: 60005.91054 | AW54: 8328.508895 | AX54: 79740.56708 | AY54: 11640.20185 | AZ54: 15257.40323 | BA54: 40032.18205 | BB54: 125606.6569 | BC54: 34788.813
B55: Constant price revenue growth | U55: Zeroed
A56: =A16+1 -> 13 | B56: ="Constant price revenue growth, " & N19 -> Constant price revenue growth, 2018/19 | C56: =IF($C$5<$A56,AM56,U56) -> 0 | D56: 0 | E56: 0 | F56: 0 | G56: 0 | H56: 0 | I56: 0 | J56: 0 | K56: 0 | L56: 0 | M56: =IF($C$5<$A56,AW56,AE56) -> 0 | N56: 0 | O56: 0 | P56: 0 | Q56: 0 | R56: 0 | S56: 0 | U56: 0 | V56: 0 | W56: 0 | X56: 0 | Y56: 0 | Z56: 0 | AA56: 0 | AB56: 0 | AC56: 0 | AD56: 0 | AE56: 0 | AF56: 0 | AG56: 0 | AH56: 0 | AI56: 0 | AJ56: 0 | AK56: 0 | AM56: 0.002675944408 | AN56: 0.005535558248 | AO56: -0.006341551611 | AP56: 0.003446041706 | AQ56: -0.002637151304 | AR56: 0.001687457113 | AS56: -0.0002253440684 | AT56: 0.006123150165 | AU56: 0.005028110679 | AV56: 0 | AW56: 0.003684692078 | AX56: -0.000543011752 | AY56: -0.005780116331 | AZ56: -0.003590068381 | BA56: 0.002795717346 | BB56: 0.01031730739 | BC56: 0.004460946114
A57: =$A$56 -> 13 | B57: Constant price revenue growth, 2019/20 | C57: 0 | D57: 0 | E57: 0 | F57: 0 | G57: 0 | H57: 0 | I57: 0 | J57: 0 | K57: 0 | L57: 0 | M57: 0 | N57: 0 | O57: 0 | P57: 0 | Q57: 0 | R57: 0 | S57: 0 | U57: 0 | V57: 0 | W57: 0 | X57: 0 | Y57: 0 | Z57: 0 | AA57: 0 | AB57: 0 | AC57: 0 | AD57: 0 | AE57: 0 | AF57: 0 | AG57: 0 | AH57: 0 | AI57: 0 | AJ57: 0 | AK57: 0 | AM57: 0.002675944408 | AN57: 0.005535558248 | AO57: -0.006341551611 | AP57: 0.003446041706 | AQ57: -0.002637151304 | AR57: 0.001687457113 | AS57: -0.0002253440684 | AT57: 0.006123150165 | AU57: 0.005028110679 | AV57: 0 | AW57: 0.003684692078 | AX57: -0.000543011752 | AY57: -0.005780116331 | AZ57: -0.003590068381 | BA57: 0.002795717346 | BB57: 0.01031730739 | BC57: 0.004460946114
A58: 13 | B58: Constant price revenue growth, 2020/21 | C58: 0 | D58: 0 | E58: 0 | F58: 0 | G58: 0 | H58: 0 | I58: 0 | J58: 0 | K58: 0 | L58: 0 | M58: 0 | N58: 0 | O58: 0 | P58: 0 | Q58: 0 | R58: 0 | S58: 0 | U58: 0 | V58: 0 | W58: 0 | X58: 0 | Y58: 0 | Z58: 0 | AA58: 0 | AB58: 0 | AC58: 0 | AD58: 0 | AE58: 0 | AF58: 0 | AG58: 0 | AH58: 0 | AI58: 0 | AJ58: 0 | AK58: 0 | AM58: 0.002675944408 | AN58: 0.005535558248 | AO58: -0.006341551611 | AP58: 0.003446041706 | AQ58: -0.002637151304 | AR58: 0.001687457113 | AS58: -0.0002253440684 | AT58: 0.006123150165 | AU58: 0.005028110679 | AV58: 0 | AW58: 0.003684692078 | AX58: -0.000543011752 | AY58: -0.005780116331 | AZ58: -0.003590068381 | BA58: 0.002795717346 | BB58: 0.01031730739 | BC58: 0.004460946114
A59: 13 | B59: Constant price revenue growth, 2021/22 | C59: 0 | D59: 0 | E59: 0 | F59: 0 | G59: 0 | H59: 0 | I59: 0 | J59: 0 | K59: 0 | L59: 0 | M59: 0 | N59: 0 | O59: 0 | P59: 0 | Q59: 0 | R59: 0 | S59: 0 | U59: 0 | V59: 0 | W59: 0 | X59: 0 | Y59: 0 | Z59: 0 | AA59: 0 | AB59: 0 | AC59: 0 | AD59: 0 | AE59: 0 | AF59: 0 | AG59: 0 | AH59: 0 | AI59: 0 | AJ59: 0 | AK59: 0 | AM59: 0.002576432369 | AN59: 0.005667850681 | AO59: -0.006341551611 | AP59: 0.003247879157 | AQ59: -0.001944049735 | AR59: 0.001223398738 | AS59: 0.0002018015167 | AT59: 0.005849077273 | AU59: 0.004713043328 | AV59: 0 | AW59: 0.003388169276 | AX59: 0.0005861251022 | AY59: -0.004981761151 | AZ59: -0.0024329105 | BA59: 0.002993932414 | BB59: 0.01097898621 | BC59: 0.004471688252
A60: 13 | B60: Constant price revenue growth, 2022/23 | C60: 0 | D60: 0 | E60: 0 | F60: 0 | G60: 0 | H60: 0 | I60: 0 | J60: 0 | K60: 0 | L60: 0 | M60: 0 | N60: 0 | O60: 0 | P60: 0 | Q60: 0 | R60: 0 | S60: 0 | U60: 0 | V60: 0 | W60: 0 | X60: 0 | Y60: 0 | Z60: 0 | AA60: 0 | AB60: 0 | AC60: 0 | AD60: 0 | AE60: 0 | AF60: 0 | AG60: 0 | AH60: 0 | AI60: 0 | AJ60: 0 | AK60: 0 | AM60: 0.002576432369 | AN60: 0.005667850681 | AO60: -0.006341551611 | AP60: 0.003247879157 | AQ60: -0.001944049735 | AR60: 0.001223398738 | AS60: 0.0002018015167 | AT60: 0.005849077273 | AU60: 0.004713043328 | AV60: 0 | AW60: 0.003388169276 | AX60: 0.0005861251022 | AY60: -0.004981761151 | AZ60: -0.0024329105 | BA60: 0.002993932414 | BB60: 0.01097898621 | BC60: 0.004471688252
A61: 13 | B61: Constant price revenue growth, 2023/24 | C61: 0 | D61: 0 | E61: 0 | F61: 0 | G61: 0 | H61: 0 | I61: 0 | J61: 0 | K61: 0 | L61: 0 | M61: 0 | N61: 0 | O61: 0 | P61: 0 | Q61: 0 | R61: 0 | S61: 0 | U61: 0 | V61: 0 | W61: 0 | X61: 0 | Y61: 0 | Z61: 0 | AA61: 0 | AB61: 0 | AC61: 0 | AD61: 0 | AE61: 0 | AF61: 0 | AG61: 0 | AH61: 0 | AI61: 0 | AJ61: 0 | AK61: 0 | AM61: 0.002576432369 | AN61: 0.005667850681 | AO61: -0.006341551611 | AP61: 0.003247879157 | AQ61: -0.001944049735 | AR61: 0.001223398738 | AS61: 0.0002018015167 | AT61: 0.005849077273 | AU61: 0.004713043328 | AV61: 0 | AW61: 0.003388169276 | AX61: 0.0005861251022 | AY61: -0.004981761151 | AZ61: -0.0024329105 | BA61: 0.002993932414 | BB61: 0.01097898621 | BC61: 0.004471688252
A62: 13 | B62: Constant price revenue growth, 2024/25 | C62: 0 | D62: 0 | E62: 0 | F62: 0 | G62: 0 | H62: 0 | I62: 0 | J62: 0 | K62: 0 | L62: 0 | M62: 0 | N62: 0 | O62: 0 | P62: 0 | Q62: 0 | R62: 0 | S62: 0 | U62: 0 | V62: 0 | W62: 0 | X62: 0 | Y62: 0 | Z62: 0 | AA62: 0 | AB62: 0 | AC62: 0 | AD62: 0 | AE62: 0 | AF62: 0 | AG62: 0 | AH62: 0 | AI62: 0 | AJ62: 0 | AK62: 0 | AM62: 0.002576432369 | AN62: 0.005667850681 | AO62: -0.006341551611 | AP62: 0.003247879157 | AQ62: -0.001944049735 | AR62: 0.001223398738 | AS62: 0.0002018015167 | AT62: 0.005849077273 | AU62: 0.004713043328 | AV62: 0 | AW62: 0.003388169276 | AX62: 0.0005861251022 | AY62: -0.004981761151 | AZ62: -0.0024329105 | BA62: 0.002993932414 | BB62: 0.01097898621 | BC62: 0.004471688252
B63: Value of commissioned assets | U63: VCA ex AMPs
A64: =A37+1 -> 4 | B64: ="Value of commissioned assets, " & N19 -> Value of commissioned assets, 2018/19 | C64: =IF($C$5<$A64,AM64,U64) -> 21003.3359 | D64: 96115.46671 | E64: 3568.138988 | F64: 25588.00668 | G64: 12171.17964 | H64: 4750.08918 | I64: 6429.087178 | J64: 1683 | K64: 13532 | L64: 89138 | M64: =IF($C$5<$A64,AW64,AE64) -> 17452.59507 | N64: 220284 | O64: 17591.63888 | P64: 22622.20291 | Q64: 44116.6044 | R64: 181452 | S64: 40675.69359 | U64: =[2]Inputs!B43 -> 21003.3359 | V64: =[2]Inputs!C43 -> 96115.46671 | W64: =[2]Inputs!D43 -> 3568.138988 | X64: =[2]Inputs!E43 -> 25588.00668 | Y64: =[2]Inputs!F43 -> 12171.17964 | Z64: =[2]Inputs!G43 -> 4750.08918 | AA64: =[2]Inputs!H43 -> 6429.087178 | AB64: =[2]Inputs!I43 -> 1683 | AC64: =[2]Inputs!J43 -> 13532 | AD64: =[2]Inputs!K43 -> 89138 | AE64: =[2]Inputs!L43 -> 17452.59507 | AF64: =[2]Inputs!M43 -> 220284 | AG64: =[2]Inputs!N43 -> 17591.63888 | AH64: =[2]Inputs!O43 -> 22622.20291 | AI64: =[2]Inputs!P43 -> 44116.6044 | AJ64: =[2]Inputs!Q43 -> 181452 | AK64: =[2]Inputs!R43 -> 40675.69359 | AM64: 14228.64862 | AN64: 11832 | AO64: 2286 | AP64: 16115 | AQ64: 4819.819381 | AR64: 4450.069 | AS64: 9083.337035 | AT64: 12561.33285 | AU64: 5601.59414 | AV64: 77224 | AW64: 9490.876 | AX64: 98687.17964 | AY64: 9425 | AZ64: 18906.10256 | BA64: 39348.76659 | BB64: 149212 | BC64: 31580.53291
A65: =$A$64 -> 4 | B65: Value of commissioned assets, 2019/20 | C65: 10680.654 | D65: 75591.46229 | E65: 3757.937584 | F65: 21189.32363 | G65: 11640.21012 | H65: 1899.110302 | I65: 7324.652052 | J65: 1345.32 | K65: 12803 | L65: 59334 | M65: 16885.66094 | N65: 166854 | O65: 16746.31471 | P65: 25001.25727 | Q65: 44601.05877 | R65: 179966 | S65: 45090.89669 | U65: =[2]Inputs!B44 -> 10680.654 | V65: =[2]Inputs!C44 -> 75591.46229 | W65: =[2]Inputs!D44 -> 3757.937584 | X65: =[2]Inputs!E44 -> 21189.32363 | Y65: =[2]Inputs!F44 -> 11640.21012 | Z65: =[2]Inputs!G44 -> 1899.110302 | AA65: =[2]Inputs!H44 -> 7324.652052 | AB65: =[2]Inputs!I44 -> 1345.32 | AC65: =[2]Inputs!J44 -> 12803 | AD65: =[2]Inputs!K44 -> 59334 | AE65: =[2]Inputs!L44 -> 16885.66094 | AF65: =[2]Inputs!M44 -> 166854 | AG65: =[2]Inputs!N44 -> 16746.31471 | AH65: =[2]Inputs!O44 -> 25001.25727 | AI65: =[2]Inputs!P44 -> 44601.05877 | AJ65: =[2]Inputs!Q44 -> 179966 | AK65: =[2]Inputs!R44 -> 45090.89669 | AM65: 12882.83751 | AN65: 23934.64712 | AO65: 3044.087924 | AP65: 15357.72125 | AQ65: 20464.63626 | AR65: 11508.12701 | AS65: 9534.455725 | AT65: 826.7746915 | AU65: 16593.80599 | AV65: 87576.77527 | AW65: 10257.9634 | AX65: 109227.6454 | AY65: 13561.71694 | AZ65: 25141.12742 | BA65: 48984.09606 | BB65: 162927.3575 | BC65: 33380.77505
A66: 4 | B66: Value of commissioned assets, 2020/21 | C66: 16681.11344 | D66: 29927.53016 | E66: 2840.160078 | F66: 19238.7558 | G66: 8521.103953 | H66: 4512.976058 | I66: 8241.896502 | J66: 1491.012419 | K66: 5449.356954 | L66: 60621.18221 | M66: 14983.40975 | O66: 12186.89563 | P66: 22807.15378 | Q66: 45181.92748 | R66: 169613.4004 | S66: 42385.314 | U66: =[2]Inputs!B45 -> 16681.11344 | V66: =[2]Inputs!C45 -> 29927.53016 | W66: =[2]Inputs!D45 -> 2840.160078 | X66: =[2]Inputs!E45 -> 19238.7558 | Y66: =[2]Inputs!F45 -> 8521.103953 | Z66: =[2]Inputs!G45 -> 4512.976058 | AA66: =[2]Inputs!H45 -> 8241.896502 | AB66: =[2]Inputs!I45 -> 1491.012419 | AC66: =[2]Inputs!J45 -> 5449.356954 | AD66: =[2]Inputs!K45 -> 60621.18221 | AE66: =[2]Inputs!L45 -> 14983.40975 | AF66: =[2]Inputs!M45 ->  | AG66: =[2]Inputs!N45 -> 12186.89563 | AH66: =[2]Inputs!O45 -> 22807.15378 | AI66: =[2]Inputs!P45 -> 45181.92748 | AJ66: =[2]Inputs!Q45 -> 169613.4004 | AK66: =[2]Inputs!R45 -> 42385.314 | AM66: 9564.482643 | AN66: 26256.21724 | AO66: 3367.315849 | AP66: 16033.80447 | AQ66: 9892.956222 | AR66: 5476.030568 | AS66: 8231.471535 | AT66: 823.8400499 | AU66: 6793.220378 | AV66: 82150.6763 | AW66: 11238.73288 | AX66: 94624.73982 | AY66: 14358.4668 | AZ66: 17151.59253 | BA66: 47734.63517 | BB66: 150980.1624 | BC66: 27257.41116
A67: 4 | B67: Value of commissioned assets, 2021/22 | C67: 16097.18299 | D67: 30649.84492 | E67: 2668.165337 | F67: 19088.25832 | G67: 7729.775832 | H67: 3804.700931 | I67: 6286.986161 | J67: 1617.788593 | K67: 6787.65066 | L67: 64785.6191 | M67: 15216.95455 | O67: 12286.82356 | P67: 16698.18597 | Q67: 44799.4973 | R67: 190827.1429 | S67: 31714.42059 | U67: =[2]Inputs!B46 -> 16097.18299 | V67: =[2]Inputs!C46 -> 30649.84492 | W67: =[2]Inputs!D46 -> 2668.165337 | X67: =[2]Inputs!E46 -> 19088.25832 | Y67: =[2]Inputs!F46 -> 7729.775832 | Z67: =[2]Inputs!G46 -> 3804.700931 | AA67: =[2]Inputs!H46 -> 6286.986161 | AB67: =[2]Inputs!I46 -> 1617.788593 | AC67: =[2]Inputs!J46 -> 6787.65066 | AD67: =[2]Inputs!K46 -> 64785.6191 | AE67: =[2]Inputs!L46 -> 15216.95455 | AF67: =[2]Inputs!M46 ->  | AG67: =[2]Inputs!N46 -> 12286.82356 | AH67: =[2]Inputs!O46 -> 16698.18597 | AI67: =[2]Inputs!P46 -> 44799.4973 | AJ67: =[2]Inputs!Q46 -> 190827.1429 | AK67: =[2]Inputs!R46 -> 31714.42059 | AM67: 9433.789324 | AN67: 16970.80906 | AO67: 3007.605109 | AP67: 23358.39882 | AQ67: 14592.83676 | AR67: 3338.191776 | AS67: 7417.492985 | AT67: 1018.876855 | AU67: 8524.921395 | AV67: 56147.90986 | AW67: 9728.064209 | AX67: 100364.3283 | AY67: 9993.034995 | AZ67: 20556.27527 | BA67: 38522.49864 | BB67: 156692.8814 | BC67: 28408.34119
A68: 4 | B68: Value of commissioned assets, 2022/23 | C68: 13450.52029 | D68: 30012.27049 | E68: 2700.887345 | F68: 18058.85735 | G68: 7311.317123 | H68: 4167.923621 | I68: 6750.024192 | J68: 1652.103257 | K68: 6445.362832 | L68: 69550.18462 | M68: 15966.67854 | O68: 11928.51651 | P68: 16364.169 | Q68: 44115.77441 | R68: 204070.2506 | S68: 33652.83131 | U68: =[2]Inputs!B47 -> 13450.52029 | V68: =[2]Inputs!C47 -> 30012.27049 | W68: =[2]Inputs!D47 -> 2700.887345 | X68: =[2]Inputs!E47 -> 18058.85735 | Y68: =[2]Inputs!F47 -> 7311.317123 | Z68: =[2]Inputs!G47 -> 4167.923621 | AA68: =[2]Inputs!H47 -> 6750.024192 | AB68: =[2]Inputs!I47 -> 1652.103257 | AC68: =[2]Inputs!J47 -> 6445.362832 | AD68: =[2]Inputs!K47 -> 69550.18462 | AE68: =[2]Inputs!L47 -> 15966.67854 | AF68: =[2]Inputs!M47 ->  | AG68: =[2]Inputs!N47 -> 11928.51651 | AH68: =[2]Inputs!O47 -> 16364.169 | AI68: =[2]Inputs!P47 -> 44115.77441 | AJ68: =[2]Inputs!Q47 -> 204070.2506 | AK68: =[2]Inputs!R47 -> 33652.83131 | AM68: 10826.83723 | AN68: 15873.94714 | AO68: 3224.491208 | AP68: 18899.62755 | AQ68: 8224.041711 | AR68: 2897.037824 | AS68: 6974.725366 | AT68: 1489.990013 | AU68: 10739.30505 | AV68: 49385.37545 | AW68: 10573.50126 | AX68: 115022.3328 | AY68: 10050.04354 | AZ68: 17830.15053 | BA68: 37410.93703 | BB68: 160728.9345 | BC68: 34853.11279
A69: 4 | B69: Value of commissioned assets, 2023/24 | C69: 14062.53155 | D69: 28159.61044 | E69: 3232.563804 | F69: 15819.04408 | G69: 8261.253855 | H69: 4125.952791 | I69: 7480.150931 | J69: 1843.280188 | K69: 4310.233232 | L69: 66466.17943 | M69: 16984.19237 | O69: 11690.56427 | P69: 16657.70283 | Q69: 49989.79844 | R69: 199263.7933 | S69: 35350.25396 | U69: =[2]Inputs!B48 -> 14062.53155 | V69: =[2]Inputs!C48 -> 28159.61044 | W69: =[2]Inputs!D48 -> 3232.563804 | X69: =[2]Inputs!E48 -> 15819.04408 | Y69: =[2]Inputs!F48 -> 8261.253855 | Z69: =[2]Inputs!G48 -> 4125.952791 | AA69: =[2]Inputs!H48 -> 7480.150931 | AB69: =[2]Inputs!I48 -> 1843.280188 | AC69: =[2]Inputs!J48 -> 4310.233232 | AD69: =[2]Inputs!K48 -> 66466.17943 | AE69: =[2]Inputs!L48 -> 16984.19237 | AF69: =[2]Inputs!M48 ->  | AG69: =[2]Inputs!N48 -> 11690.56427 | AH69: =[2]Inputs!O48 -> 16657.70283 | AI69: =[2]Inputs!P48 -> 49989.79844 | AJ69: =[2]Inputs!Q48 -> 199263.7933 | AK69: =[2]Inputs!R48 -> 35350.25396 | AM69: 8006.435746 | AN69: 17293.50685 | AO69: 3016.546692 | AP69: 18319.39753 | AQ69: 6679.400295 | AR69: 2148.562666 | AS69: 6499.38455 | AT69: 1594.891489 | AU69: 7354.01623 | AV69: 38675.87694 | AW69: 10734.53401 | AX69: 114441.6798 | AY69: 9638.945259 | AZ69: 16338.21022 | BA69: 37365.44531 | BB69: 166664.4912 | BC69: 31196.83322
A70: 4 | B70: Value of commissioned assets, 2024/25 | C70: 11411.98307 | D70: 29245.39047 | E70: 3322.328046 | F70: 16277.87495 | G70: 9078.485682 | H70: 4192.018008 | I70: 8079.859231 | J70: 1670.123921 | K70: 4688.713208 | L70: 78731.04057 | M70: 16670.84603 | O70: 12254.51766 | P70: 17735.53137 | Q70: 48856.4802 | R70: 189811.2063 | S70: 38418.87936 | U70: =[2]Inputs!B49 -> 11411.98307 | V70: =[2]Inputs!C49 -> 29245.39047 | W70: =[2]Inputs!D49 -> 3322.328046 | X70: =[2]Inputs!E49 -> 16277.87495 | Y70: =[2]Inputs!F49 -> 9078.485682 | Z70: =[2]Inputs!G49 -> 4192.018008 | AA70: =[2]Inputs!H49 -> 8079.859231 | AB70: =[2]Inputs!I49 -> 1670.123921 | AC70: =[2]Inputs!J49 -> 4688.713208 | AD70: =[2]Inputs!K49 -> 78731.04057 | AE70: =[2]Inputs!L49 -> 16670.84603 | AF70: =[2]Inputs!M49 ->  | AG70: =[2]Inputs!N49 -> 12254.51766 | AH70: =[2]Inputs!O49 -> 17735.53137 | AI70: =[2]Inputs!P49 -> 48856.4802 | AJ70: =[2]Inputs!Q49 -> 189811.2063 | AK70: =[2]Inputs!R49 -> 38418.87936 | AM70: 8895.768951 | AN70: 13134.16447 | AO70: 2820.140331 | AP70: 13076.03175 | AQ70: 7138.793275 | AR70: 3077.723167 | AS70: 6682.349201 | AT70: 1951.968358 | AU70: 6713.104383 | AV70: 65377.66475 | AW70: 10546.22105 | AX70: 121831.9492 | AY70: 11321.9218 | AZ70: 18443.54542 | BA70: 34263.29831 | BB70: 162527.0563 | BC70: 31209.07158
B71: Disposed assets
A72: =A64+1 -> 5 | B72: ="Value of disposed assets, " & N19 -> Value of disposed assets, 2018/19 | C72: =IF($C$5<$A72,AM72,U72) -> 160.6594222 | D72: 144.78 | E72: 25.17212308 | F72: 1137.427863 | G72: 179.0675311 | H72: 119.3772106 | I72: 308.3227895 | J72: 85.73454977 | K72: 577.2377865 | L72: 1770.935018 | M72: =IF($C$5<$A72,AW72,AE72) -> 332.9106814 | N72: 11393.89328 | O72: 536.7708384 | P72: 29.82463074 | Q72: 2779.792771 | R72: 11397.60826 | S72: 4.04033003 | U72: =[2]Inputs!B51 -> 160.6594222 | V72: =[2]Inputs!C51 -> 144.78 | W72: =[2]Inputs!D51 -> 25.17212308 | X72: =[2]Inputs!E51 -> 1137.427863 | Y72: =[2]Inputs!F51 -> 179.0675311 | Z72: =[2]Inputs!G51 -> 119.3772106 | AA72: =[2]Inputs!H51 -> 308.3227895 | AB72: =[2]Inputs!I51 -> 85.73454977 | AC72: =[2]Inputs!J51 -> 577.2377865 | AD72: =[2]Inputs!K51 -> 1770.935018 | AE72: =[2]Inputs!L51 -> 332.9106814 | AF72: =[2]Inputs!M51 -> 11393.89328 | AG72: =[2]Inputs!N51 -> 536.7708384 | AH72: =[2]Inputs!O51 -> 29.82463074 | AI72: =[2]Inputs!P51 -> 2779.792771 | AJ72: =[2]Inputs!Q51 -> 11397.60826 | AK72: =[2]Inputs!R51 -> 4.04033003 | AM72: 168 | AN72: 129 | AO72: 0 | AP72: 1614 | AQ72: 146.0962555 | AR72: 214 | AS72: 100 | AT72: 0 | AU72: 274 | AV72: 25717 | AW72: 19 | AX72: 8275 | AY72: 14 | AZ72: 63 | BA72: 5461 | BB72: 8447 | BC72: 371
A73: =$A$72 -> 5 | B73: Value of disposed assets, 2019/20 | C73: 163.3906324 | D73: 147.24126 | E73: 25.60004918 | F73: 1156.764137 | G73: 182.1116791 | H73: 121.4066232 | I73: 313.5642769 | J73: 87.19203711 | K73: 587.0508288 | L73: 1801.040913 | M73: 338.570163 | N73: 11587.58947 | O73: 545.8959426 | P73: 30.33164946 | Q73: 2827.049248 | R73: 11591.3676 | S73: 4.10901564 | U73: =[2]Inputs!B52 -> 163.3906324 | V73: =[2]Inputs!C52 -> 147.24126 | W73: =[2]Inputs!D52 -> 25.60004918 | X73: =[2]Inputs!E52 -> 1156.764137 | Y73: =[2]Inputs!F52 -> 182.1116791 | Z73: =[2]Inputs!G52 -> 121.4066232 | AA73: =[2]Inputs!H52 -> 313.5642769 | AB73: =[2]Inputs!I52 -> 87.19203711 | AC73: =[2]Inputs!J52 -> 587.0508288 | AD73: =[2]Inputs!K52 -> 1801.040913 | AE73: =[2]Inputs!L52 -> 338.570163 | AF73: =[2]Inputs!M52 -> 11587.58947 | AG73: =[2]Inputs!N52 -> 545.8959426 | AH73: =[2]Inputs!O52 -> 30.33164946 | AI73: =[2]Inputs!P52 -> 2827.049248 | AJ73: =[2]Inputs!Q52 -> 11591.3676 | AK73: =[2]Inputs!R52 -> 4.10901564 | AM73: 326.9529925 | AN73: 234.7904488 | AO73: 0 | AP73: 1363.244145 | AQ73: 359.6224043 | AR73: 246.8607898 | AS73: 336.3032778 | AT73: 0 | AU73: 376.4130067 | AV73: 6551.039112 | AW73: 65.984107 | AX73: 8205.943466 | AY73: 16.39256765 | AZ73: 32.23039123 | BA73: 1659.99242 | BB73: 9355.212795 | BC73: 94.27768896
A74: =$A$72 -> 5 | B74: Value of disposed assets, 2020/21 | C74: 166.8218357 | D74: 150.3333265 | E74: 26.13765021 | F74: 1181.056183 | G74: 185.9360244 | H74: 123.9561623 | I74: 320.1491267 | J74: 89.02306989 | K74: 599.3788962 | L74: 1838.862773 | M74: 345.6801364 | N74: 11830.92884 | O74: 557.3597574 | P74: 30.9686141 | Q74: 2886.417282 | R74: 11834.78632 | S74: 4.195304969 | U74: =[2]Inputs!B53 -> 166.8218357 | V74: =[2]Inputs!C53 -> 150.3333265 | W74: =[2]Inputs!D53 -> 26.13765021 | X74: =[2]Inputs!E53 -> 1181.056183 | Y74: =[2]Inputs!F53 -> 185.9360244 | Z74: =[2]Inputs!G53 -> 123.9561623 | AA74: =[2]Inputs!H53 -> 320.1491267 | AB74: =[2]Inputs!I53 -> 89.02306989 | AC74: =[2]Inputs!J53 -> 599.3788962 | AD74: =[2]Inputs!K53 -> 1838.862773 | AE74: =[2]Inputs!L53 -> 345.6801364 | AF74: =[2]Inputs!M53 -> 11830.92884 | AG74: =[2]Inputs!N53 -> 557.3597574 | AH74: =[2]Inputs!O53 -> 30.9686141 | AI74: =[2]Inputs!P53 -> 2886.417282 | AJ74: =[2]Inputs!Q53 -> 11834.78632 | AK74: =[2]Inputs!R53 -> 4.195304969 | AM74: 332.6320767 | AN74: 238.8686948 | AO74: 0 | AP74: 1386.923324 | AQ74: 365.8689473 | AR74: 251.1486943 | AS74: 342.1447739 | AT74: 0 | AU74: 382.9511979 | AV74: 6664.828873 | AW74: 67.13023292 | AX74: 8348.478464 | AY74: 16.67730208 | AZ74: 32.79022433 | BA74: 1688.826035 | BB74: 9517.710288 | BC74: 95.91526668
A75: 5 | B75: Value of disposed assets, 2021/22 | C75: 170.3250942 | D75: 153.4903263 | E75: 26.68654086 | F75: 1205.858363 | G75: 189.8406809 | H75: 126.5592417 | I75: 326.8722584 | J75: 90.89255436 | K75: 611.9658531 | L75: 1877.478891 | M75: 352.9394193 | N75: 12079.37835 | O75: 569.0643123 | P75: 31.618955 | Q75: 2947.032045 | R75: 12083.31683 | S75: 4.283406373 | U75: =[2]Inputs!B54 -> 170.3250942 | V75: =[2]Inputs!C54 -> 153.4903263 | W75: =[2]Inputs!D54 -> 26.68654086 | X75: =[2]Inputs!E54 -> 1205.858363 | Y75: =[2]Inputs!F54 -> 189.8406809 | Z75: =[2]Inputs!G54 -> 126.5592417 | AA75: =[2]Inputs!H54 -> 326.8722584 | AB75: =[2]Inputs!I54 -> 90.89255436 | AC75: =[2]Inputs!J54 -> 611.9658531 | AD75: =[2]Inputs!K54 -> 1877.478891 | AE75: =[2]Inputs!L54 -> 352.9394193 | AF75: =[2]Inputs!M54 -> 12079.37835 | AG75: =[2]Inputs!N54 -> 569.0643123 | AH75: =[2]Inputs!O54 -> 31.618955 | AI75: =[2]Inputs!P54 -> 2947.032045 | AJ75: =[2]Inputs!Q54 -> 12083.31683 | AK75: =[2]Inputs!R54 -> 4.283406373 | AM75: 339.6633239 | AN75: 243.9179517 | AO75: 0 | AP75: 1416.240403 | AQ75: 373.6027625 | AR75: 256.4575285 | AS75: 349.3771024 | AT75: 0 | AU75: 391.0461013 | AV75: 6805.711435 | AW75: 68.54924598 | AX75: 8524.950367 | AY75: 17.02983041 | AZ75: 33.48335103 | BA75: 1724.524797 | BB75: 9718.89766 | BC75: 97.94274386
A76: 5 | B76: Value of disposed assets, 2022/23 | C76: 173.8451462 | D76: 156.6624597 | E76: 27.23806271 | F76: 1230.779436 | G76: 193.7640549 | H76: 129.1747993 | I76: 333.6276184 | J76: 92.77100048 | K76: 624.6131473 | L76: 1916.280121 | M76: 360.2335006 | N76: 12329.01884 | O76: 580.8249748 | P76: 32.2724134 | Q76: 3007.937374 | R76: 12333.03871 | S76: 4.371930105 | U76: =[2]Inputs!B55 -> 173.8451462 | V76: =[2]Inputs!C55 -> 156.6624597 | W76: =[2]Inputs!D55 -> 27.23806271 | X76: =[2]Inputs!E55 -> 1230.779436 | Y76: =[2]Inputs!F55 -> 193.7640549 | Z76: =[2]Inputs!G55 -> 129.1747993 | AA76: =[2]Inputs!H55 -> 333.6276184 | AB76: =[2]Inputs!I55 -> 92.77100048 | AC76: =[2]Inputs!J55 -> 624.6131473 | AD76: =[2]Inputs!K55 -> 1916.280121 | AE76: =[2]Inputs!L55 -> 360.2335006 | AF76: =[2]Inputs!M55 -> 12329.01884 | AG76: =[2]Inputs!N55 -> 580.8249748 | AH76: =[2]Inputs!O55 -> 32.2724134 | AI76: =[2]Inputs!P55 -> 3007.937374 | AJ76: =[2]Inputs!Q55 -> 12333.03871 | AK76: =[2]Inputs!R55 -> 4.371930105 | AM76: 347.0236046 | AN76: 249.2034932 | AO76: 0 | AP76: 1446.9294 | AQ76: 381.6984884 | AR76: 262.0147943 | AS76: 356.9478743 | AT76: 0 | AU76: 399.519813 | AV76: 6953.186723 | AW76: 70.03466302 | AX76: 8709.680431 | AY76: 17.39885563 | AZ76: 34.20891321 | BA76: 1761.894114 | BB76: 9929.499776 | BC76: 100.0650987
A77: 5 | B77: Value of disposed assets, 2023/24 | C77: 177.3799975 | D77: 159.8479297 | E77: 27.79190332 | F77: 1255.805285 | G77: 197.7039241 | H77: 131.8013536 | I77: 340.4113799 | J77: 94.65734416 | K77: 637.3136147 | L77: 1955.244484 | M77: 367.5582485 | N77: 12579.70889 | O77: 592.6350826 | P77: 32.92861914 | Q77: 3069.098767 | R77: 12583.8105 | S77: 4.460826017 | U77: =[2]Inputs!B56 -> 177.3799975 | V77: =[2]Inputs!C56 -> 159.8479297 | W77: =[2]Inputs!D56 -> 27.79190332 | X77: =[2]Inputs!E56 -> 1255.805285 | Y77: =[2]Inputs!F56 -> 197.7039241 | Z77: =[2]Inputs!G56 -> 131.8013536 | AA77: =[2]Inputs!H56 -> 340.4113799 | AB77: =[2]Inputs!I56 -> 94.65734416 | AC77: =[2]Inputs!J56 -> 637.3136147 | AD77: =[2]Inputs!K56 -> 1955.244484 | AE77: =[2]Inputs!L56 -> 367.5582485 | AF77: =[2]Inputs!M56 -> 12579.70889 | AG77: =[2]Inputs!N56 -> 592.6350826 | AH77: =[2]Inputs!O56 -> 32.92861914 | AI77: =[2]Inputs!P56 -> 3069.098767 | AJ77: =[2]Inputs!Q56 -> 12583.8105 | AK77: =[2]Inputs!R56 -> 4.460826017 | AM77: 354.3502774 | AN77: 254.4649003 | AO77: 0 | AP77: 1477.478268 | AQ77: 389.7572484 | AR77: 267.5466851 | AS77: 364.4840772 | AT77: 0 | AU77: 407.9548327 | AV77: 7099.988621 | AW77: 71.51329748 | AX77: 8893.566996 | AY77: 17.76619584 | AZ77: 34.93116239 | BA77: 1799.092799 | BB77: 10139.14026 | BC77: 102.1777625
A78: 5 | B78: Value of disposed assets, 2024/25 | C78: 180.9275975 | D78: 163.0448883 | E78: 28.34774138 | F78: 1280.92139 | G78: 201.6580025 | H78: 134.4373807 | I78: 347.2196075 | J78: 96.55049104 | K78: 650.059887 | L78: 1994.349373 | M78: 374.9094135 | N78: 12831.30306 | O78: 604.4877843 | P78: 33.58719152 | Q78: 3130.480743 | R78: 12835.48671 | S78: 4.550042537 | U78: =[2]Inputs!B57 -> 180.9275975 | V78: =[2]Inputs!C57 -> 163.0448883 | W78: =[2]Inputs!D57 -> 28.34774138 | X78: =[2]Inputs!E57 -> 1280.92139 | Y78: =[2]Inputs!F57 -> 201.6580025 | Z78: =[2]Inputs!G57 -> 134.4373807 | AA78: =[2]Inputs!H57 -> 347.2196075 | AB78: =[2]Inputs!I57 -> 96.55049104 | AC78: =[2]Inputs!J57 -> 650.059887 | AD78: =[2]Inputs!K57 -> 1994.349373 | AE78: =[2]Inputs!L57 -> 374.9094135 | AF78: =[2]Inputs!M57 -> 12831.30306 | AG78: =[2]Inputs!N57 -> 604.4877843 | AH78: =[2]Inputs!O57 -> 33.58719152 | AI78: =[2]Inputs!P57 -> 3130.480743 | AJ78: =[2]Inputs!Q57 -> 12835.48671 | AK78: =[2]Inputs!R57 -> 4.550042537 | AM78: 361.6344602 | AN78: 259.6957946 | AO78: 0 | AP78: 1507.849972 | AQ78: 397.7692727 | AR78: 273.0464944 | AS78: 371.9765749 | AT78: 0 | AU78: 416.3409347 | AV78: 7245.939163 | AW78: 72.98335681 | AX78: 9076.387137 | AY78: 18.1314057 | AZ78: 35.64922299 | BA78: 1836.075755 | BB78: 10347.56496 | BC78: 104.2781743
B79: Other regulated income | U79: Zeroed
A80: =A48+1 -> 7 | B80: ="Other regulated income, " & N19 -> Other regulated income, 2018/19 | C80: =IF($C$5<$A80,AM80,U80) -> 0 | D80: 0 | E80: 0 | F80: 0 | G80: 0 | H80: 0 | I80: 0 | J80: 0 | K80: 0 | L80: 0 | M80: =IF($C$5<$A80,AW80,AE80) -> 0 | N80: 0 | O80: 0 | P80: 0 | Q80: 0 | R80: 0 | S80: 0 | U80: 0 | V80: 0 | W80: 0 | X80: 0 | Y80: 0 | Z80: 0 | AA80: 0 | AB80: 0 | AC80: 0 | AD80: 0 | AE80: 0 | AF80: 0 | AG80: 0 | AH80: 0 | AI80: 0 | AJ80: 0 | AK80: 0 | AM80: -141 | AN80: 2862 | AO80: 122 | AP80: 642 | AQ80: 104 | AR80: -127 | AS80: 346 | AT80: 51 | AU80: 59 | AV80: -3812 | AW80: 540 | AX80: -7879 | AY80: 11 | AZ80: 545 | BA80: -3185 | BB80: -4235 | BC80: 191
A81: =$A$80 -> 7 | B81: Other regulated income, 2019/20 | C81: 0 | D81: 0 | E81: 0 | F81: 0 | G81: 0 | H81: 0 | I81: 0 | J81: 0 | K81: 0 | L81: 0 | M81: 0 | N81: 0 | O81: 0 | P81: 0 | Q81: 0 | R81: 0 | S81: 0 | U81: 0 | V81: 0 | W81: 0 | X81: 0 | Y81: 0 | Z81: 0 | AA81: 0 | AB81: 0 | AC81: 0 | AD81: 0 | AE81: 0 | AF81: 0 | AG81: 0 | AH81: 0 | AI81: 0 | AJ81: 0 | AK81: 0 | AM81: -277.3269603 | AN81: 1955.990712 | AO81: 120.4851393 | AP81: -70.58103404 | AQ81: -79.47374045 | AR81: -95.72203404 | AS81: 102.989346 | AT81: 87.4526818 | AU81: 422.483036 | AV81: 6173.207913 | AW81: 553.215387 | AX81: -7882.586422 | AY81: 9.151828823 | AZ81: 355.1556179 | BA81: -507.629406 | BB81: -785.1401378 | BC81: 425.2561056
A82: =$A$80 -> 7 | B82: Other regulated income, 2020/21 | C82: 0 | D82: 0 | E82: 0 | F82: 0 | G82: 0 | H82: 0 | I82: 0 | J82: 0 | K82: 0 | L82: 0 | M82: 0 | N82: 0 | O82: 0 | P82: 0 | Q82: 0 | R82: 0 | S82: 0 | U82: 0 | V82: 0 | W82: 0 | X82: 0 | Y82: 0 | Z82: 0 | AA82: 0 | AB82: 0 | AC82: 0 | AD82: 0 | AE82: 0 | AF82: 0 | AG82: 0 | AH82: 0 | AI82: 0 | AJ82: 0 | AK82: 0 | AM82: -282.1440539 | AN82: 1989.965737 | AO82: 122.5779332 | AP82: -71.80700734 | AQ82: -80.85417763 | AR82: -97.38469964 | AS82: 104.7782428 | AT82: 88.97171101 | AU82: 429.821451 | AV82: 6280.43485 | AW82: 562.8245873 | AX82: -8019.504796 | AY82: 9.310793592 | AZ82: 361.324574 | BA82: -516.4467902 | BB82: -798.7778077 | BC82: 432.642688
A83: 7 | B83: Other regulated income, 2021/22 | C83: 0 | D83: 0 | E83: 0 | F83: 0 | G83: 0 | H83: 0 | I83: 0 | J83: 0 | K83: 0 | L83: 0 | M83: 0 | N83: 0 | O83: 0 | P83: 0 | Q83: 0 | R83: 0 | S83: 0 | U83: 0 | V83: 0 | W83: 0 | X83: 0 | Y83: 0 | Z83: 0 | AA83: 0 | AB83: 0 | AC83: 0 | AD83: 0 | AE83: 0 | AF83: 0 | AG83: 0 | AH83: 0 | AI83: 0 | AJ83: 0 | AK83: 0 | AM83: -288.1080746 | AN83: 2032.030054 | AO83: 125.1690115 | AP83: -73.32487904 | AQ83: -82.56329033 | AR83: -99.44323801 | AS83: 106.9930675 | AT83: 90.85241384 | AU83: 438.9071077 | AV83: 6413.192009 | AW83: 574.7216924 | AX83: -8189.022784 | AY83: 9.507607115 | AZ83: 368.9623293 | BA83: -527.3635516 | BB83: -815.6625418 | BC83: 441.7879806
A84: 7 | B84: Other regulated income, 2022/23 | C84: 0 | D84: 0 | E84: 0 | F84: 0 | G84: 0 | H84: 0 | I84: 0 | J84: 0 | K84: 0 | L84: 0 | M84: 0 | N84: 0 | O84: 0 | P84: 0 | Q84: 0 | R84: 0 | S84: 0 | U84: 0 | V84: 0 | W84: 0 | X84: 0 | Y84: 0 | Z84: 0 | AA84: 0 | AB84: 0 | AC84: 0 | AD84: 0 | AE84: 0 | AF84: 0 | AG84: 0 | AH84: 0 | AI84: 0 | AJ84: 0 | AK84: 0 | AM84: -294.3511869 | AN84: 2076.062807 | AO84: 127.8813416 | AP84: -74.91378091 | AQ84: -84.35238249 | AR84: -101.5981075 | AS84: 109.3115368 | AT84: 92.82112586 | AU84: 448.4179359 | AV84: 6552.161659 | AW84: 587.1755333 | AX84: -8366.473518 | AY84: 9.713630704 | AZ84: 376.9575001 | BA84: -538.7911727 | BB84: -833.3374123 | BC84: 451.3612354
A85: 7 | B85: Other regulated income, 2023/24 | C85: 0 | D85: 0 | E85: 0 | F85: 0 | G85: 0 | H85: 0 | I85: 0 | J85: 0 | K85: 0 | L85: 0 | M85: 0 | N85: 0 | O85: 0 | P85: 0 | Q85: 0 | R85: 0 | S85: 0 | U85: 0 | V85: 0 | W85: 0 | X85: 0 | Y85: 0 | Z85: 0 | AA85: 0 | AB85: 0 | AC85: 0 | AD85: 0 | AE85: 0 | AF85: 0 | AG85: 0 | AH85: 0 | AI85: 0 | AJ85: 0 | AK85: 0 | AM85: -300.5657925 | AN85: 2119.894503 | AO85: 130.5812869 | AP85: -76.49542767 | AQ85: -86.13330546 | AR85: -103.7431377 | AS85: 111.6194198 | AT85: 94.78084851 | AU85: 457.8853365 | AV85: 6690.496758 | AW85: 599.5725084 | AX85: -8543.113992 | AY85: 9.918713565 | AZ85: 384.9161641 | BA85: -550.1666139 | BB85: -850.9315773 | BC85: 460.8907776
A86: 7 | B86: Other regulated income, 2024/25 | C86: 0 | D86: 0 | E86: 0 | F86: 0 | G86: 0 | H86: 0 | I86: 0 | J86: 0 | K86: 0 | L86: 0 | M86: 0 | N86: 0 | O86: 0 | P86: 0 | Q86: 0 | R86: 0 | S86: 0 | U86: 0 | V86: 0 | W86: 0 | X86: 0 | Y86: 0 | Z86: 0 | AA86: 0 | AB86: 0 | AC86: 0 | AD86: 0 | AE86: 0 | AF86: 0 | AG86: 0 | AH86: 0 | AI86: 0 | AJ86: 0 | AK86: 0 | AM86: -306.7443574 | AN86: 2163.472002 | AO86: 133.2655742 | AP86: -78.0679019 | AQ86: -87.90390021 | AR86: -105.875728 | AS86: 113.9139185 | AT86: 96.72920602 | AU86: 467.2978323 | AV86: 6828.029602 | AW86: 611.8975891 | AX86: -8718.730064 | AY86: 10.12260708 | AZ86: 392.8286729 | BA86: -561.4760849 | BB86: -868.4237074 | BC86: 470.3650546
B87: Allowable notional revenue
B88: Allowable notional revenue 2014/2015 | C88: =IF($C$5<$A88,AM88,U88) -> 31278.35088 | D88: 57665.066 | E88: 9928.87278 | F88: 21449.537 | G88: 29790.56014 | H88: 13121 | I88: 21308.973 | J88: 6884.494938 | K88: 29374.553 | L88: 0 | M88: =IF($C$5<$A88,AW88,AE88) -> 25230 | N88: 244422 | O88: 38054 | P88: 33930 | Q88: 101327.41 | R88: 395990 | S88: 104846.1601 | U88: 31278.35088 | V88: 57665.066 | W88: 9928.87278 | X88: 21449.537 | Y88: 29790.56014 | Z88: 13121 | AA88: 21308.973 | AB88: 6884.494938 | AC88: 29374.553 | AD88: 0 | AE88: 25230 | AF88: 244422 | AG88: 38054 | AH88: 33930 | AI88: 101327.41 | AJ88: 395990 | AK88: 104846.1601 | AM88: 31278.35088 | AN88: 57665.066 | AO88: 9928.87278 | AP88: 29790.56014 | AQ88: 21449.537 | AR88: 13121 | AS88: 21308.973 | AT88: 6884.494938 | AU88: 29374.553 | AV88: 0 | AW88: 25230 | AX88: 244422 | AY88: 38054 | AZ88: 33930 | BA88: 101327.41 | BB88: 395990 | BC88: 104846.1601
B89: Pass-through costs 2014/15 | C89: 302.105 | D89: 1137.583 | E89: 88 | F89: 365 | G89: 358 | H89: 193 | I89: 304.7 | J89: 84 | K89: 240 | L89: 0 | M89: 235 | N89: 3076 | O89: 342 | P89: 5824 | Q89: 1271 | R89: 11551 | S89: 2907 | U89: 302.105 | V89: 1137.583 | W89: 88 | X89: 365 | Y89: 358 | Z89: 193 | AA89: 304.7 | AB89: 84 | AC89: 240 | AD89: 0 | AE89: 235 | AF89: 3076 | AG89: 342 | AH89: 5824 | AI89: 1271 | AJ89: 11551 | AK89: 2907 | AM89: 302.105 | AN89: 1137.583 | AO89: 88 | AP89: 358 | AQ89: 365 | AR89: 193 | AS89: 304.7 | AT89: 84 | AU89: 240 | AV89: 0 | AW89: 235 | AX89: 3076 | AY89: 342 | AZ89: 5824 | BA89: 1271 | BB89: 11551 | BC89: 2907
B90: Claw-back
A91: 1 | B91: Claw-back 2014/15 | C91: =IF($C$5<$A91,AM91,U91) -> 0 | D91: 0 | E91: 0 | F91: 0 | G91: 0 | H91: 0 | I91: 0 | J91: 0 | K91: 0 | L91: 0 | M91: =IF($C$5<$A91,AW91,AE91) -> 0 | N91: 0 | O91: 0 | P91: 0 | Q91: 0 | R91: 0 | S91: 0 | U91: 0 | V91: 0 | W91: 0 | X91: 0 | Y91: 0 | Z91: 0 | AA91: 0 | AB91: 0 | AC91: 0 | AD91: 0 | AE91: 0 | AF91: 0 | AG91: 0 | AH91: 0 | AI91: 0 | AJ91: 0 | AK91: 0 | AM91: 0 | AN91: 415.933 | AO91: 0 | AP91: 1143.734982 | AQ91: 34.377 | AR91: 762 | AS91: -661.997 | AT91: 474.9692774 | AU91: 2793 | AV91: 0 | AW91: 1099 | AX91: 6001 | AY91: 0 | AZ91: 0 | BA91: 0 | BB91: -15780 | BC91: 8050.85401
A92: 1 | B92: Claw-back 2015/16 | C92: 0 | D92: 0 | E92: 0 | F92: 0 | G92: 0 | H92: 0 | I92: 0 | J92: 0 | K92: 0 | L92: 0 | M92: 0 | N92: 0 | O92: 0 | P92: 0 | Q92: 0 | R92: 0 | S92: 0 | U92: 0 | V92: 0 | W92: 0 | X92: 0 | Y92: 0 | Z92: 0 | AA92: 0 | AB92: 0 | AC92: 0 | AD92: 0 | AE92: 0 | AF92: 0 | AG92: 0 | AH92: 0 | AI92: 0 | AJ92: 0 | AK92: 0 | AM92: 4983.653576 | AN92: 0 | AO92: 627.8500642 | AP92: 0 | AQ92: 0 | AR92: 0 | AS92: 0 | AT92: 0 | AU92: 0 | AV92: 0 | AW92: 0 | AX92: 0 | AY92: 0 | AZ92: 2132.183522 | BA92: 2009.417147 | BB92: 0 | BC92: 0

Sheet EDB data
A1: Inputs for the selected distributor | H1: =EDB_Name -> Total for selected EDBs
A2: Data from the Inputs sheet that relates to the selected distributor. The distributor's name is user-selected in cell C4.
A3: Distributor | C3: Scenario
A4: Name | C4: =Waterfall!D3 -> Total for selected EDBs
A5: Distributor number | C5: =Reconciliation!C6 -> 14
A6: Distributor number (for output data table) | C6: =HLOOKUP(EDB_Name,Inputs!$C$28:$S$29,2) -> 14
A8: General data
A9: Non business-specific single inputs | B9: Value
A10: =Inputs!B22 -> Vanilla WACC (67th percentile) | B10: =Inputs!C22 -> 0.0513
A11: =Inputs!B23 -> Cost of debt | B11: =Inputs!C23 -> 0.0361
A12: =Inputs!B24 -> Leverage | B12: =Inputs!C24 -> 0.42
A13: =Inputs!B25 -> Years of remaining life for newly commissioned assets | B13: =Inputs!C25 -> 44 | C13: years
A14: =Inputs!B26 -> Industry-wide X factor | B14: =Inputs!C26 -> 0
A15: =Inputs!B18 -> Days in a year | B15: =Inputs!C18 -> 365 | C15: days
A16: =Inputs!B19 -> Days from mid-year to year-end | B16: =Inputs!C19 -> 182 | C16: days
A17: =Inputs!B20 -> Days from revenue date to year-end | B17: =Inputs!C20 -> 148 | C17: days
A18: =Inputs!B21 -> Last day of year 1 of the DPP period | B18: =Inputs!C21 -> 2021-03-31
A19: General time-series data
B20: =Inputs!D12 -> 2018/19 | C20: =Inputs!E12 -> 2019/20 | D20: =Inputs!F12 -> 2020/21 | E20: =Inputs!G12 -> 2021/22 | F20: =Inputs!H12 -> 2022/23 | G20: =Inputs!I12 -> 2023/24 | H20: =Inputs!J12 -> 2024/25
A21: =Inputs!B13 -> Year in modelling period | B21: =Inputs!D13 -> 1 | C21: =Inputs!E13 -> 2 | D21: =Inputs!F13 -> 3 | E21: =Inputs!G13 -> 4 | F21: =Inputs!H13 -> 5 | G21: =Inputs!I13 -> 6 | H21: =Inputs!J13 -> 7
A22: =Inputs!B14 -> Year in regulatory period | D22: =Inputs!F14 -> 1 | E22: =Inputs!G14 -> 2 | F22: =Inputs!H14 -> 3 | G22: =Inputs!I14 -> 4 | H22: =Inputs!J14 -> 5
A23: =Inputs!B15 -> Forecast changes in CPI used for revaluations | B23: =Inputs!D15 -> 0.016 | C23: =Inputs!E15 -> 0.017 | D23: =Inputs!F15 -> 0.021 | E23: =Inputs!G15 -> 0.021 | F23: =Inputs!H15 -> 0.02066666667 | G23: =Inputs!I15 -> 0.02033333333 | H23: =Inputs!J15 -> 0.02
A24: =Inputs!B16 -> Forecast changes in the CPI element of the price path | B24: =Inputs!D16 -> 0 | C24: =Inputs!E16 -> 0 | D24: =Inputs!F16 -> 0.01975379478 | E24: =Inputs!G16 -> 0.02074952399 | F24: =Inputs!H16 -> 0.02066666667 | G24: =Inputs!I16 -> 0.02033333333 | H24: =Inputs!J16 -> 0.02
A25: =Inputs!B17 -> Company tax rate | B25: =Inputs!D17 -> 0.28 | C25: =Inputs!E17 -> 0.28 | D25: =Inputs!F17 -> 0.28 | E25: =Inputs!G17 -> 0.28 | F25: =Inputs!H17 -> 0.28 | G25: =Inputs!I17 -> 0.28 | H25: =Inputs!J17 -> 0.28
A26: Business-specific data
A27: Initial conditions
A28: =Inputs!B31 -> Opening RAB | B28: =INDEX(Indiv_Data,MATCH(A28,Inputs!B:B,0),$C$5) -> 251488.161
A29: =Inputs!B32 -> Lost assets | B29: =INDEX(Indiv_Data,MATCH(A29,Inputs!B:B,0),$C$5) -> 0
A30: =Inputs!B33 -> Found assets | B30: =INDEX(Indiv_Data,MATCH(A30,Inputs!B:B,0),$C$5) -> 0
A31: =Inputs!B34 -> Total depreciation | B31: =INDEX(Indiv_Data,MATCH(A31,Inputs!B:B,0),$C$5) -> 9527.547071
A32: =Inputs!B35 -> Revaluations | B32: =INDEX(Indiv_Data,MATCH(A32,Inputs!B:B,0),$C$5) -> 0
A33: =Inputs!B36 -> Closing RAB | B33: =INDEX(Indiv_Data,MATCH(A33,Inputs!B:B,0),$C$5) -> 268572.3018
A34: =Inputs!B37 -> Opening RAB excluding revaluations | B34: =INDEX(Indiv_Data,MATCH(A34,Inputs!B:B,0),$C$5) -> 224194.2399
A35: =Inputs!B38 -> Adjusted depreciation | B35: =INDEX(Indiv_Data,MATCH(A35,Inputs!B:B,0),$C$5) -> 8493.525758
A36: =Inputs!B39 -> Tax depreciation | B36: =INDEX(Indiv_Data,MATCH(A36,Inputs!B:B,0),$C$5) -> 11094.77118
A37: =Inputs!B40 -> Opening regulatory tax asset value | B37: =INDEX(Indiv_Data,MATCH(A37,Inputs!B:B,0),$C$5) -> 136235.1804
A38: =Inputs!B41 -> Amortisation of initial differences in asset values | B38: =INDEX(Indiv_Data,MATCH(A38,Inputs!B:B,0),$C$5) -> 3399.105263
A39: =Inputs!B42 -> Term credit spread differential allowance | B39: =INDEX(Indiv_Data,MATCH(A39,Inputs!B:B,0),$C$5) -> 0
A40: =Inputs!B43 -> Opening deferred tax balance | B40: =INDEX(Indiv_Data,MATCH(A40,Inputs!B:B,0),$C$5) -> -10333.3514
A41: =Inputs!B44 -> Adjustment factor (for accelerated depreciation) | B41: =INDEX(Indiv_Data,MATCH(A41,Inputs!B:B,0),$C$5) -> 1
A42: =Inputs!B45 -> Additional allowance in 1 April 2015 PV terms | B42: =INDEX(Indiv_Data,MATCH(A42,Inputs!B:B,0),$C$5) -> 0
A43: =Inputs!B46 -> Alternative X factor | B43: =IF(ISNUMBER(INDEX(Indiv_Data,MATCH(A43,Inputs!B:B,0),$C$5)),INDEX(Indiv_Data,MATCH(A43,Inputs!B:B,0),$C$5),"") -> 0
A45: Operating expenditure
A46: =Inputs!B48 -> Operating expenditure, 2018/19 | B46: =INDEX(Indiv_Data,MATCH(A46,Inputs!B:B,0),$C$5) -> 
A47: =Inputs!B49 -> Operating expenditure, 2019/20 | B47: =INDEX(Indiv_Data,MATCH(A47,Inputs!B:B,0),$C$5) -> 
A48: =Inputs!B50 -> Operating expenditure, 2020/21 | B48: =INDEX(Indiv_Data,MATCH(A48,Inputs!B:B,0),$C$5) -> 17657.33647
A49: =Inputs!B51 -> Operating expenditure, 2021/22 | B49: =INDEX(Indiv_Data,MATCH(A49,Inputs!B:B,0),$C$5) -> 18209.31413
A50: =Inputs!B52 -> Operating expenditure, 2022/23 | B50: =INDEX(Indiv_Data,MATCH(A50,Inputs!B:B,0),$C$5) -> 18754.02958
A51: =Inputs!B53 -> Operating expenditure, 2023/24 | B51: =INDEX(Indiv_Data,MATCH(A51,Inputs!B:B,0),$C$5) -> 19260.57163
A52: =Inputs!B54 -> Operating expenditure, 2024/25 | B52: =INDEX(Indiv_Data,MATCH(A52,Inputs!B:B,0),$C$5) -> 19636.11582
A54: Constant price revenue growth
A55: =Inputs!B56 -> Constant price revenue growth, 2018/19 | B55: =INDEX(Indiv_Data,MATCH(A55,Inputs!B:B,0),$C$5) -> 0
A56: =Inputs!B57 -> Constant price revenue growth, 2019/20 | B56: =INDEX(Indiv_Data,MATCH(A56,Inputs!B:B,0),$C$5) -> 0
A57: =Inputs!B58 -> Constant price revenue growth, 2020/21 | B57: =INDEX(Indiv_Data,MATCH(A57,Inputs!B:B,0),$C$5) -> 0
A58: =Inputs!B59 -> Constant price revenue growth, 2021/22 | B58: =INDEX(Indiv_Data,MATCH(A58,Inputs!B:B,0),$C$5) -> 0
A59: =Inputs!B60 -> Constant price revenue growth, 2022/23 | B59: =INDEX(Indiv_Data,MATCH(A59,Inputs!B:B,0),$C$5) -> 0
A60: =Inputs!B61 -> Constant price revenue growth, 2023/24 | B60: =INDEX(Indiv_Data,MATCH(A60,Inputs!B:B,0),$C$5) -> 0
A61: =Inputs!B62 -> Constant price revenue growth, 2024/25 | B61: =INDEX(Indiv_Data,MATCH(A61,Inputs!B:B,0),$C$5) -> 0
A63: Value of commissioned assets
A64: =Inputs!B64 -> Value of commissioned assets, 2018/19 | B64: =INDEX(Indiv_Data,MATCH(A64,Inputs!B:B,0),$C$5) -> 22622.20291
A65: =Inputs!B65 -> Value of commissioned assets, 2019/20 | B65: =INDEX(Indiv_Data,MATCH(A65,Inputs!B:B,0),$C$5) -> 25001.25727
A66: =Inputs!B66 -> Value of commissioned assets, 2020/21 | B66: =INDEX(Indiv_Data,MATCH(A66,Inputs!B:B,0),$C$5) -> 22807.15378
A67: =Inputs!B67 -> Value of commissioned assets, 2021/22 | B67: =INDEX(Indiv_Data,MATCH(A67,Inputs!B:B,0),$C$5) -> 16698.18597
A68: =Inputs!B68 -> Value of commissioned assets, 2022/23 | B68: =INDEX(Indiv_Data,MATCH(A68,Inputs!B:B,0),$C$5) -> 16364.169
A69: =Inputs!B69 -> Value of commissioned assets, 2023/24 | B69: =INDEX(Indiv_Data,MATCH(A69,Inputs!B:B,0),$C$5) -> 16657.70283
A70: =Inputs!B70 -> Value of commissioned assets, 2024/25 | B70: =INDEX(Indiv_Data,MATCH(A70,Inputs!B:B,0),$C$5) -> 17735.53137
A72: Disposed assets
A73: =Inputs!B72 -> Value of disposed assets, 2018/19 | B73: =INDEX(Indiv_Data,MATCH(A73,Inputs!B:B,0),$C$5) -> 29.82463074
A74: =Inputs!B73 -> Value of disposed assets, 2019/20 | B74: =INDEX(Indiv_Data,MATCH(A74,Inputs!B:B,0),$C$5) -> 30.33164946
A75: =Inputs!B74 -> Value of disposed assets, 2020/21 | B75: =INDEX(Indiv_Data,MATCH(A75,Inputs!B:B,0),$C$5) -> 30.9686141
A76: =Inputs!B75 -> Value of disposed assets, 2021/22 | B76: =INDEX(Indiv_Data,MATCH(A76,Inputs!B:B,0),$C$5) -> 31.618955
A77: =Inputs!B76 -> Value of disposed assets, 2022/23 | B77: =INDEX(Indiv_Data,MATCH(A77,Inputs!B:B,0),$C$5) -> 32.2724134
A78: =Inputs!B77 -> Value of disposed assets, 2023/24 | B78: =INDEX(Indiv_Data,MATCH(A78,Inputs!B:B,0),$C$5) -> 32.92861914
A79: =Inputs!B78 -> Value of disposed assets, 2024/25 | B79: =INDEX(Indiv_Data,MATCH(A79,Inputs!B:B,0),$C$5) -> 33.58719152
A81: Other regulated income
A82: =Inputs!B80 -> Other regulated income, 2018/19 | B82: =INDEX(Indiv_Data,MATCH(A82,Inputs!B:B,0),$C$5) -> 0
A83: =Inputs!B81 -> Other regulated income, 2019/20 | B83: =INDEX(Indiv_Data,MATCH(A83,Inputs!B:B,0),$C$5) -> 0
A84: =Inputs!B82 -> Other regulated income, 2020/21 | B84: =INDEX(Indiv_Data,MATCH(A84,Inputs!B:B,0),$C$5) -> 0
A85: =Inputs!B83 -> Other regulated income, 2021/22 | B85: =INDEX(Indiv_Data,MATCH(A85,Inputs!B:B,0),$C$5) -> 0
A86: =Inputs!B84 -> Other regulated income, 2022/23 | B86: =INDEX(Indiv_Data,MATCH(A86,Inputs!B:B,0),$C$5) -> 0
A87: =Inputs!B85 -> Other regulated income, 2023/24 | B87: =INDEX(Indiv_Data,MATCH(A87,Inputs!B:B,0),$C$5) -> 0
A88: =Inputs!B86 -> Other regulated income, 2024/25 | B88: =INDEX(Indiv_Data,MATCH(A88,Inputs!B:B,0),$C$5) -> 0

Sheet TIMING
A1: Intra-year timing
A2: Derivation of the five timing factors TFopex, TFtax, TFVCA, TFori and TFrev.
A3: Inputs
B4: From | C4: Value
A5: Last day of year 1 of the DPP period | B5: EDB data | C5: ='EDB data'!B18 -> 2021-03-31
A6: Days in a year | B6: EDB data | C6: ='EDB data'!B15 -> 365
A7: Days from mid-year to year-end | B7: EDB data | C7: ='EDB data'!B16 -> 182
A8: Days from revenue date to year-end | B8: EDB data | C8: ='EDB data'!B17 -> 148
A9: Vanilla WACC (67th percentile) | B9: EDB data | C9: =WACC -> 0.0513
A10: Calculations
C11: Value
A12: Mid-year date | C12: =EOMONTH(C5,-6) -> 2020-09-30
A13: Revenue date | C13: =C5-C8 -> 2020-11-03 | D13: As demonstrated below, 12 equal monthly transactions on the 20th of the following month can be approximated by a single payment on the revenue date.
A14: Operating expenditure date | C14: =C12 -> 2020-09-30 | D14: i.e. mid-year
A15: Tax date | C15: =C12 -> 2020-09-30 | D15: i.e. mid-year
A16: Asset commissioning date | C16: =C12 -> 2020-09-30 | D16: i.e. mid-year
A17: Interest date | C17: =C12 -> 2020-09-30 | D17: i.e. mid-year
A18: Asset disposal date | C18: =C12 -> 2020-09-30 | D18: i.e. mid-year
A19: TF for mid-year cash flows | C19: =(1+$C$9)^(C7/C6) -> 1.025258951 | D19: Intra-year timing factors: discount from mid year to end of year values
A20: TFrev | C20: =(1+$C$9)^(C8/C6) -> 1.020492262 | D20: Intra-year timing factor: discount from revenue date to end of year values
A21: Outputs
C22: Value
A23: TFopex | C23: =$C$19 -> 1.025258951
A24: TFtax | C24: =$C$19 -> 1.025258951
A25: TFVCA | C25: 1.025258951
A26: TFori | C26: 1.025258951
A27: TFrev | C27: =$C$20 -> 1.020492262
A28: Check for timing of revenue receipt
A29: Demonstration that a 4 November receipt date for all revenues in a year ending 31 March is almost identical to
A30: receiving 12 equal revenue amounts on the 20th of the month following the provision of service.
A31: Monthly cash flows
A32: Dates of receipt of revenues | C32: =EDATE(C5,-12) -> 2020-03-31 | D32: =EOMONTH(C32,1)+20 -> 2020-05-20 | E32: =EDATE(D32,1) -> 2020-06-20 | F32: =EDATE(E32,1) -> 2020-07-20 | G32: 2020-08-20 | H32: 2020-09-20 | I32: 2020-10-20 | J32: 2020-11-20 | K32: 2020-12-20 | L32: 2021-01-20 | M32: 2021-02-20 | N32: =EDATE(M32,1) -> 2021-03-20 | O32: =EDATE(N32,1) -> 2021-04-20
A33: Indexed amount of revenue | C33: 0 | D33: 1 | E33: 1 | F33: 1 | G33: 1 | H33: 1 | I33: 1 | J33: 1 | K33: 1 | L33: 1 | M33: 1 | N33: 1 | O33: 1
A35: Equivalent single cash flow
A36: Dates of receipt of revenues | C36: =C32 -> 2020-03-31 | D36: =C13 -> 2020-11-03
A37: Indexed amount of revenue | C37: 0 | D37: 12
A39: Present value | C39: Value
A40: ="PV as at "&TEXT(C5,"dd mmm yy")&" of the series of unit amounts" -> PV as at 31 Mar 21 of the series of unit amounts | C40: =XNPV(WACC,C33:O33,C32:O32) -> 11.64769536
A41: PV of the equivalent single amount | C41: =XNPV(WACC,C37:D37,C36:D36) -> 11.64834695
A42: ="Difference in PV for a date of " & TEXT(D36,"d mmm") -> Difference in PV for a date of 3 Nov | C42: =C40-C41 -> -0.0006515873684
A43: Percentage difference | C43: =C42/C40 -> -5.594131271e-05

Sheet RAB
A1: Regulatory asset base | J1: =EDB_Name -> Total for selected EDBs
A2: Calculations involving the roll-forward of asset values.
A3: Inputs
B4: From | C4: Value | D4: =Inputs!D$12 -> 2018/19 | E4: =Inputs!E$12 -> 2019/20 | F4: =Inputs!F$12 -> 2020/21 | G4: =Inputs!G$12 -> 2021/22 | H4: =Inputs!H$12 -> 2022/23 | I4: =Inputs!I$12 -> 2023/24 | J4: =Inputs!J$12 -> 2024/25
A5: Opening RAB | B5: EDB data | C5: ='EDB data'!B28 -> 251488.161
A6: Total depreciation | B6: EDB data | C6: ='EDB data'!B31 -> 9527.547071
A7: Revaluations | B7: EDB data | C7: ='EDB data'!B32 -> 0
A8: Closing RAB | B8: EDB data | C8: ='EDB data'!B33 -> 268572.3018
A9: Disposed assets | B9: EDB data | D9: ='EDB data'!$B73 -> 29.82463074 | E9: ='EDB data'!$B74 -> 30.33164946 | F9: ='EDB data'!$B75 -> 30.9686141 | G9: ='EDB data'!$B76 -> 31.618955 | H9: ='EDB data'!$B77 -> 32.2724134 | I9: ='EDB data'!$B78 -> 32.92861914 | J9: ='EDB data'!$B79 -> 33.58719152
A10: Value of commissioned assets | B10: EDB data | D10: ='EDB data'!$B64 -> 22622.20291 | E10: ='EDB data'!$B65 -> 25001.25727 | F10: ='EDB data'!$B66 -> 22807.15378 | G10: ='EDB data'!$B67 -> 16698.18597 | H10: ='EDB data'!$B68 -> 16364.169 | I10: ='EDB data'!$B69 -> 16657.70283 | J10: ='EDB data'!$B70 -> 17735.53137
A11: Remaining life of newly commissioned assets | B11: EDB data | C11: ='EDB data'!B13 -> 44
A12: Forecast changes in CPI used for revaluations | B12: EDB data | D12: ='EDB data'!B23 -> 0.016 | E12: ='EDB data'!C23 -> 0.017 | F12: ='EDB data'!D23 -> 0.021 | G12: ='EDB data'!E23 -> 0.021 | H12: ='EDB data'!F23 -> 0.02066666667 | I12: ='EDB data'!G23 -> 0.02033333333 | J12: ='EDB data'!H23 -> 0.02
A13: Adjustment factor (for accelerated depreciation) | B13: EDB data | C13: ='EDB data'!B41 -> 1
A14: Calculations
A16: Roll forward of existing assets
D17: =Inputs!D$12 -> 2018/19 | E17: =Inputs!E$12 -> 2019/20 | F17: =Inputs!F$12 -> 2020/21 | G17: =Inputs!G$12 -> 2021/22 | H17: =Inputs!H$12 -> 2022/23 | I17: =Inputs!I$12 -> 2023/24 | J17: =Inputs!J$12 -> 2024/25
A18: Remaining asset life of existing assets | E18: =100%*C5/C6-1 -> 25.39589803 | F18: =C13*C5/C6-2 -> 24.39589803 | G18: =F18-1 -> 23.39589803 | H18: 22.39589803 | I18: 21.39589803 | J18: 20.39589803
A19: Opening RAB value of existing assets | E19: =D23 -> 268572.3018 | F19: =E23 -> 262527.1974 | G19: =F23 -> 257242.016 | H19: =G23 -> 251611.2373 | I19: =H23 -> 245538.3617 | J19: =I23 -> 239016.4293
A20: Disposed assets | E20: =E9 -> 30.33164946 | F20: 30.9686141 | G20: 31.618955 | H20: 32.2724134 | I20: 32.92861914 | J20: 33.58719152
A21: Revaluation of existing assets | E21: =(E19*0.999-E20)*E28 -> 4560.647763 | F21: 5506.907732 | G21: 5396.016256 | H21: 5194.098643 | I21: 4986.951193 | J21: 4774.876515
A22: Depreciation of existing assets | E22: =E19/E18 -> 10575.42054 | F22: 10761.12046 | G22: 10995.17598 | H22: 11234.70186 | I22: 11475.95494 | J22: 11718.84802
A23: Closing RAB value of existing assets | D23: =C8 -> 268572.3018 | E23: =E19-E20+E21-E22 -> 262527.1974 | F23: 257242.016 | G23: 251611.2373 | H23: 245538.3617 | I23: 239016.4293 | J23: 232038.8706
A25: Individual roll forward of additional assets
D26: =Inputs!D$12 -> 2018/19 | E26: =Inputs!E$12 -> 2019/20 | F26: =Inputs!F$12 -> 2020/21 | G26: =Inputs!G$12 -> 2021/22 | H26: =Inputs!H$12 -> 2022/23 | I26: =Inputs!I$12 -> 2023/24 | J26: =Inputs!J$12 -> 2024/25
A27: Year in modelling period | D27: 1 | E27: =D27+1 -> 2 | F27: =E27+1 -> 3 | G27: 4 | H27: 5 | I27: =H27+1 -> 6 | J27: =I27+1 -> 7
A28: Revaluation rate | D28: =D12 -> 0.016 | E28: 0.017 | F28: 0.021 | G28: 0.021 | H28: 0.02066666667 | I28: 0.02033333333 | J28: 0.02
A29: Commissioned assets | D29: =D$10 -> 22622.20291 | E29: 25001.25727 | F29: 22807.15378 | G29: 16698.18597 | H29: 16364.169 | I29: 16657.70283 | J29: 17735.53137
A30: Assets commissioned in 2014/15:
A31: Year asset is added during modelling period | C31: =E27 -> 2
A32: Opening RAB | D32: 0 | E32: =D36 -> 0 | F32: 25001.25727 | G32: 24958.07328 | H32: 24901.77251 | I32: 24823.5098 | J32: 24722.80304
A33: Years of remaining life | D33: =$C$11+$C31 -> 46 | E33: =D33-1 -> 45 | F33: =E33-1 -> 44 | G33: 43 | H33: =G33-1 -> 42 | I33: =H33-1 -> 41 | J33: =I33-1 -> 40
A34: Revaluation of assets | D34: =D32*D$28 -> 0 | E34: 0 | F34: 525.0264026 | G34: 524.1195389 | H34: 514.6366319 | I34: 504.7446992 | J34: 494.4560607
A35: Depreciation of assets | D35: =D32/D33 -> 0 | E35: 0 | F35: 568.2103925 | G35: 580.4203088 | H35: 592.8993455 | I35: 605.4514584 | J35: 618.0700759
A36: Closing RAB | D36: =D32+D34-D35+IF($C31=D$27,D$29,0) -> 0 | E36: 25001.25727 | F36: 24958.07328 | G36: 24901.77251 | H36: 24823.5098 | I36: 24722.80304 | J36: 24599.18902
A37: Assets commissioned in 2015/16:
A38: Year asset is added during modelling period | C38: =F27 -> 3
A39: Opening RAB | D39: 0 | E39: =D43 -> 0 | F39: 0 | G39: 22807.15378 | H39: 22767.75961 | I39: 22708.81052 | J39: 22629.87037
A40: Years of remaining life | D40: =$C$11+$C38 -> 47 | E40: =D40-1 -> 46 | F40: 45 | G40: 44 | H40: 43 | I40: 42 | J40: 41
A41: Revaluation of assets | D41: =D39*D$28 -> 0 | E41: 0 | F41: 0 | G41: 478.9502294 | H41: 470.5336986 | I41: 461.745814 | J41: 452.5974075
A42: Depreciation of assets | D42: =D39/D40 -> 0 | E42: 0 | F42: 0 | G42: 518.3444041 | H42: 529.4827816 | I42: 540.6859649 | J42: 551.9480579
A43: Closing RAB | D43: =D39+D41-D42+IF($C38=D$27,D$29,0) -> 0 | E43: 0 | F43: 22807.15378 | G43: 22767.75961 | H43: 22708.81052 | I43: 22629.87037 | J43: 22530.51972
A44: Assets commissioned in 2016/17:
A45: Year asset is added during modelling period | C45: =G27 -> 4
A46: Opening RAB | D46: 0 | E46: =D50 -> 0 | F46: 0 | G46: 0 | H46: 16698.18597 | I46: 16663.77759 | J46: 16615.07802
A47: Years of remaining life | D47: =$C$11+$C45 -> 48 | E47: =D47-1 -> 47 | F47: 46 | G47: 45 | H47: 44 | I47: 43 | J47: 42
A48: Revaluation of assets | D48: =D46*D$28 -> 0 | E48: 0 | F48: 0 | G48: 0 | H48: 345.0958434 | I48: 338.8301443 | J48: 332.3015604
A49: Depreciation of assets | D49: =D46/D47 -> 0 | E49: 0 | F49: 0 | G49: 0 | H49: 379.5042266 | I49: 387.5297114 | J49: 395.5970958
A50: Closing RAB | D50: =D46+D48-D49+IF($C45=D$27,D$29,0) -> 0 | E50: 0 | F50: 0 | G50: 16698.18597 | H50: 16663.77759 | I50: 16615.07802 | J50: 16551.78249
A51: Assets commissioned in 2017/18:
A52: Year asset is added during modelling period | C52: =H27 -> 5
A53: Opening RAB | D53: 0 | E53: =D57 -> 0 | F53: 0 | G53: 0 | H53: 0 | I53: 16364.169 | J53: 16324.99417
A54: Years of remaining life | D54: =$C$11+$C52 -> 49 | E54: =D54-1 -> 48 | F54: 47 | G54: 46 | H54: 45 | I54: 44 | J54: 43
A55: Revaluation of assets | D55: =D53*D$28 -> 0 | E55: 0 | F55: 0 | G55: 0 | H55: 0 | I55: 332.738103 | J55: 326.4998834
A56: Depreciation of assets | D56: =D53/D54 -> 0 | E56: 0 | F56: 0 | G56: 0 | H56: 0 | I56: 371.9129318 | J56: 379.6510272
A57: Closing RAB | D57: =D53+D55-D56+IF($C52=D$27,D$29,0) -> 0 | E57: 0 | F57: 0 | G57: 0 | H57: 16364.169 | I57: 16324.99417 | J57: 16271.84303
A58: Assets commissioned in 2018/19:
A59: Year asset is added during modelling period | C59: =I27 -> 6
A60: Opening RAB | D60: 0 | E60: =D64 -> 0 | F60: 0 | G60: 0 | H60: 0 | I60: 0 | J60: 16657.70283
A61: Years of remaining life | D61: =$C$11+$C59 -> 50 | E61: =D61-1 -> 49 | F61: 48 | G61: 47 | H61: 46 | I61: 45 | J61: 44
A62: Revaluation of assets | D62: =D60*D$28 -> 0 | E62: 0 | F62: 0 | G62: 0 | H62: 0 | I62: 0 | J62: 333.1540565
A63: Depreciation of assets | D63: =D60/D61 -> 0 | E63: 0 | F63: 0 | G63: 0 | H63: 0 | I63: 0 | J63: 378.5841551
A64: Closing RAB | D64: =D60+D62-D63+IF($C59=D$27,D$29,0) -> 0 | E64: 0 | F64: 0 | G64: 0 | H64: 0 | I64: 16657.70283 | J64: 16612.27273
A65: Assets commissioned in 2019/20:
A66: Year asset is added during modelling period | C66: =J27 -> 7
A67: Opening RAB | D67: 0 | E67: =D71 -> 0 | F67: 0 | G67: 0 | H67: 0 | I67: 0 | J67: 0
A68: Years of remaining life | D68: =$C$11+$C66 -> 51 | E68: =D68-1 -> 50 | F68: =E68-1 -> 49 | G68: 48 | H68: =G68-1 -> 47 | I68: =H68-1 -> 46 | J68: =I68-1 -> 45
A69: Revaluation of assets | D69: =D67*D$28 -> 0 | E69: 0 | F69: 0 | G69: 0 | H69: 0 | I69: 0 | J69: 0
A70: Depreciation of assets | D70: =D67/D68 -> 0 | E70: 0 | F70: 0 | G70: 0 | H70: 0 | I70: 0 | J70: 0
A71: Closing RAB | D71: =D67+D69-D70+IF($C66=D$27,D$29,0) -> 0 | E71: 0 | F71: 0 | G71: 0 | H71: 0 | I71: 0 | J71: 17735.53137
A73: Aggregate roll forward of additional assets
A75: Opening RAB of commissioned additional assets | D75: =D32+D39+D46+D53+D60+D67 -> 0 | E75: 0 | F75: =F32+F39+F46+F53+F60+F67 -> 25001.25727 | G75: 47765.22706 | H75: 64367.71809 | I75: 80560.26691 | J75: 96950.44843
A76: Revaluation of commissioned additional assets | D76: =D34+D41+D48+D55+D62+D69 -> 0 | E76: 0 | F76: =F34+F41+F48+F55+F62+F69 -> 525.0264026 | G76: 1003.069768 | H76: 1330.266174 | I76: 1638.05876 | J76: 1939.008969
A77: Depreciation of commissioned additional assets | D77: 0 | E77: 0 | F77: =F35+F42+F49+F56+F63+F70 -> 568.2103925 | G77: 1098.764713 | H77: 1501.886354 | I77: 1905.580066 | J77: 2323.850412
A78: Closing RAB of commissioned additional assets | D78: 0 | E78: 25001.25727 | F78: =F36+F43+F50+F57+F64+F71 -> 47765.22706 | G78: 64367.71809 | H78: 80560.26691 | I78: 96950.44843 | J78: 114301.1384
A80: Combined roll forward of existing and additional assets
D82: =Inputs!D$12 -> 2018/19 | E82: =Inputs!E$12 -> 2019/20 | F82: =Inputs!F$12 -> 2020/21 | G82: =Inputs!G$12 -> 2021/22 | H82: =Inputs!H$12 -> 2022/23 | I82: =Inputs!I$12 -> 2023/24 | J82: =Inputs!J$12 -> 2024/25
A83: Aggregate opening RAB value | D83: =C5 -> 251488.161 | E83: =E19+E75 -> 268572.3018 | F83: 287528.4546 | G83: 305007.2431 | H83: 315978.9554 | I83: 326098.6286 | J83: 335966.8778
A84: Total revaluation | D84: =C7 -> 0 | E84: =E21+E76 -> 4560.647763 | F84: 6031.934135 | G84: 6399.086024 | H84: 6524.364817 | I84: 6625.009953 | J84: 6713.885483
A85: Total depreciation | D85: =C6 -> 9527.547071 | E85: 10575.42054 | F85: 11329.33085 | G85: 12093.94069 | H85: 12736.58822 | I85: 13381.53501 | J85: 14042.69843
A86: Aggregate closing RAB value | D86: =D23+D78 -> 268572.3018 | E86: 287528.4546 | F86: 305007.2431 | G86: 315978.9554 | H86: 326098.6286 | I86: 335966.8778 | J86: 346340.009
A87: Check that closing value is as expected. Should = 0 | E87: =E83+E29+E84-E85-E20-E86 -> 0 | F87: =F83+F29+F84-F85-F20-F86 -> 0 | G87: 0 | H87: 0 | I87: 0 | J87: 0
A88: Outputs
D90: =Inputs!D$12 -> 2018/19 | E90: =Inputs!E$12 -> 2019/20 | F90: =Inputs!F$12 -> 2020/21 | G90: =Inputs!G$12 -> 2021/22 | H90: =Inputs!H$12 -> 2022/23 | I90: =Inputs!I$12 -> 2023/24 | J90: =Inputs!J$12 -> 2024/25
A91: Remaining asset life of existing assets | E91: =E18 -> 25.39589803 | F91: 24.39589803 | G91: 23.39589803 | H91: 22.39589803 | I91: 21.39589803 | J91: 20.39589803
A92: Total depreciation | D92: =D85 -> 9527.547071 | E92: 10575.42054 | F92: 11329.33085 | G92: 12093.94069 | H92: 12736.58822 | I92: 13381.53501 | J92: 14042.69843
A93: Aggregate opening RAB value | D93: =D83 -> 251488.161 | E93: =E83 -> 268572.3018 | F93: 287528.4546 | G93: 305007.2431 | H93: 315978.9554 | I93: 326098.6286 | J93: 335966.8778
A94: Total revaluation | D94: =D84 -> 0 | E94: =E84 -> 4560.647763 | F94: 6031.934135 | G94: 6399.086024 | H94: 6524.364817 | I94: 6625.009953 | J94: 6713.885483
A95: Aggregate closing RAB value | D95: =D86 -> 268572.3018 | E95: =E86 -> 287528.4546 | F95: 305007.2431 | G95: 315978.9554 | H95: 326098.6286 | I95: 335966.8778 | J95: 346340.009

Sheet TAX
A1: Tax calculations | J1: =EDB_Name -> Total for selected EDBs
A2: Calculations involving the roll-forward of adjusted depreciation regulatory asset values, deferred tax and tax adjustments.
A3: Inputs
B4: Source | C4: Value | D4: =Inputs!D$12 -> 2018/19 | E4: =Inputs!E$12 -> 2019/20 | F4: =Inputs!F$12 -> 2020/21 | G4: =Inputs!G$12 -> 2021/22 | H4: =Inputs!H$12 -> 2022/23 | I4: =Inputs!I$12 -> 2023/24 | J4: =Inputs!J$12 -> 2024/25
A5: Year in modelling period | B5: EDB data | D5: ='EDB data'!B21 -> 1 | E5: ='EDB data'!C21 -> 2 | F5: ='EDB data'!D21 -> 3 | G5: ='EDB data'!E21 -> 4 | H5: ='EDB data'!F21 -> 5 | I5: ='EDB data'!G21 -> 6 | J5: ='EDB data'!H21 -> 7
A6: Tax rate | B6: EDB data | D6: ='EDB data'!B25 -> 0.28 | E6: ='EDB data'!C25 -> 0.28 | F6: ='EDB data'!D25 -> 0.28 | G6: ='EDB data'!E25 -> 0.28 | H6: ='EDB data'!F25 -> 0.28 | I6: ='EDB data'!G25 -> 0.28 | J6: ='EDB data'!H25 -> 0.28
A7: Value of commissioned assets | B7: EDB data | D7: ='EDB data'!$B64 -> 22622.20291 | E7: ='EDB data'!$B65 -> 25001.25727 | F7: ='EDB data'!$B66 -> 22807.15378 | G7: ='EDB data'!$B67 -> 16698.18597 | H7: ='EDB data'!$B68 -> 16364.169 | I7: ='EDB data'!$B69 -> 16657.70283 | J7: ='EDB data'!$B70 -> 17735.53137
A8: Remaining life of newly commissioned assets | B8: EDB data | D8: ='EDB data'!B13 -> 44
A9: Amortisation of initial differences in asset values | B9: EDB data | D9: ='EDB data'!B38 -> 3399.105263
A10: Lost assets | B10: EDB data | D10: ='EDB data'!B29 -> 0
A11: Found assets | B11: EDB data | D11: ='EDB data'!B30 -> 0
A12: Disposed assets | B12: EDB data | D12: ='EDB data'!$B73 -> 29.82463074 | E12: ='EDB data'!$B74 -> 30.33164946 | F12: ='EDB data'!$B75 -> 30.9686141 | G12: ='EDB data'!$B76 -> 31.618955 | H12: ='EDB data'!$B77 -> 32.2724134 | I12: ='EDB data'!$B78 -> 32.92861914 | J12: ='EDB data'!$B79 -> 33.58719152
A13: Opening RAB excluding revaluations | B13: EDB data | D13: ='EDB data'!B34 -> 224194.2399
A14: Adjusted depreciation | B14: EDB data | D14: ='EDB data'!B35 -> 8493.525758
A15: Tax depreciation | B15: EDB data | D15: ='EDB data'!B36 -> 11094.77118
A16: Opening regulatory tax asset value | B16: EDB data | D16: ='EDB data'!B37 -> 136235.1804
A17: Opening deferred tax balance | B17: EDB data | D17: ='EDB data'!B40 -> -10333.3514
A18: Cost of debt | B18: EDB data | D18: ='EDB data'!B11 -> 0.0361
A19: Leverage | B19: EDB data | D19: ='EDB data'!B12 -> 0.42
A20: Remaining asset life of existing assets | B20: RAB | E20: =RAB!E91 -> 25.39589803 | F20: =RAB!F91 -> 24.39589803 | G20: =RAB!G91 -> 23.39589803 | H20: =RAB!H91 -> 22.39589803 | I20: =RAB!I91 -> 21.39589803 | J20: =RAB!J91 -> 20.39589803
A21: Total depreciation | B21: RAB | D21: =RAB!D92 -> 9527.547071 | E21: =RAB!E92 -> 10575.42054 | F21: =RAB!F92 -> 11329.33085 | G21: =RAB!G92 -> 12093.94069 | H21: =RAB!H92 -> 12736.58822 | I21: =RAB!I92 -> 13381.53501 | J21: =RAB!J92 -> 14042.69843
A22: Term credit spread differential allowance | B22: BBAR | D22: =BBAR!D58 -> 0 | E22: =BBAR!E58 -> 0 | F22: =BBAR!F58 -> 0 | G22: =BBAR!G58 -> 0 | H22: =BBAR!H58 -> 0 | I22: =BBAR!I58 -> 0 | J22: =BBAR!J58 -> 0
A23: Opening investment value | B23: BBAR | D23: =BBAR!D56 -> 241154.8096 | E23: =BBAR!E56 -> 256558.8522 | F23: =BBAR!F56 -> 273821.1398 | G23: =BBAR!G56 -> 289469.1145 | H23: =BBAR!H56 -> 298533.1923 | I23: =BBAR!I56 -> 306786.8572 | J23: =BBAR!J56 -> 314841.4197
A24: Calculations
A25: Adjusted RAB & depreciation of assets commissioned
C26: Value | D26: =Inputs!D$12 -> 2018/19 | E26: =Inputs!E$12 -> 2019/20 | F26: =Inputs!F$12 -> 2020/21 | G26: =Inputs!G$12 -> 2021/22 | H26: =Inputs!H$12 -> 2022/23 | I26: =Inputs!I$12 -> 2023/24 | J26: =Inputs!J$12 -> 2024/25
A27: Commissioned assets | D27: =D7 -> 22622.20291 | E27: 25001.25727 | F27: 22807.15378 | G27: 16698.18597 | H27: 16364.169 | I27: 16657.70283 | J27: 17735.53137
A28: Assets commissioned in 2014/15: | C28: =E5 -> 2
A29: Opening RAB, adjusted depreciation | D29: 0 | E29: =D32 -> 0 | F29: 25001.25727 | G29: 24433.04688 | H29: 23864.83648 | I29: 23296.62609 | J29: 22728.4157
A30: Years of remaining life | D30: =$D$8+$C28 -> 46 | E30: =D30-1 -> 45 | F30: 44 | G30: 43 | H30: 42 | I30: 41 | J30: 40
A31: Adjusted depreciation | D31: =D29/D30 -> 0 | E31: 0 | F31: 568.2103925 | G31: 568.2103925 | H31: 568.2103925 | I31: 568.2103925 | J31: 568.2103925
A32: Closing RAB, adjusted depreciation | D32: =D29-D31+IF($C28=D$5,D$27,0) -> 0 | E32: 25001.25727 | F32: 24433.04688 | G32: 23864.83648 | H32: 23296.62609 | I32: 22728.4157 | J32: 22160.20531
A33: Assets commissioned in 2015/16: | C33: =F5 -> 3
A34: Opening RAB, adjusted depreciation | D34: 0 | E34: =D37 -> 0 | F34: 0 | G34: 22807.15378 | H34: 22288.80938 | I34: 21770.46497 | J34: 21252.12057
A35: Years of remaining life | D35: =$D$8+$C33 -> 47 | E35: =D35-1 -> 46 | F35: 45 | G35: 44 | H35: 43 | I35: 42 | J35: 41
A36: Adjusted depreciation | D36: =D34/D35 -> 0 | E36: 0 | F36: 0 | G36: 518.3444041 | H36: 518.3444041 | I36: 518.3444041 | J36: 518.3444041
A37: Closing RAB, adjusted depreciation | D37: =D34-D36+IF($C33=D$5,D$27,0) -> 0 | E37: 0 | F37: 22807.15378 | G37: 22288.80938 | H37: 21770.46497 | I37: 21252.12057 | J37: 20733.77617
A38: Assets commissioned in 2016/17: | C38: =G5 -> 4
A39: Opening RAB, adjusted depreciation | D39: 0 | E39: =D42 -> 0 | F39: 0 | G39: 0 | H39: 16698.18597 | I39: 16318.68175 | J39: 15939.17752
A40: Years of remaining life | D40: =$D$8+$C38 -> 48 | E40: =D40-1 -> 47 | F40: 46 | G40: 45 | H40: 44 | I40: 43 | J40: 42
A41: Adjusted depreciation | D41: =D39/D40 -> 0 | E41: 0 | F41: 0 | G41: 0 | H41: 379.5042266 | I41: 379.5042266 | J41: 379.5042266
A42: Closing RAB, adjusted depreciation | D42: =D39-D41+IF($C38=D$5,D$27,0) -> 0 | E42: 0 | F42: 0 | G42: 16698.18597 | H42: 16318.68175 | I42: 15939.17752 | J42: 15559.67329
A43: Assets commissioned in 2017/18: | C43: =H5 -> 5
A44: Opening RAB, adjusted depreciation | D44: 0 | E44: =D47 -> 0 | F44: 0 | G44: 0 | H44: 0 | I44: 16364.169 | J44: 15992.25607
A45: Years of remaining life | D45: =$D$8+$C43 -> 49 | E45: =D45-1 -> 48 | F45: 47 | G45: 46 | H45: 45 | I45: 44 | J45: 43
A46: Adjusted depreciation | D46: =D44/D45 -> 0 | E46: 0 | F46: 0 | G46: 0 | H46: 0 | I46: 371.9129318 | J46: 371.9129318
A47: Closing RAB, adjusted depreciation | D47: =D44-D46+IF($C43=D$5,D$27,0) -> 0 | E47: 0 | F47: 0 | G47: 0 | H47: 16364.169 | I47: 15992.25607 | J47: 15620.34314
A48: Assets commissioned in 2018/19: | C48: =I5 -> 6
A49: Opening RAB, adjusted depreciation | D49: 0 | E49: =D52 -> 0 | F49: 0 | G49: 0 | H49: 0 | I49: 0 | J49: 16657.70283
A50: Years of remaining life | D50: =$D$8+$C48 -> 50 | E50: =D50-1 -> 49 | F50: 48 | G50: 47 | H50: 46 | I50: 45 | J50: 44
A51: Adjusted depreciation | D51: =D49/D50 -> 0 | E51: 0 | F51: 0 | G51: 0 | H51: 0 | I51: 0 | J51: 378.5841551
A52: Closing RAB, adjusted depreciation | D52: =D49-D51+IF($C48=D$5,D$27,0) -> 0 | E52: 0 | F52: 0 | G52: 0 | H52: 0 | I52: 16657.70283 | J52: 16279.11867
A53: Assets commissioned in 2019/20: | C53: =J5 -> 7
A54: Opening RAB, adjusted depreciation | D54: 0 | E54: =D57 -> 0 | F54: =E57 -> 0 | G54: 0 | H54: =G57 -> 0 | I54: =H57 -> 0 | J54: =I57 -> 0
A55: Years of remaining life | D55: =$D$8+$C53 -> 51 | E55: =D55-1 -> 50 | F55: =E55-1 -> 49 | G55: 48 | H55: =G55-1 -> 47 | I55: =H55-1 -> 46 | J55: =I55-1 -> 45
A56: Adjusted depreciation | D56: =D54/D55 -> 0 | E56: 0 | F56: 0 | G56: 0 | H56: 0 | I56: 0 | J56: 0
A57: Closing RAB, adjusted depreciation | D57: =D54-D56+IF($C53=D$5,D$27,0) -> 0 | E57: 0 | F57: 0 | G57: 0 | H57: 0 | I57: 0 | J57: 17735.53137
A58: Total assets commissioned
A59: Total adjusted depreciation of commissioned assets | D59: =D31+D36+D41+D46+D51+D56 -> 0 | E59: 0 | F59: 568.2103925 | G59: 1086.554797 | H59: 1466.059023 | I59: 1837.971955 | J59: 2216.55611
A60: Adjusted depreciation of existing assets
C61: Value | D61: =Inputs!D$12 -> 2018/19 | E61: =Inputs!E$12 -> 2019/20 | F61: =Inputs!F$12 -> 2020/21 | G61: =Inputs!G$12 -> 2021/22 | H61: =Inputs!H$12 -> 2022/23 | I61: =Inputs!I$12 -> 2023/24 | J61: =Inputs!J$12 -> 2024/25
A62: Opening RAB value of existing assets, adjusted depreciation | D62: =D13 -> 224194.2399 | E62: =D68 -> 238293.0924 | F62: =E68 -> 228879.6276 | G62: =F68 -> 219466.7692 | H62: =G68 -> 210054.5841 | I62: =H68 -> 200643.1573 | J62: =I68 -> 191232.5827
A63: Disposed assets | D63: =D12 -> 29.82463074 | E63: 30.33164946 | F63: 30.9686141 | G63: 31.618955 | H63: 32.2724134 | I63: 32.92861914 | J63: 33.58719152
A64: Base year lost assets | D64: =D10 -> 0
A65: Base year found assets | D65: =D11 -> 0
A66: Adjusted depreciation of existing assets | D66: =D14 -> 8493.525758 | E66: =E62/E20 -> 9383.133137 | F66: 9381.889828 | G66: 9380.566151 | H66: 9379.154332 | I66: 9377.645986 | J66: 9376.031513
A67: Base year commissioned assets | D67: =D7 -> 22622.20291
A68: Closing RAB value of existing assets, adjusted depreciation | D68: =D62-D63-D64+D65-D66+D67 -> 238293.0924 | E68: =E62-E63-E66 -> 228879.6276 | F68: 219466.7692 | G68: =G62-G63-G66 -> 210054.5841 | H68: =H62-H63-H66 -> 200643.1573 | I68: =I62-I63-I66 -> 191232.5827 | J68: =J62-J63-J66 -> 181822.964
A69: Regulatory tax asset value
C70: Value | D70: =Inputs!D$12 -> 2018/19 | E70: =Inputs!E$12 -> 2019/20 | F70: =Inputs!F$12 -> 2020/21 | G70: =Inputs!G$12 -> 2021/22 | H70: =Inputs!H$12 -> 2022/23 | I70: =Inputs!I$12 -> 2023/24 | J70: =Inputs!J$12 -> 2024/25
A71: Average DV rate | C71: =D15/D16 -> 0.08143837114
A72: Opening regulatory tax asset value | D72: =D16 -> 136235.1804 | E72: =D75 -> 147762.6121 | F72: =E75 -> 160730.3229 | G72: =F75 -> 170447.861 | H72: =G75 -> 173265.0508 | I72: =H75 -> 175518.7963 | J72: =I75 -> 177882.5342
A73: Tax depreciation | D73: =D15 -> 11094.77118 | E73: =E72*$C71 -> 12033.54644 | F73: =F72*$C71 -> 13089.61569 | G73: =G72*$C71 -> 13880.99616 | H73: =H72*$C71 -> 14110.42351 | I73: =I72*$C71 -> 14293.96487 | J73: =J72*$C71 -> 14486.46384
A74: Value of commissioned assets | D74: =D7 -> 22622.20291 | E74: 25001.25727 | F74: 22807.15378 | G74: 16698.18597 | H74: 16364.169 | I74: 16657.70283 | J74: 17735.53137
A75: Closing regulatory tax asset value | D75: =D72-D73+D74 -> 147762.6121 | E75: 160730.3229 | F75: 170447.861 | G75: 173265.0508 | H75: 175518.7963 | I75: 177882.5342 | J75: 181131.6018
A76: Depreciation temporary differences
C77: Value | D77: =Inputs!D$12 -> 2018/19 | E77: =Inputs!E$12 -> 2019/20 | F77: =Inputs!F$12 -> 2020/21 | G77: =Inputs!G$12 -> 2021/22 | H77: =Inputs!H$12 -> 2022/23 | I77: =Inputs!I$12 -> 2023/24 | J77: =Inputs!J$12 -> 2024/25
A78: Total adjusted depreciation of assets | D78: =D59+D66 -> 8493.525758 | E78: 9383.133137 | F78: 9950.10022 | G78: 10467.12095 | H78: 10845.21335 | I78: 11215.61794 | J78: 11592.58762
A79: Tax depreciation | D79: =D73 -> 11094.77118 | E79: 12033.54644 | F79: 13089.61569 | G79: 13880.99616 | H79: 14110.42351 | I79: 14293.96487 | J79: 14486.46384
A80: Depreciation temporary differences | D80: =D78-D79 -> -2601.245421 | E80: -2650.413306 | F80: -3139.51547 | G80: -3413.875217 | H80: -3265.210158 | I80: -3078.346933 | J80: -2893.87622
A81: Deductions for regulatory tax purposes
A82: Amortisation of initial differences in asset values | D82: =D9 -> 3399.105263 | E82: =D82 -> 3399.105263 | F82: =E82 -> 3399.105263 | G82: 3399.105263 | H82: 3399.105263 | I82: 3399.105263 | J82: 3399.105263
A83: Notional deductible interest | D83: =(D23*$D$19*$D$18+D22)/(1+$D$18)^0.5 -> 3592.126178 | E83: 3821.577395 | F83: 4078.708138 | G83: 4311.79285 | H83: 4446.806998 | I83: 4569.749625 | J83: 4689.726518
A84: Amortisation of revaluations | D84: =D21-D78 -> 1034.021313 | E84: 1192.287406 | F84: 1379.230627 | G84: 1626.819743 | H84: 1891.374861 | I84: 2165.917064 | J84: 2450.110811
A85: Regulatory tax adjustments | D85: =D82+D84-D83 -> 841.0003981 | E85: =E82+E84-E83 -> 769.8152742 | F85: 699.6277526 | G85: 714.1321556 | H85: 843.6731256 | I85: 995.2727029 | J85: 1159.489556
A87: Deferred tax asset value
C88: Value | D88: =Inputs!D$12 -> 2018/19 | E88: =Inputs!E$12 -> 2019/20 | F88: =Inputs!F$12 -> 2020/21 | G88: =Inputs!G$12 -> 2021/22 | H88: =Inputs!H$12 -> 2022/23 | I88: =Inputs!I$12 -> 2023/24 | J88: =Inputs!J$12 -> 2024/25
A89: Opening deferred tax | D89: =D17 -> -10333.3514 | E89: =D92 -> -12013.44959 | F89: =E92 -> -13707.31479 | G89: =F92 -> -15538.12859 | H89: =G92 -> -17445.76313 | I89: =H92 -> -19311.77144 | J89: =I92 -> -21125.45806
A90: Depreciation temporary differences | D90: =D80 -> -2601.245421 | E90: -2650.413306 | F90: -3139.51547 | G90: -3413.875217 | H90: -3265.210158 | I90: -3078.346933 | J90: -2893.87622
A91: Amortisation of initial differences in asset values | D91: =D82 -> 3399.105263 | E91: 3399.105263 | F91: 3399.105263 | G91: 3399.105263 | H91: 3399.105263 | I91: 3399.105263 | J91: 3399.105263
A92: Closing deferred tax | D92: =D89+(D90-D91)*D6 -> -12013.44959 | E92: -13707.31479 | F92: -15538.12859 | G92: -17445.76313 | H92: -19311.77144 | I92: -21125.45806 | J92: -22887.49287
A93: Outputs
C94: Value | D94: =Inputs!D$12 -> 2018/19 | E94: =Inputs!E$12 -> 2019/20 | F94: =Inputs!F$12 -> 2020/21 | G94: =Inputs!G$12 -> 2021/22 | H94: =Inputs!H$12 -> 2022/23 | I94: =Inputs!I$12 -> 2023/24 | J94: =Inputs!J$12 -> 2024/25
A95: Total adjusted depreciation of commissioned assets | D95: =D59 -> 0 | E95: 0 | F95: 568.2103925 | G95: 1086.554797 | H95: 1466.059023 | I95: 1837.971955 | J95: 2216.55611
A96: Opening deferred tax | D96: =D89 -> -10333.3514 | E96: =E89 -> -12013.44959 | F96: -13707.31479 | G96: -15538.12859 | H96: -17445.76313 | I96: -19311.77144 | J96: -21125.45806
A97: Closing deferred tax | D97: =D92 -> -12013.44959 | E97: =E92 -> -13707.31479 | F97: -15538.12859 | G97: -17445.76313 | H97: -19311.77144 | I97: -21125.45806 | J97: -22887.49287
A98: Regulatory tax adjustments | D98: =D85 -> 841.0003981 | E98: =E85 -> 769.8152742 | F98: 699.6277526 | G98: 714.1321556 | H98: 843.6731256 | I98: 995.2727029 | J98: 1159.489556

Sheet BBAR
A1: Building blocks allowable revenue | J1: =EDB_Name -> Total for selected EDBs
A2: Derivation of BBAR present value, opening investment value, and TCSD allowance.
A3: Inputs
B4: Source | C4: Value | D4: =Inputs!D$12 -> 2018/19 | E4: =Inputs!E$12 -> 2019/20 | F4: =Inputs!F$12 -> 2020/21 | G4: =Inputs!G$12 -> 2021/22 | H4: =Inputs!H$12 -> 2022/23 | I4: =Inputs!I$12 -> 2023/24 | J4: =Inputs!J$12 -> 2024/25
A5: Year in regulatory period | B5: EDB data | F5: ='EDB data'!D22 -> 1 | G5: ='EDB data'!E22 -> 2 | H5: ='EDB data'!F22 -> 3 | I5: ='EDB data'!G22 -> 4 | J5: ='EDB data'!H22 -> 5
A6: Tax rate | B6: EDB data | D6: ='EDB data'!B25 -> 0.28 | E6: ='EDB data'!C25 -> 0.28 | F6: ='EDB data'!D25 -> 0.28 | G6: ='EDB data'!E25 -> 0.28 | H6: ='EDB data'!F25 -> 0.28 | I6: ='EDB data'!G25 -> 0.28 | J6: ='EDB data'!H25 -> 0.28
A7: Other regulated income | B7: EDB data | D7: ='EDB data'!$B82 -> 0 | E7: ='EDB data'!$B83 -> 0 | F7: ='EDB data'!$B84 -> 0 | G7: ='EDB data'!$B85 -> 0 | H7: ='EDB data'!$B86 -> 0 | I7: ='EDB data'!$B87 -> 0 | J7: ='EDB data'!$B88 -> 0
A8: Term credit spread differential allowance | B8: EDB data | D8: ='EDB data'!B39 -> 0
A9: Value of commissioned assets | B9: EDB data | D9: ='EDB data'!$B64 -> 22622.20291 | E9: ='EDB data'!$B65 -> 25001.25727 | F9: ='EDB data'!$B66 -> 22807.15378 | G9: ='EDB data'!$B67 -> 16698.18597 | H9: ='EDB data'!$B68 -> 16364.169 | I9: ='EDB data'!$B69 -> 16657.70283 | J9: ='EDB data'!$B70 -> 17735.53137
A10: Operating expenditure | B10: EDB data | D10: ='EDB data'!$B46 ->  | E10: ='EDB data'!$B47 ->  | F10: ='EDB data'!$B48 -> 17657.33647 | G10: ='EDB data'!$B49 -> 18209.31413 | H10: ='EDB data'!$B50 -> 18754.02958 | I10: ='EDB data'!$B51 -> 19260.57163 | J10: ='EDB data'!$B52 -> 19636.11582
A11: Vanilla WACC (67th percentile) | B11: EDB data | C11: =WACC -> 0.0513
A12: TFopex | B12: TIMING | C12: =TIMING!C23 -> 1.025258951
A13: TFtax | B13: TIMING | C13: =TIMING!C24 -> 1.025258951
A14: TFVCA | B14: TIMING | C14: =TIMING!C25 -> 1.025258951
A15: TFori | B15: TIMING | C15: =TIMING!C26 -> 1.025258951
A16: TFrev | B16: TIMING | C16: =TIMING!C27 -> 1.020492262
A17: Aggregate opening RAB value | B17: RAB | D17: =RAB!D93 -> 251488.161 | E17: =RAB!E93 -> 268572.3018 | F17: =RAB!F93 -> 287528.4546 | G17: =RAB!G93 -> 305007.2431 | H17: =RAB!H93 -> 315978.9554 | I17: =RAB!I93 -> 326098.6286 | J17: =RAB!J93 -> 335966.8778
A18: Total revaluation | B18: RAB | D18: =RAB!D94 -> 0 | E18: =RAB!E94 -> 4560.647763 | F18: =RAB!F94 -> 6031.934135 | G18: =RAB!G94 -> 6399.086024 | H18: =RAB!H94 -> 6524.364817 | I18: =RAB!I94 -> 6625.009953 | J18: =RAB!J94 -> 6713.885483
A19: Total depreciation | B19: RAB | D19: =RAB!D92 -> 9527.547071 | E19: =RAB!E92 -> 10575.42054 | F19: =RAB!F92 -> 11329.33085 | G19: =RAB!G92 -> 12093.94069 | H19: =RAB!H92 -> 12736.58822 | I19: =RAB!I92 -> 13381.53501 | J19: =RAB!J92 -> 14042.69843
A20: Opening deferred tax | B20: TAX | D20: =TAX!D96 -> -10333.3514 | E20: =TAX!E96 -> -12013.44959 | F20: =TAX!F96 -> -13707.31479 | G20: =TAX!G96 -> -15538.12859 | H20: =TAX!H96 -> -17445.76313 | I20: =TAX!I96 -> -19311.77144 | J20: =TAX!J96 -> -21125.45806
A21: Closing deferred tax | B21: TAX | D21: =TAX!D97 -> -12013.44959 | E21: =TAX!E97 -> -13707.31479 | F21: =TAX!F97 -> -15538.12859 | G21: =TAX!G97 -> -17445.76313 | H21: =TAX!H97 -> -19311.77144 | I21: =TAX!I97 -> -21125.45806 | J21: =TAX!J97 -> -22887.49287
A22: Regulatory tax adjustments | B22: TAX | D22: =TAX!D98 -> 841.0003981 | E22: =TAX!E98 -> 769.8152742 | F22: =TAX!F98 -> 699.6277526 | G22: =TAX!G98 -> 714.1321556 | H22: =TAX!H98 -> 843.6731256 | I22: =TAX!I98 -> 995.2727029 | J22: =TAX!J98 -> 1159.489556
A23: Calculations
A24: Term credit spread differential allowance
D25: =Inputs!D$12 -> 2018/19 | E25: =Inputs!E$12 -> 2019/20 | F25: =Inputs!F$12 -> 2020/21 | G25: =Inputs!G$12 -> 2021/22 | H25: =Inputs!H$12 -> 2022/23 | I25: =Inputs!I$12 -> 2023/24 | J25: =Inputs!J$12 -> 2024/25
A26: Asset base scaling factor | D26: =D17/$D$17 -> 1 | E26: 1.067932187 | F26: 1.143308112 | G26: 1.212809549 | H26: 1.256436701 | I26: 1.296675865 | J26: 1.335915283
A27: Term credit spread differential allowance | D27: =IF(D8>0,D8,0) -> 0 | E27: =$D27*E26 -> 0 | F27: 0 | G27: 0 | H27: 0 | I27: 0 | J27: 0
A28: Return on capital
D29: =Inputs!D$12 -> 2018/19 | E29: =Inputs!E$12 -> 2019/20 | F29: =Inputs!F$12 -> 2020/21 | G29: =Inputs!G$12 -> 2021/22 | H29: =Inputs!H$12 -> 2022/23 | I29: =Inputs!I$12 -> 2023/24 | J29: =Inputs!J$12 -> 2024/25
A30: Opening investment value | D30: =D17+D20 -> 241154.8096 | E30: 256558.8522 | F30: 273821.1398 | G30: 289469.1145 | H30: 298533.1923 | I30: 306786.8572 | J30: 314841.4197
A31: Value of commissioned assets | D31: =D9 -> 22622.20291 | E31: 25001.25727 | F31: 22807.15378 | G31: 16698.18597 | H31: 16364.169 | I31: 16657.70283 | J31: 17735.53137
A32: Term credit spread differential allowance | D32: =D27 -> 0 | E32: 0 | F32: 0 | G32: 0 | H32: 0 | I32: 0 | J32: 0
A33: Total revaluation | D33: =D18 -> 0 | E33: =E18 -> 4560.647763 | F33: 6031.934135 | G33: 6399.086024 | H33: 6524.364817 | I33: 6625.009953 | J33: 6713.885483
A34: Return on capital | D34: =D30*$C$11+D31*($C$14-1)+D32-D33 -> 12942.65485 | E34: =E30*$C$11+E31*($C$14-1)+E32-E33 -> 9232.326892 | F34: 8591.175123 | G34: 8872.458213 | H34: 9203.729694 | I34: 9533.911922 | J34: 9885.460269
A35: Operating expenditure
D36: =Inputs!D$12 -> 2018/19 | E36: =Inputs!E$12 -> 2019/20 | F36: =Inputs!F$12 -> 2020/21 | G36: =Inputs!G$12 -> 2021/22 | H36: =Inputs!H$12 -> 2022/23 | I36: =Inputs!I$12 -> 2023/24 | J36: =Inputs!J$12 -> 2024/25
A37: Operating expenditure | D37: =D10 ->  | F37: 17657.33647 | G37: 18209.31413 | H37: 18754.02958 | I37: 19260.57163 | J37: 19636.11582
A38: Operating expenditure allowance | D38: =D37*$C$12 ->  | F38: 18103.34227 | G38: 18669.2623 | H38: 19227.73669 | I38: 19747.07347 | J38: 20132.10351
A39: Building block allowable revenue before tax (BBAR before tax)
D40: =Inputs!D$12 -> 2018/19 | E40: =Inputs!E$12 -> 2019/20 | F40: =Inputs!F$12 -> 2020/21 | G40: =Inputs!G$12 -> 2021/22 | H40: =Inputs!H$12 -> 2022/23 | I40: =Inputs!I$12 -> 2023/24 | J40: =Inputs!J$12 -> 2024/25
A41: Increase in deferred tax asset, ΔDT | D41: =D21-D20 -> -1680.098192 | E41: -1693.865199 | F41: -1830.813805 | G41: -1907.634534 | H41: -1866.008318 | I41: -1813.686615 | J41: -1762.034815
A42: BBAR before tax in revenue date terms, calculation not referencing tax | D42: =(D34+D19+D38+((D7-D37-D19+D22)*D6+D41)*$C13-D41-D7*$C15)/($C16-D6*$C13) ->  | E42: =(E34+E19+E38+((E7-E37-E19+E22)*E6+E41)*$C13-E41-E7*$C15)/($C16-E6*$C13) ->  | F42: 40709.52852 | G42: 42394.89394 | H42: 44071.65981 | I42: 45719.75649 | J42: 47285.81519
A43: Regulatory tax allowance before considering possibility of tax losses | D43: =(D42+D7-D37-D19+D22)*D6 ->  | E43: =(E42+E7-E37-E19+E22)*E6 ->  | F43: 3478.296907 | G43: 3585.615958 | H43: 3758.920242 | I43: 3940.418318 | J43: 4134.617336
A44: Regulatory tax allowance | D44: =IF(D43<0,#N/A,D43) ->  | F44: 3478.296907 | G44: 3585.615958 | H44: 3758.920242 | I44: 3940.418318 | J44: 4134.617336
A45: BBAR before tax in year-end terms, direct simple calculation | D45: =D34+D19+D38+(D44+D41)*$C$13-D41-D7*$C$15 ->  | F45: 41543.75885 | G45: 43263.66122 | H45: 44974.78781 | I45: 46656.65772 | J45: 48254.8085
A46: BBAR before tax in revenue date terms | D46: =D45/$C$16 ->  | F46: 40709.52852 | G46: 42394.89394 | H46: 44071.65981 | I46: 45719.75649 | J46: 47285.81519
A47: Difference between the two BBAR calculations (should = 0) | D47: =D42-D46 ->  | F47: 0 | G47: 0 | H47: 0 | I47: 0 | J47: 0
A48: Present value of the building block allowable revenue before tax
C49: Value | D49: =Inputs!D$12 -> 2018/19 | E49: =Inputs!E$12 -> 2019/20 | F49: =Inputs!F$12 -> 2020/21 | G49: =Inputs!G$12 -> 2021/22 | H49: =Inputs!H$12 -> 2022/23 | I49: =Inputs!I$12 -> 2023/24 | J49: =Inputs!J$12 -> 2024/25
A50: Number of years to discount the year-end values to start of the present value period | F50: =F5 -> 1 | G50: =G5 -> 2 | H50: =H5 -> 3 | I50: =I5 -> 4 | J50: =J5 -> 5
A51: BBAR before tax in year-end terms, i.e. Rev * TFrev | F51: =F45 -> 41543.75885 | G51: =G45 -> 43263.66122 | H51: =H45 -> 44974.78781 | I51: =I45 -> 46656.65772 | J51: =J45 -> 48254.8085
A52: PV at 1 Apr 2015 of BBAR before tax for each year | F52: =F51/(1+WACC)^F$50 -> 39516.55935 | G52: =G51/(1+WACC)^G$50 -> 39144.42701 | H52: =H51/(1+WACC)^H$50 -> 38706.9659 | I52: =I51/(1+WACC)^I$50 -> 38195.03981 | J52: =J51/(1+WACC)^J$50 -> 37575.71683
A53: PV at 1 Apr 2015 of BBAR before tax over the regulatory period | C53: =SUM(F52:J52) -> 193138.7089
A54: Outputs
C55: Value | D55: =Inputs!D$12 -> 2018/19 | E55: =Inputs!E$12 -> 2019/20 | F55: =Inputs!F$12 -> 2020/21 | G55: =Inputs!G$12 -> 2021/22 | H55: =Inputs!H$12 -> 2022/23 | I55: =Inputs!I$12 -> 2023/24 | J55: =Inputs!J$12 -> 2024/25
A56: Opening investment value | D56: =D30 -> 241154.8096 | E56: 256558.8522 | F56: 273821.1398 | G56: 289469.1145 | H56: 298533.1923 | I56: 306786.8572 | J56: 314841.4197
A57: PV at 1 Apr 2015 of BBAR before tax over the regulatory period | C57: =C53 -> 193138.7089
A58: Term credit spread differential allowance | D58: =D27 -> 0 | E58: =E27 -> 0 | F58: 0 | G58: 0 | H58: 0 | I58: 0 | J58: 0
A59: BBAR before tax in revenue date terms, calculation not referencing tax | D59: =D42 ->  | E59: =E42 ->  | F59: 40709.52852 | G59: 42394.89394 | H59: 44071.65981 | I59: 45719.75649 | J59: 47285.81519

Sheet REV
A1: Revenue growth index | H1: =EDB_Name -> Total for selected EDBs
A2: Derivation of the normalised profile of the maximum allowable revenue before tax values.
A3: Inputs
B4: Source | C4: Value | D4: =Inputs!F$12 -> 2020/21 | E4: =Inputs!G$12 -> 2021/22 | F4: =Inputs!H$12 -> 2022/23 | G4: =Inputs!I$12 -> 2023/24 | H4: =Inputs!J$12 -> 2024/25
A5: Constant price revenue growth | B5: EDB data | D5: ='EDB data'!$B57 -> 0 | E5: ='EDB data'!$B58 -> 0 | F5: ='EDB data'!$B59 -> 0 | G5: ='EDB data'!$B60 -> 0 | H5: ='EDB data'!$B61 -> 0
A6: Industry-wide X factor | B6: EDB data | C6: ='EDB data'!B14 -> 0
A7: Alternative X factor | B7: EDB data | C7: ='EDB data'!B43 -> 0
A8: Forecast changes in the CPI element of the price path | B8: EDB data | D8: ='EDB data'!D24 -> 0.01975379478 | E8: ='EDB data'!E24 -> 0.02074952399 | F8: ='EDB data'!F24 -> 0.02066666667 | G8: ='EDB data'!G24 -> 0.02033333333 | H8: ='EDB data'!H24 -> 0.02
A9: Calculations
A10: ="Index of price path with industry-wide X factor of "&TEXT(C6,"#0.0%") -> Index of price path with industry-wide X factor of 0.0%
C11: Value | D11: =Inputs!F$12 -> 2020/21 | E11: =Inputs!G$12 -> 2021/22 | F11: =Inputs!H$12 -> 2022/23 | G11: =Inputs!I$12 -> 2023/24 | H11: =Inputs!J$12 -> 2024/25
A12: X value applied | C12: =C6 -> 0
A13: Index of price path | D13: 1 | E13: =D13*(1+E$8)*(1-$C$6) -> 1.020749524 | F13: =E13*(1+F$8)*(1-$C$6) -> 1.041845014 | G13: =F13*(1+G$8)*(1-$C$6) -> 1.063029196 | H13: =G13*(1+H$8)*(1-$C$6) -> 1.08428978
A14: Index of constant price growth | D14: 1 | E14: =D14*(1+E$5) -> 1 | F14: =E14*(1+F$5) -> 1 | G14: 1 | H14: 1
A15: Indexed maximum allowable revenue before tax | D15: 1 | E15: =E13*E14 -> 1.020749524 | F15: =F13*F14 -> 1.041845014 | G15: =G13*G14 -> 1.063029196 | H15: =H13*H14 -> 1.08428978
A16: ="CPI minus X revenues with applicable X factor (" & IF(ISNUMBER(C7),"alternate X factor of " & TEXT(C7,"#0.0%"), "industry-wide X factor of " & TEXT(C6,"#0.0%"))&")" -> CPI minus X revenues with applicable X factor (alternate X factor of 0.0%)
C17: Value | D17: =Inputs!F$12 -> 2020/21 | E17: =Inputs!G$12 -> 2021/22 | F17: =Inputs!H$12 -> 2022/23 | G17: =Inputs!I$12 -> 2023/24 | H17: =Inputs!J$12 -> 2024/25
A18: X value applied | C18: =IF(ISNUMBER(C7),C7,C6) -> 0
A19: Index of price path | D19: 1 | E19: =D19*(1+E$8)*(1-$C$18) -> 1.020749524 | F19: =E19*(1+F$8)*(1-$C$18) -> 1.041845014 | G19: =F19*(1+G$8)*(1-$C$18) -> 1.063029196 | H19: =G19*(1+H$8)*(1-$C$18) -> 1.08428978
A20: Index of constant price growth | D20: 1 | E20: =D20*(1+E$5) -> 1 | F20: =E20*(1+F$5) -> 1 | G20: 1 | H20: 1
A21: Indexed maximum allowable revenue before tax | D21: 1 | E21: =E19*E20 -> 1.020749524 | F21: =F19*F20 -> 1.041845014 | G21: =G19*G20 -> 1.063029196 | H21: =H19*H20 -> 1.08428978
A23: This data block calculates maximum allowable revenues for the regulatory period for the 2014/15 X value that has been applied. These
A24: Maximum allowable revenues are set PV equivalent to the corresponding maximum allowable revenues for the industry-wide X CPI - X revenues.
A25: Outputs
C26: Misc. | D26: =Inputs!F$12 -> 2020/21 | E26: =Inputs!G$12 -> 2021/22 | F26: =Inputs!H$12 -> 2022/23 | G26: =Inputs!I$12 -> 2023/24 | H26: =Inputs!J$12 -> 2024/25
A27: Indexed maximum allowable revenue before tax—industry wide X factor | D27: =D15 -> 1 | E27: =E15 -> 1.020749524 | F27: =F15 -> 1.041845014 | G27: =G15 -> 1.063029196 | H27: =H15 -> 1.08428978
A28: Indexed maximum allowable revenue before tax—applicable X factor | D28: =D21 -> 1 | E28: =E21 -> 1.020749524 | F28: 1.041845014 | G28: 1.063029196 | H28: 1.08428978

Sheet MAR
A1: Maximum allowable revenue | H1: =EDB_Name -> Total for selected EDBs
A2: Derivation of starting prices.
A3: Inputs
B4: Source | C4: Value | D4: =Inputs!F$12 -> 2020/21 | E4: =Inputs!G$12 -> 2021/22 | F4: =Inputs!H$12 -> 2022/23 | G4: =Inputs!I$12 -> 2023/24 | H4: =Inputs!J$12 -> 2024/25
A5: Year in regulatory period | B5: EDB data | D5: ='EDB data'!D22 -> 1 | E5: ='EDB data'!E22 -> 2 | F5: ='EDB data'!F22 -> 3 | G5: ='EDB data'!G22 -> 4 | H5: ='EDB data'!H22 -> 5
A6: Industry-wide X factor | B6: EDB data | C6: ='EDB data'!B14 -> 0
A7: Additional allowance in 1 April 2015 PV terms | B7: EDB data | C7: ='EDB data'!B42 -> 0
A8: Alternative X factor | B8: EDB data | C8: ='EDB data'!B43 -> 0
A9: Vanilla WACC (67th percentile) | B9: EDB data | C9: =WACC -> 0.0513
A10: TFrev | B10: TIMING | C10: =TIMING!C27 -> 1.020492262
A11: Constant price revenue growth 2015 | B11: EDB data | C11: ='EDB data'!B56 -> 0
A12: Constant price revenue growth 2016 | B12: EDB data | C12: ='EDB data'!B57 -> 0
A13: PV at 1 Apr 2015 of BBAR before tax over the regulatory period | B13: BBAR | C13: =BBAR!C57 -> 193138.7089
A14: Indexed maximum allowable revenue before tax—industry wide X factor | B14: REV | D14: =REV!D27 -> 1 | E14: =REV!E27 -> 1.020749524 | F14: =REV!F27 -> 1.041845014 | G14: =REV!G27 -> 1.063029196 | H14: =REV!H27 -> 1.08428978
A15: Indexed maximum allowable revenue before tax—applicable X factor | B15: REV | D15: =REV!D28 -> 1 | E15: =REV!E28 -> 1.020749524 | F15: =REV!F28 -> 1.041845014 | G15: =REV!G28 -> 1.063029196 | H15: =REV!H28 -> 1.08428978
A16: Calculations
A17: ="CPI minus X revenues with industry-wide X factor of "&TEXT(C6,"#0.0%") -> CPI minus X revenues with industry-wide X factor of 0.0%
C18: PV at 1-Apr-15 | D18: =Inputs!F$12 -> 2020/21 | E18: =Inputs!G$12 -> 2021/22 | F18: =Inputs!H$12 -> 2022/23 | G18: =Inputs!I$12 -> 2023/24 | H18: =Inputs!J$12 -> 2024/25
A19: PV at 1 Apr 2015 of BBAR before tax over the regulatory period | C19: =C13 -> 193138.7089
A20: Additional allowance | C20: =C7 -> 0
A21: PV at 1 Apr 2015 of maximum allowable revenue before tax | C21: =C19+C20 -> 193138.7089
A22: Indexed maximum allowable revenue before tax | D22: =D14 -> 1 | E22: =E14 -> 1.020749524 | F22: =F14 -> 1.041845014 | G22: =G14 -> 1.063029196 | H22: =H14 -> 1.08428978
A23: Present value of indexed maximum allowable revenue for each year | D23: =D22/(1+$C$9)^D$5 -> 0.9512032721 | E23: =E22/(1+$C$9)^E$5 -> 0.9235615783 | F23: =F22/(1+$C$9)^F$5 -> 0.8966503544 | G23: =G22/(1+$C$9)^G$5 -> 0.870238985 | H23: =H22/(1+$C$9)^H$5 -> 0.8443296535
A24: Present value of indexed revenue | C24: =SUM(D23:H23) -> 4.485983843
A25: Maximum allowable revenue before tax in first year of the regulatory period | C25: =C21/C24 -> 43053.81286
A26: Maximum allowable revenue before tax in year-end terms | D26: =$C25*D22 -> 43053.81286 | E26: =$C25*E22 -> 43947.15899 | F26: =$C25*F22 -> 44855.40027 | G26: =$C25*G22 -> 45767.46008 | H26: =$C25*H22 -> 46682.80928
A27: Maximum allowable revenue before tax in revenue-date terms | D27: =D26/$C$10 -> 42189.2595 | E27: =E26/$C$10 -> 43064.66656 | F27: =F26/$C$10 -> 43954.66966 | G27: =G26/$C$10 -> 44848.41461 | H27: =H26/$C$10 -> 45745.38291
A28: PV at 1 Apr 2015 of maximum allowable revenue before tax in year-end terms in each year | D28: =D26/(1+$C$9)^D5 -> 40952.92767 | E28: =E26/(1+$C$9)^E5 -> 39762.84736 | F28: =F26/(1+$C$9)^F5 -> 38604.21656 | G28: =G26/(1+$C$9)^G5 -> 37467.10641 | H28: =H26/(1+$C$9)^H5 -> 36351.6109
A29: PV at 1 Apr 2015 of maximum allowable revenue before tax | C29: =SUM(D28:H28) -> 193138.7089
A30: Error check for PV equivalence (should = 0) | C30: =C21-C29 -> 0
A31: ΔD | C31: =(1+$C$11)*(1+$C$12) -> 1
A32: ANR 2016 (industry-wide X-factor) | C32: =C29/C31 -> 193138.7089
A33: ="CPI minus X revenues with applicable X factor (" & IF(ISNUMBER(C8),"alternate X factor of " & TEXT(C8,"#0.0%"), "industry-wide X factor of " & TEXT(C6,"#0.0%"))&")" -> CPI minus X revenues with applicable X factor (alternate X factor of 0.0%)
C34: PV at 1-Apr-15 | D34: 2015/16 | E34: 2016/17 | F34: 2017/18 | G34: 2018/19 | H34: 2019/20
A35: PV at 1 Apr 2015 of BBAR before tax over the regulatory period | C35: =C13 -> 193138.7089
A36: Additional allowance | C36: =C7 -> 0
A37: PV at 1 Apr 2015 of maximum allowable revenue before tax | C37: =C35+C36 -> 193138.7089
A38: Indexed maximum allowable revenue before tax | D38: =D15 -> 1 | E38: =E15 -> 1.020749524 | F38: =F15 -> 1.041845014 | G38: =G15 -> 1.063029196 | H38: =H15 -> 1.08428978
A39: Present value of indexed maximum allowable revenue for each year | D39: =D38/(1+$C$9)^D$5 -> 0.9512032721 | E39: =E38/(1+$C$9)^E$5 -> 0.9235615783 | F39: =F38/(1+$C$9)^F$5 -> 0.8966503544 | G39: =G38/(1+$C$9)^G$5 -> 0.870238985 | H39: =H38/(1+$C$9)^H$5 -> 0.8443296535
A40: Present value of indexed revenue | C40: =SUM(D39:H39) -> 4.485983843
A41: Maximum allowable revenue before tax in first year of the regulatory period | C41: =C37/C40 -> 43053.81286
A42: Maximum allowable revenue before tax in year-end terms | D42: =$C41*D38 -> 43053.81286 | E42: 43947.15899 | F42: =$C41*F38 -> 44855.40027 | G42: =$C41*G38 -> 45767.46008 | H42: =$C41*H38 -> 46682.80928
A43: Maximum allowable revenue before tax in revenue-date terms | D43: =D42/$C$10 -> 42189.2595 | E43: =E42/$C$10 -> 43064.66656 | F43: =F42/$C$10 -> 43954.66966 | G43: 44848.41461 | H43: 45745.38291
A44: PV at 1 Apr 2015 of maximum allowable revenue before tax in year-end terms in each year | D44: =D42/(1+$C$9)^D$5 -> 40952.92767 | E44: =E42/(1+$C$9)^E$5 -> 39762.84736 | F44: =F42/(1+$C$9)^F$5 -> 38604.21656 | G44: =G42/(1+$C$9)^G$5 -> 37467.10641 | H44: =H42/(1+$C$9)^H$5 -> 36351.6109
A45: PV at 1 Apr 2015 of maximum allowable revenue before tax | C45: =SUM(D44:H44) -> 193138.7089
A46: Difference from PV equivalence (incentives etc.) | C46: =C37-C45 -> 0
A47: ΔD | C47: =(1+$C$11)*(1+$C$12) -> 1
A48: ANR 2016 (applicable X-factor) | C48: =D44/C47 -> 40952.92767
A50: This data block uses the applicable 2014/15 X factor to calculate the maximum allowable revenues for the regulatory period. These allowed
A51: revenues are PV-equivalent to the corresponding revenues calculated with the industry-wide X factor in the previous data block.
A52: Outputs
D53: =Inputs!F$12 -> 2020/21 | E53: =Inputs!G$12 -> 2021/22 | F53: =Inputs!H$12 -> 2022/23 | G53: =Inputs!I$12 -> 2023/24 | H53: =Inputs!J$12 -> 2024/25
A54: Maximum allowable revenue before tax in revenue-date terms for industry wide X factor | D54: =D27 -> 42189.2595 | E54: =E27 -> 43064.66656 | F54: 43954.66966 | G54: 44848.41461 | H54: 45745.38291
A55: Maximum allowable revenue before tax in revenue-date terms for applicable X factor | D55: =D43 -> 42189.2595 | E55: =E43 -> 43064.66656 | F55: 43954.66966 | G55: 44848.41461 | H55: 45745.38291
A56: Starting price for industry-wide X factor | D56: =D27 -> 42189.2595
A57: Starting price for applicable X factor | D57: =D43 -> 42189.2595
A58: PV at 1 Apr 2015 of MAR before tax over the regulatory period (industry X ) | D58: =C21 -> 193138.7089
A59: PV at 1 Apr 2015 of MAR before tax over the regulatory period (Applicable X) | D59: =C37 -> 193138.7089
A60: ΔD | D60: =C47 -> 1
A61: ANR 2016 (applicable X-factor) | D61: =C48 -> 40952.92767

Sheet Reconciliation
A1: Reconciliation with financial models outputs
A2: Reconciliation of this waterfall model outputs with 2015 and 2020 financial model outputs | F2: How this sheet operates | K2: Mode is set by Cell C5 on the Waterfall chart. | P2: ="Currently, mode = " & Waterfall!D5 -> Currently, mode = 14
F3: When the mode is set to 14, the panel with a blue fill colour below (see Cell W11) should be filled with zeros.
A4: Distributor | C4: Scenario | F4: When the mode is set to 0, the panel with a tan fill colour below (see Cell C40) should be filled with zeros.
A5: Name | C5: =EDB_Name -> Total for selected EDBs
A6: Distributor number | C6: ='EDB data'!C6 -> 14 | G6: Block below with this fill colour is for data table with first argument set to C5, second argument blank.
B8: Active EDB outputs | C8: =Inputs!C28 -> Alpine Energy | D8: =Inputs!D28 -> Aurora Energy | E8: =Inputs!E28 -> Centralines | F8: =Inputs!F28 -> EA Networks | G8: =Inputs!G28 -> Eastland Network | H8: =Inputs!H28 -> Electricity Invercargill | I8: =Inputs!I28 -> Horizon Energy | J8: =Inputs!J28 -> Nelson Electricity | K8: =Inputs!K28 -> Network Tasman | L8: =Inputs!L28 -> Orion | M8: =Inputs!M28 -> OtagoNet | N8: =Inputs!N28 -> Powerco | O8: =Inputs!O28 -> The Lines Company | P8: =Inputs!P28 -> Top Energy | Q8: =Inputs!Q28 -> Unison | R8: =Inputs!R28 -> Vector | S8: =Inputs!S28 -> Wellington Electricity
A9: Distributor number | B9: =C6 -> 14 | C9: =Inputs!C29 -> 1 | D9: =Inputs!D29 -> 2 | E9: =Inputs!E29 -> 3 | F9: =Inputs!F29 -> 4 | G9: =Inputs!G29 -> 5 | H9: =Inputs!H29 -> 6 | I9: =Inputs!I29 -> 7 | J9: =Inputs!J29 -> 8 | K9: =Inputs!K29 -> 9 | L9: =Inputs!L29 -> 10 | M9: =Inputs!M29 -> 11 | N9: =Inputs!N29 -> 12 | O9: =Inputs!O29 -> 13 | P9: =Inputs!P29 -> 14 | Q9: =Inputs!Q29 -> 15 | R9: =Inputs!R29 -> 16 | S9: =Inputs!S29 -> 17
A10: Outputs | C10: 0 | D10: 0 | E10: 0 | F10: 0 | G10: 0 | H10: 0 | I10: 0 | J10: 0 | K10: 0 | L10: 0 | M10: 0 | N10: 0 | O10: 0 | P10: 0 | Q10: 0 | R10: 0 | S10: 0 | W10: Reconcilation of this waterfall model with the 2020 financial model outputs is achieved when the blue coloured panel below indicates zero values. The #N/A results are from the #N/A values in the draft 2020 DPP reset financial model outputs. This requres the "mode" setting at cell D5 on the Waterfall sheet to be set to 14.
A11: PV at 1 Apr 2020 of BBAR | B11: =BBAR!C57 -> 193138.7089 | C11: 207660.3982 | D11: 391914.4852 | E11: 43025.68549 | F11: 172569.6271 | G11: 114700.0865 | H11: 56269.82546 | I11: 114486.9463 | J11: 25582.49858 | K11: 131754.879 | L11: 737822.3682 | M11: 114835.089 | O11: 155390.3676 | P11: 193138.7089 | Q11: 468095.9529 | R11: 1846481.339 | S11: 461489.8722 | T11: 777 | W11: =C11-[2]Outputs!C9 -> 0 | X11: =D11-[2]Outputs!D9 -> 0 | Y11: =E11-[2]Outputs!E9 -> 0 | Z11: =F11-[2]Outputs!F9 -> 0 | AA11: =G11-[2]Outputs!G9 -> 0 | AB11: =H11-[2]Outputs!H9 -> 0 | AC11: =I11-[2]Outputs!I9 -> 0 | AD11: =J11-[2]Outputs!J9 -> 0 | AE11: =K11-[2]Outputs!K9 -> 0 | AF11: =L11-[2]Outputs!L9 -> 0 | AG11: =M11-[2]Outputs!M9 -> 0 | AH11: =N11-[2]Outputs!N9 ->  | AI11: =O11-[2]Outputs!O9 -> 0 | AJ11: =P11-[2]Outputs!P9 -> 0 | AK11: =Q11-[2]Outputs!Q9 -> 0 | AL11: =R11-[2]Outputs!R9 -> 0 | AM11: =S11-[2]Outputs!S9 -> 0
A12: Starting price for industry-wide X factor | B12: =MAR!D56 -> 42189.2595 | C12: 45361.38032 | D12: 85609.88118 | E12: 9398.539633 | F12: 37696.14503 | G12: 25055.11062 | H12: 12291.59231 | I12: 25008.55222 | J12: 5588.24628 | K12: 28780.563 | L12: 161170.0707 | M12: 25084.60058 | O12: 33943.50402 | P12: 42189.2595 | Q12: 102250.9767 | R12: 403345.7655 | S12: 100807.9431 | W12: =C12-[2]Outputs!C10 -> 0 | X12: =D12-[2]Outputs!D10 -> 0 | Y12: =E12-[2]Outputs!E10 -> 0 | Z12: =F12-[2]Outputs!F10 -> 0 | AA12: =G12-[2]Outputs!G10 -> 0 | AB12: =H12-[2]Outputs!H10 -> 0 | AC12: =I12-[2]Outputs!I10 -> 0 | AD12: =J12-[2]Outputs!J10 -> 0 | AE12: =K12-[2]Outputs!K10 -> 0 | AF12: =L12-[2]Outputs!L10 -> 0 | AG12: =M12-[2]Outputs!M10 -> 0 | AH12: =N12-[2]Outputs!N10 ->  | AI12: =O12-[2]Outputs!O10 -> 0 | AJ12: =P12-[2]Outputs!P10 -> 0 | AK12: =Q12-[2]Outputs!Q10 -> 0 | AL12: =R12-[2]Outputs!R10 -> 0 | AM12: =S12-[2]Outputs!S10 -> 0
A13: Starting price for applicable X factor | B13: =MAR!D57 -> 42189.2595 | C13: 45361.38032 | D13: 72030.72752 | E13: 9398.539633 | F13: 37696.14503 | G13: 25055.11062 | H13: 12291.59231 | I13: 25008.55222 | J13: 5588.24628 | K13: 28780.563 | L13: 161170.0707 | M13: 25084.60058 | O13: 33943.50402 | P13: 42189.2595 | Q13: 102250.9767 | R13: 403345.7655 | S13: 100807.9431 | W13: =C13-[2]Outputs!C11 -> 0 | X13: =D13-[2]Outputs!D11 -> 0 | Y13: =E13-[2]Outputs!E11 -> 0 | Z13: =F13-[2]Outputs!F11 -> 0 | AA13: =G13-[2]Outputs!G11 -> 0 | AB13: =H13-[2]Outputs!H11 -> 0 | AC13: =I13-[2]Outputs!I11 -> 0 | AD13: =J13-[2]Outputs!J11 -> 0 | AE13: =K13-[2]Outputs!K11 -> 0 | AF13: =L13-[2]Outputs!L11 -> 0 | AG13: =M13-[2]Outputs!M11 -> 0 | AH13: =N13-[2]Outputs!N11 ->  | AI13: =O13-[2]Outputs!O11 -> 0 | AJ13: =P13-[2]Outputs!P11 -> 0 | AK13: =Q13-[2]Outputs!Q11 -> 0 | AL13: =R13-[2]Outputs!R11 -> 0 | AM13: =S13-[2]Outputs!S11 -> 0
A14: PV at 1 Apr 2020 of MAR before tax over the regulatory period (Applicable X) | B14: =MAR!D59 -> 193138.7089 | C14: 207660.3982 | D14: 391914.4852 | E14: 43025.68549 | F14: 172569.6271 | G14: 114700.0865 | H14: 56269.82546 | I14: 114486.9463 | J14: 25582.49858 | K14: 131754.879 | L14: 737822.3682 | M14: 114835.089 | O14: 155390.3676 | P14: 193138.7089 | Q14: 468095.9529 | R14: 1846481.339 | S14: 461489.8722 | W14: =C14-[2]Outputs!C12 -> 0 | X14: =D14-[2]Outputs!D12 -> 0 | Y14: =E14-[2]Outputs!E12 -> 0 | Z14: =F14-[2]Outputs!F12 -> 0 | AA14: =G14-[2]Outputs!G12 -> 0 | AB14: =H14-[2]Outputs!H12 -> 0 | AC14: =I14-[2]Outputs!I12 -> 0 | AD14: =J14-[2]Outputs!J12 -> 0 | AE14: =K14-[2]Outputs!K12 -> 0 | AF14: =L14-[2]Outputs!L12 -> 0 | AG14: =M14-[2]Outputs!M12 -> 0 | AH14: =N14-[2]Outputs!N12 ->  | AI14: =O14-[2]Outputs!O12 -> 0 | AJ14: =P14-[2]Outputs!P12 -> 0 | AK14: =Q14-[2]Outputs!Q12 -> 0 | AL14: =R14-[2]Outputs!R12 -> 0 | AM14: =S14-[2]Outputs!S12 -> 0
A15: MAR (industry-wide X factor), first year of reg period | B15: =MAR!D54 -> 42189.2595 | C15: 45361.38032 | D15: 85609.88118 | E15: 9398.539633 | F15: 37696.14503 | G15: 25055.11062 | H15: 12291.59231 | I15: 25008.55222 | J15: 5588.24628 | K15: 28780.563 | L15: 161170.0707 | M15: 25084.60058 | O15: 33943.50402 | P15: 42189.2595 | Q15: 102250.9767 | R15: 403345.7655 | S15: 100807.9431 | W15: =C15-[2]Outputs!C13 -> 0 | X15: =D15-[2]Outputs!D13 -> 0 | Y15: =E15-[2]Outputs!E13 -> 0 | Z15: =F15-[2]Outputs!F13 -> 0 | AA15: =G15-[2]Outputs!G13 -> 0 | AB15: =H15-[2]Outputs!H13 -> 0 | AC15: =I15-[2]Outputs!I13 -> 0 | AD15: =J15-[2]Outputs!J13 -> 0 | AE15: =K15-[2]Outputs!K13 -> 0 | AF15: =L15-[2]Outputs!L13 -> 0 | AG15: =M15-[2]Outputs!M13 -> 0 | AH15: =N15-[2]Outputs!N13 ->  | AI15: =O15-[2]Outputs!O13 -> 0 | AJ15: =P15-[2]Outputs!P13 -> 0 | AK15: =Q15-[2]Outputs!Q13 -> 0 | AL15: =R15-[2]Outputs!R13 -> 0 | AM15: =S15-[2]Outputs!S13 -> 0
A16: MAR (industry-wide X factor), second year of reg period | B16: =MAR!E54 -> 43064.66656 | C16: 46302.60737 | D16: 87386.24546 | E16: 9593.554857 | F16: 38478.32209 | G16: 25574.99224 | H16: 12546.637 | I16: 25527.46777 | J16: 5704.19973 | K16: 29377.74598 | L16: 164514.2729 | M16: 25605.0941 | O16: 34647.81557 | P16: 43064.66656 | Q16: 104372.6358 | R16: 411714.9982 | S16: 102899.6599 | W16: =C16-[2]Outputs!C14 -> 0 | X16: =D16-[2]Outputs!D14 -> 0 | Y16: =E16-[2]Outputs!E14 -> 0 | Z16: =F16-[2]Outputs!F14 -> 0 | AA16: =G16-[2]Outputs!G14 -> 0 | AB16: =H16-[2]Outputs!H14 -> 0 | AC16: =I16-[2]Outputs!I14 -> 0 | AD16: =J16-[2]Outputs!J14 -> 0 | AE16: =K16-[2]Outputs!K14 -> 0 | AF16: =L16-[2]Outputs!L14 -> 0 | AG16: =M16-[2]Outputs!M14 -> 0 | AH16: =N16-[2]Outputs!N14 ->  | AI16: =O16-[2]Outputs!O14 -> 0 | AJ16: =P16-[2]Outputs!P14 -> 0 | AK16: =Q16-[2]Outputs!Q14 -> 0 | AL16: =R16-[2]Outputs!R14 -> 0 | AM16: =S16-[2]Outputs!S14 -> 0
A17: MAR (industry-wide X factor), third year of reg period | B17: =MAR!F54 -> 43954.66966 | C17: 47259.52792 | D17: 89192.22787 | E17: 9791.821657 | F17: 39273.54075 | G17: 26103.54208 | H17: 12805.93416 | I17: 26055.03544 | J17: 5822.086524 | K17: 29984.88607 | L17: 167914.2346 | M17: 26134.26605 | O17: 35363.87042 | P17: 43954.66966 | Q17: 106529.6703 | R17: 420223.7748 | S17: 105026.2529 | W17: =C17-[2]Outputs!C15 -> 0 | X17: =D17-[2]Outputs!D15 -> 0 | Y17: =E17-[2]Outputs!E15 -> 0 | Z17: =F17-[2]Outputs!F15 -> 0 | AA17: =G17-[2]Outputs!G15 -> 0 | AB17: =H17-[2]Outputs!H15 -> 0 | AC17: =I17-[2]Outputs!I15 -> 0 | AD17: =J17-[2]Outputs!J15 -> 0 | AE17: =K17-[2]Outputs!K15 -> 0 | AF17: =L17-[2]Outputs!L15 -> 0 | AG17: =M17-[2]Outputs!M15 -> 0 | AH17: =N17-[2]Outputs!N15 ->  | AI17: =O17-[2]Outputs!O15 -> 0 | AJ17: =P17-[2]Outputs!P15 -> 0 | AK17: =Q17-[2]Outputs!Q15 -> 0 | AL17: =R17-[2]Outputs!R15 -> 0 | AM17: =S17-[2]Outputs!S15 -> 0
A18: MAR (industry-wide X factor), fourth year of reg period | B18: =MAR!G54 -> 44848.41461 | C18: 48220.47165 | D18: 91005.80317 | E18: 9990.922031 | F18: 40072.10275 | G18: 26634.3141 | H18: 13066.32149 | I18: 26584.82116 | J18: 5940.46895 | K18: 30594.57875 | L18: 171328.4907 | M18: 26665.66279 | O18: 36082.93579 | P18: 44848.41461 | Q18: 108695.7736 | R18: 428768.3249 | S18: 107161.7867 | W18: =C18-[2]Outputs!C16 -> 0 | X18: =D18-[2]Outputs!D16 -> 0 | Y18: =E18-[2]Outputs!E16 -> 0 | Z18: =F18-[2]Outputs!F16 -> 0 | AA18: =G18-[2]Outputs!G16 -> 0 | AB18: =H18-[2]Outputs!H16 -> 0 | AC18: =I18-[2]Outputs!I16 -> 0 | AD18: =J18-[2]Outputs!J16 -> 0 | AE18: =K18-[2]Outputs!K16 -> 0 | AF18: =L18-[2]Outputs!L16 -> 0 | AG18: =M18-[2]Outputs!M16 -> 0 | AH18: =N18-[2]Outputs!N16 ->  | AI18: =O18-[2]Outputs!O16 -> 0 | AJ18: =P18-[2]Outputs!P16 -> 0 | AK18: =Q18-[2]Outputs!Q16 -> 0 | AL18: =R18-[2]Outputs!R16 -> 0 | AM18: =S18-[2]Outputs!S16 -> 0
A19: MAR (industry-wide X factor), fifth year of reg period | B19: =MAR!H54 -> 45745.38291 | C19: 49184.88109 | D19: 92825.91923 | E19: 10190.74047 | F19: 40873.5448 | G19: 27167.00038 | H19: 13327.64792 | I19: 27116.51758 | J19: 6059.278329 | K19: 31206.47032 | L19: 174755.0605 | M19: 27198.97605 | O19: 36804.59451 | P19: 45745.38291 | Q19: 110869.6891 | R19: 437343.6914 | S19: 109305.0224 | W19: =C19-[2]Outputs!C17 -> 0 | X19: =D19-[2]Outputs!D17 -> 0 | Y19: =E19-[2]Outputs!E17 -> 0 | Z19: =F19-[2]Outputs!F17 -> 0 | AA19: =G19-[2]Outputs!G17 -> 0 | AB19: =H19-[2]Outputs!H17 -> 0 | AC19: =I19-[2]Outputs!I17 -> 0 | AD19: =J19-[2]Outputs!J17 -> 0 | AE19: =K19-[2]Outputs!K17 -> 0 | AF19: =L19-[2]Outputs!L17 -> 0 | AG19: =M19-[2]Outputs!M17 -> 0 | AH19: =N19-[2]Outputs!N17 ->  | AI19: =O19-[2]Outputs!O17 -> 0 | AJ19: =P19-[2]Outputs!P17 -> 0 | AK19: =Q19-[2]Outputs!Q17 -> 0 | AL19: =R19-[2]Outputs!R17 -> 0 | AM19: =S19-[2]Outputs!S17 -> 0
A20: MAR (applicable X factor), first year of reg period | B20: =MAR!D55 -> 42189.2595 | C20: 45361.38032 | D20: 72030.72752 | E20: 9398.539633 | F20: 37696.14503 | G20: 25055.11062 | H20: 12291.59231 | I20: 25008.55222 | J20: 5588.24628 | K20: 28780.563 | L20: 161170.0707 | M20: 25084.60058 | O20: 33943.50402 | P20: 42189.2595 | Q20: 102250.9767 | R20: 403345.7655 | S20: 100807.9431 | W20: =C20-[2]Outputs!C18 -> 0 | X20: =D20-[2]Outputs!D18 -> 0 | Y20: =E20-[2]Outputs!E18 -> 0 | Z20: =F20-[2]Outputs!F18 -> 0 | AA20: =G20-[2]Outputs!G18 -> 0 | AB20: =H20-[2]Outputs!H18 -> 0 | AC20: =I20-[2]Outputs!I18 -> 0 | AD20: =J20-[2]Outputs!J18 -> 0 | AE20: =K20-[2]Outputs!K18 -> 0 | AF20: =L20-[2]Outputs!L18 -> 0 | AG20: =M20-[2]Outputs!M18 -> 0 | AH20: =N20-[2]Outputs!N18 ->  | AI20: =O20-[2]Outputs!O18 -> 0 | AJ20: =P20-[2]Outputs!P18 -> 0 | AK20: =Q20-[2]Outputs!Q18 -> 0 | AL20: =R20-[2]Outputs!R18 -> 0 | AM20: =S20-[2]Outputs!S18 -> 0
A21: MAR (applicable X factor), second year of reg period | B21: =MAR!E55 -> 43064.66656 | C21: 46302.60737 | D21: 80069.08527 | E21: 9593.554857 | F21: 38478.32209 | G21: 25574.99224 | H21: 12546.637 | I21: 25527.46777 | J21: 5704.19973 | K21: 29377.74598 | L21: 164514.2729 | M21: 25605.0941 | O21: 34647.81557 | P21: 43064.66656 | Q21: 104372.6358 | R21: 411714.9982 | S21: 102899.6599 | W21: =C21-[2]Outputs!C19 -> 0 | X21: =D21-[2]Outputs!D19 -> 0 | Y21: =E21-[2]Outputs!E19 -> 0 | Z21: =F21-[2]Outputs!F19 -> 0 | AA21: =G21-[2]Outputs!G19 -> 0 | AB21: =H21-[2]Outputs!H19 -> 0 | AC21: =I21-[2]Outputs!I19 -> 0 | AD21: =J21-[2]Outputs!J19 -> 0 | AE21: =K21-[2]Outputs!K19 -> 0 | AF21: =L21-[2]Outputs!L19 -> 0 | AG21: =M21-[2]Outputs!M19 -> 0 | AH21: =N21-[2]Outputs!N19 ->  | AI21: =O21-[2]Outputs!O19 -> 0 | AJ21: =P21-[2]Outputs!P19 -> 0 | AK21: =Q21-[2]Outputs!Q19 -> 0 | AL21: =R21-[2]Outputs!R19 -> 0 | AM21: =S21-[2]Outputs!S19 -> 0
A22: MAR (applicable X factor), third year of reg period | B22: =MAR!F55 -> 43954.66966 | C22: 47259.52792 | D22: 88997.2687 | E22: 9791.821657 | F22: 39273.54075 | G22: 26103.54208 | H22: 12805.93416 | I22: 26055.03544 | J22: 5822.086524 | K22: 29984.88607 | L22: 167914.2346 | M22: 26134.26605 | O22: 35363.87042 | P22: 43954.66966 | Q22: 106529.6703 | R22: 420223.7748 | S22: 105026.2529 | W22: =C22-[2]Outputs!C20 -> 0 | X22: =D22-[2]Outputs!D20 -> 0 | Y22: =E22-[2]Outputs!E20 -> 0 | Z22: =F22-[2]Outputs!F20 -> 0 | AA22: =G22-[2]Outputs!G20 -> 0 | AB22: =H22-[2]Outputs!H20 -> 0 | AC22: =I22-[2]Outputs!I20 -> 0 | AD22: =J22-[2]Outputs!J20 -> 0 | AE22: =K22-[2]Outputs!K20 -> 0 | AF22: =L22-[2]Outputs!L20 -> 0 | AG22: =M22-[2]Outputs!M20 -> 0 | AH22: =N22-[2]Outputs!N20 ->  | AI22: =O22-[2]Outputs!O20 -> 0 | AJ22: =P22-[2]Outputs!P20 -> 0 | AK22: =Q22-[2]Outputs!Q20 -> 0 | AL22: =R22-[2]Outputs!R20 -> 0 | AM22: =S22-[2]Outputs!S20 -> 0
A23: MAR (applicable X factor), fourth year of reg period | B23: =MAR!G55 -> 44848.41461 | C23: 48220.47165 | D23: 98888.69213 | E23: 9990.922031 | F23: 40072.10275 | G23: 26634.3141 | H23: 13066.32149 | I23: 26584.82116 | J23: 5940.46895 | K23: 30594.57875 | L23: 171328.4907 | M23: 26665.66279 | O23: 36082.93579 | P23: 44848.41461 | Q23: 108695.7736 | R23: 428768.3249 | S23: 107161.7867 | W23: =C23-[2]Outputs!C21 -> 0 | X23: =D23-[2]Outputs!D21 -> 0 | Y23: =E23-[2]Outputs!E21 -> 0 | Z23: =F23-[2]Outputs!F21 -> 0 | AA23: =G23-[2]Outputs!G21 -> 0 | AB23: =H23-[2]Outputs!H21 -> 0 | AC23: =I23-[2]Outputs!I21 -> 0 | AD23: =J23-[2]Outputs!J21 -> 0 | AE23: =K23-[2]Outputs!K21 -> 0 | AF23: =L23-[2]Outputs!L21 -> 0 | AG23: =M23-[2]Outputs!M21 -> 0 | AH23: =N23-[2]Outputs!N21 ->  | AI23: =O23-[2]Outputs!O21 -> 0 | AJ23: =P23-[2]Outputs!P21 -> 0 | AK23: =Q23-[2]Outputs!Q21 -> 0 | AL23: =R23-[2]Outputs!R21 -> 0 | AM23: =S23-[2]Outputs!S21 -> 0
A24: MAR (applicable X factor), fifth year of reg period | B24: =MAR!H55 -> 45745.38291 | C24: 49184.88109 | D24: 109843.5814 | E24: 10190.74047 | F24: 40873.5448 | G24: 27167.00038 | H24: 13327.64792 | I24: 27116.51758 | J24: 6059.278329 | K24: 31206.47032 | L24: 174755.0605 | M24: 27198.97605 | O24: 36804.59451 | P24: 45745.38291 | Q24: 110869.6891 | R24: 437343.6914 | S24: 109305.0224 | W24: =C24-[2]Outputs!C22 -> 0 | X24: =D24-[2]Outputs!D22 -> 0 | Y24: =E24-[2]Outputs!E22 -> 0 | Z24: =F24-[2]Outputs!F22 -> 0 | AA24: =G24-[2]Outputs!G22 -> 0 | AB24: =H24-[2]Outputs!H22 -> 0 | AC24: =I24-[2]Outputs!I22 -> 0 | AD24: =J24-[2]Outputs!J22 -> 0 | AE24: =K24-[2]Outputs!K22 -> 0 | AF24: =L24-[2]Outputs!L22 -> 0 | AG24: =M24-[2]Outputs!M22 -> 0 | AH24: =N24-[2]Outputs!N22 ->  | AI24: =O24-[2]Outputs!O22 -> 0 | AJ24: =P24-[2]Outputs!P22 -> 0 | AK24: =Q24-[2]Outputs!Q22 -> 0 | AL24: =R24-[2]Outputs!R22 -> 0 | AM24: =S24-[2]Outputs!S22 -> 0
A25: BBAR before tax, first year of reg period | B25: =BBAR!F59 -> 40709.52852 | C25: 44262.87852 | D25: 82527.26815 | E25: 9298.802075 | F25: 36223.42434 | G25: 24496.12922 | H25: 12027.78459 | I25: 24667.32379 | J25: 5472.027364 | K25: 28470.03454 | L25: 155411.2344 | M25: 23955.39914 | O25: 33167.50156 | P25: 40709.52852 | Q25: 98760.43574 | R25: 386984.5221 | S25: 98150.99584 | W25: =C25-[2]Outputs!C23 -> 0 | X25: =D25-[2]Outputs!D23 -> 0 | Y25: =E25-[2]Outputs!E23 -> 0 | Z25: =F25-[2]Outputs!F23 -> 0 | AA25: =G25-[2]Outputs!G23 -> 0 | AB25: =H25-[2]Outputs!H23 -> 0 | AC25: =I25-[2]Outputs!I23 -> 0 | AD25: =J25-[2]Outputs!J23 -> 0 | AE25: =K25-[2]Outputs!K23 -> 0 | AF25: =L25-[2]Outputs!L23 -> 0 | AG25: =M25-[2]Outputs!M23 -> 0 | AH25: =N25-[2]Outputs!N23 ->  | AI25: =O25-[2]Outputs!O23 -> 0 | AJ25: =P25-[2]Outputs!P23 -> 0 | AK25: =Q25-[2]Outputs!Q23 -> 0 | AL25: =R25-[2]Outputs!R23 -> 0 | AM25: =S25-[2]Outputs!S23 -> 0
A26: BBAR before tax, second year of reg period | B26: =BBAR!G59 -> 42394.89394 | C26: 45842.34948 | D26: 85841.67701 | E26: 9535.807137 | F26: 37776.65267 | G26: 25292.4432 | H26: 12408.15399 | I26: 25360.67477 | J26: 5637.866459 | K26: 29228.44669 | L26: 161412.0841 | M26: 24984.67506 | O26: 34274.51101 | P26: 42394.89394 | Q26: 102597.348 | R26: 402846.1348 | S26: 101601.4732 | W26: =C26-[2]Outputs!C24 -> 0 | X26: =D26-[2]Outputs!D24 -> 0 | Y26: =E26-[2]Outputs!E24 -> 0 | Z26: =F26-[2]Outputs!F24 -> 0 | AA26: =G26-[2]Outputs!G24 -> 0 | AB26: =H26-[2]Outputs!H24 -> 0 | AC26: =I26-[2]Outputs!I24 -> 0 | AD26: =J26-[2]Outputs!J24 -> 0 | AE26: =K26-[2]Outputs!K24 -> 0 | AF26: =L26-[2]Outputs!L24 -> 0 | AG26: =M26-[2]Outputs!M24 -> 0 | AH26: =N26-[2]Outputs!N24 ->  | AI26: =O26-[2]Outputs!O24 -> 0 | AJ26: =P26-[2]Outputs!P24 -> 0 | AK26: =Q26-[2]Outputs!Q24 -> 0 | AL26: =R26-[2]Outputs!R24 -> 0 | AM26: =S26-[2]Outputs!S24 -> 0
A27: BBAR before tax, third year of reg period | B27: =BBAR!H59 -> 44071.65981 | C27: 47412.55837 | D27: 89457.19143 | E27: 9793.889832 | F27: 39433.85853 | G27: 26134.34169 | H27: 12823.87371 | I27: 26078.69725 | J27: 5827.12527 | K27: 30082.09719 | L27: 168237.8393 | M27: 26158.10138 | O27: 35458.49905 | P27: 44071.65981 | Q27: 106684.1914 | R27: 421172.6251 | S27: 105175.3026 | W27: =C27-[2]Outputs!C25 -> 0 | X27: =D27-[2]Outputs!D25 -> 0 | Y27: =E27-[2]Outputs!E25 -> 0 | Z27: =F27-[2]Outputs!F25 -> 0 | AA27: =G27-[2]Outputs!G25 -> 0 | AB27: =H27-[2]Outputs!H25 -> 0 | AC27: =I27-[2]Outputs!I25 -> 0 | AD27: =J27-[2]Outputs!J25 -> 0 | AE27: =K27-[2]Outputs!K25 -> 0 | AF27: =L27-[2]Outputs!L25 -> 0 | AG27: =M27-[2]Outputs!M25 -> 0 | AH27: =N27-[2]Outputs!N25 ->  | AI27: =O27-[2]Outputs!O25 -> 0 | AJ27: =P27-[2]Outputs!P25 -> 0 | AK27: =Q27-[2]Outputs!Q25 -> 0 | AL27: =R27-[2]Outputs!R25 -> 0 | AM27: =S27-[2]Outputs!S25 -> 0
A28: BBAR before tax, fourth year of reg period | B28: =BBAR!I59 -> 45719.75649 | C28: 48904.22457 | D28: 92909.92413 | E28: 10057.79444 | F28: 40969.10283 | G28: 26975.60922 | H28: 13236.51588 | I28: 26801.97606 | J28: 6018.097094 | K28: 30818.25531 | L28: 174841.3882 | M28: 27366.03012 | O28: 36565.31217 | P28: 45719.75649 | Q28: 110843.8044 | R28: 439140.8437 | S28: 108761.5007 | W28: =C28-[2]Outputs!C26 -> 0 | X28: =D28-[2]Outputs!D26 -> 0 | Y28: =E28-[2]Outputs!E26 -> 0 | Z28: =F28-[2]Outputs!F26 -> 0 | AA28: =G28-[2]Outputs!G26 -> 0 | AB28: =H28-[2]Outputs!H26 -> 0 | AC28: =I28-[2]Outputs!I26 -> 0 | AD28: =J28-[2]Outputs!J26 -> 0 | AE28: =K28-[2]Outputs!K26 -> 0 | AF28: =L28-[2]Outputs!L26 -> 0 | AG28: =M28-[2]Outputs!M26 -> 0 | AH28: =N28-[2]Outputs!N26 ->  | AI28: =O28-[2]Outputs!O26 -> 0 | AJ28: =P28-[2]Outputs!P26 -> 0 | AK28: =Q28-[2]Outputs!Q26 -> 0 | AL28: =R28-[2]Outputs!R26 -> 0 | AM28: =S28-[2]Outputs!S26 -> 0
A29: BBAR before tax, fifth year of reg period | B29: =BBAR!J59 -> 47285.81519 | C29: 50173.56571 | D29: 96091.47743 | E29: 10307.08363 | F29: 42367.61408 | G29: 27785.27485 | H29: 13612.05368 | I29: 27472.69584 | J29: 6191.13922 | K29: 31416.6757 | L29: 181343.4516 | M29: 28536.5813 | O29: 37574.55524 | P29: 47285.81519 | Q29: 114767.2683 | R29: 455681.2277 | S29: 112212.4705 | W29: =C29-[2]Outputs!C27 -> 0 | X29: =D29-[2]Outputs!D27 -> 0 | Y29: =E29-[2]Outputs!E27 -> 0 | Z29: =F29-[2]Outputs!F27 -> 0 | AA29: =G29-[2]Outputs!G27 -> 0 | AB29: =H29-[2]Outputs!H27 -> 0 | AC29: =I29-[2]Outputs!I27 -> 0 | AD29: =J29-[2]Outputs!J27 -> 0 | AE29: =K29-[2]Outputs!K27 -> 0 | AF29: =L29-[2]Outputs!L27 -> 0 | AG29: =M29-[2]Outputs!M27 -> 0 | AH29: =N29-[2]Outputs!N27 ->  | AI29: =O29-[2]Outputs!O27 -> 0 | AJ29: =P29-[2]Outputs!P27 -> 0 | AK29: =Q29-[2]Outputs!Q27 -> 0 | AL29: =R29-[2]Outputs!R27 -> 0 | AM29: =S29-[2]Outputs!S27 -> 0
A30: Closing RAB, first year of reg period | B30: =RAB!F95 -> 305007.2431 | C30: 210242.7736 | D30: 563446.2908 | E30: 58616.60088 | F30: 304205.3516 | G30: 175604.4545 | H30: 89399.16597 | I30: 133118.2574 | J30: 42982.40875 | K30: 181162.3053 | L30: 1177041.328 | M30: 221918.6085 | O30: 214523.6224 | P30: 305007.2431 | Q30: 654966.4049 | R30: 3242790.705 | S30: 675256.8439 | W30: =C30-[2]Outputs!C28 -> 0 | X30: =D30-[2]Outputs!D28 -> 0 | Y30: =E30-[2]Outputs!E28 -> 0 | Z30: =F30-[2]Outputs!F28 -> 0 | AA30: =G30-[2]Outputs!G28 -> 0 | AB30: =H30-[2]Outputs!H28 -> 0 | AC30: =I30-[2]Outputs!I28 -> 0 | AD30: =J30-[2]Outputs!J28 -> 0 | AE30: =K30-[2]Outputs!K28 -> 0 | AF30: =L30-[2]Outputs!L28 -> 0 | AG30: =M30-[2]Outputs!M28 -> 0 | AH30: =N30-[2]Outputs!N28 ->  | AI30: =O30-[2]Outputs!O28 -> 0 | AJ30: =P30-[2]Outputs!P28 -> 0 | AK30: =Q30-[2]Outputs!Q28 -> 0 | AL30: =R30-[2]Outputs!R28 -> 0 | AM30: =S30-[2]Outputs!S28 -> 0
A31: Closing RAB, second year of reg period | B31: =RAB!G95 -> 315978.9554 | C31: 212726.1961 | D31: 582641.4927 | E31: 59357.8012 | F31: 316134.4124 | G31: 179507.2113 | H31: 91265.21429 | I31: 134645.2734 | J31: 43733.75917 | K31: 182423.9382 | L31: 1213591.068 | M31: 232410.351 | O31: 219571.4315 | P31: 315978.9554 | Q31: 677351.6989 | R31: 3353145.558 | S31: 684437.5534 | W31: =C31-[2]Outputs!C29 -> 0 | X31: =D31-[2]Outputs!D29 -> 0 | Y31: =E31-[2]Outputs!E29 -> 0 | Z31: =F31-[2]Outputs!F29 -> 0 | AA31: =G31-[2]Outputs!G29 -> 0 | AB31: =H31-[2]Outputs!H29 -> 0 | AC31: =I31-[2]Outputs!I29 -> 0 | AD31: =J31-[2]Outputs!J29 -> 0 | AE31: =K31-[2]Outputs!K29 -> 0 | AF31: =L31-[2]Outputs!L29 -> 0 | AG31: =M31-[2]Outputs!M29 -> 0 | AH31: =N31-[2]Outputs!N29 ->  | AI31: =O31-[2]Outputs!O29 -> 0 | AJ31: =P31-[2]Outputs!P29 -> 0 | AK31: =Q31-[2]Outputs!Q29 -> 0 | AL31: =R31-[2]Outputs!R29 -> 0 | AM31: =S31-[2]Outputs!S29 -> 0
A32: Closing RAB, third year of reg period | B32: =RAB!H95 -> 326098.6286 | C32: 211780.8514 | D32: 600209.1944 | E32: 59998.49335 | F32: 326506.5788 | G32: 182682.6959 | H32: 93339.28449 | I32: 136333.1047 | J32: 44449.28479 | K32: 182983.541 | L32: 1252729.548 | M32: 243260.5357 | O32: 223790.0701 | P32: 326098.6286 | Q32: 697659.5536 | R32: 3470944.217 | S32: 693984.8417 | W32: =C32-[2]Outputs!C30 -> 0 | X32: =D32-[2]Outputs!D30 -> 0 | Y32: =E32-[2]Outputs!E30 -> 0 | Z32: =F32-[2]Outputs!F30 -> 0 | AA32: =G32-[2]Outputs!G30 -> 0 | AB32: =H32-[2]Outputs!H30 -> 0 | AC32: =I32-[2]Outputs!I30 -> 0 | AD32: =J32-[2]Outputs!J30 -> 0 | AE32: =K32-[2]Outputs!K30 -> 0 | AF32: =L32-[2]Outputs!L30 -> 0 | AG32: =M32-[2]Outputs!M30 -> 0 | AH32: =N32-[2]Outputs!N30 ->  | AI32: =O32-[2]Outputs!O30 -> 0 | AJ32: =P32-[2]Outputs!P30 -> 0 | AK32: =Q32-[2]Outputs!Q30 -> 0 | AL32: =R32-[2]Outputs!R30 -> 0 | AM32: =S32-[2]Outputs!S30 -> 0
A33: Closing RAB, fourth year of reg period | B33: =RAB!I95 -> 335966.8778 | C33: 210642.1442 | D33: 614884.9213 | E33: 61032.58119 | F33: 334088.9166 | G33: 186487.2725 | H33: 95208.97758 | I33: 138438.2322 | J33: 45283.12157 | K33: 181039.3139 | L33: 1286496.575 | M33: 254712.8493 | O33: 227283.2722 | P33: 335966.8778 | Q33: 722396.0456 | R33: 3577850.485 | S33: 703591.7848 | W33: =C33-[2]Outputs!C31 -> 0 | X33: =D33-[2]Outputs!D31 -> 0 | Y33: =E33-[2]Outputs!E31 -> 0 | Z33: =F33-[2]Outputs!F31 -> 0 | AA33: =G33-[2]Outputs!G31 -> 0 | AB33: =H33-[2]Outputs!H31 -> 0 | AC33: =I33-[2]Outputs!I31 -> 0 | AD33: =J33-[2]Outputs!J31 -> 0 | AE33: =K33-[2]Outputs!K31 -> 0 | AF33: =L33-[2]Outputs!L31 -> 0 | AG33: =M33-[2]Outputs!M31 -> 0 | AH33: =N33-[2]Outputs!N31 ->  | AI33: =O33-[2]Outputs!O31 -> 0 | AJ33: =P33-[2]Outputs!P31 -> 0 | AK33: =Q33-[2]Outputs!Q31 -> 0 | AL33: =R33-[2]Outputs!R31 -> 0 | AM33: =S33-[2]Outputs!S31 -> 0
A34: Closing RAB, fifth year of reg period | B34: =RAB!J95 -> 346340.009 | C34: 206019.3073 | D34: 629562.3564 | E34: 62011.75992 | F34: 341563.0984 | G34: 190773.3252 | H34: 96975.79898 | I34: 140818.6315 | J34: 45867.79813 | K34: 179101.9236 | L34: 1330145.219 | M34: 265410.6866 | O34: 230837.2002 | P34: 346340.009 | Q34: 744488.1891 | R34: 3668968.329 | S34: 714561.8001 | W34: =C34-[2]Outputs!C32 -> 0 | X34: =D34-[2]Outputs!D32 -> 0 | Y34: =E34-[2]Outputs!E32 -> 0 | Z34: =F34-[2]Outputs!F32 -> 0 | AA34: =G34-[2]Outputs!G32 -> 0 | AB34: =H34-[2]Outputs!H32 -> 0 | AC34: =I34-[2]Outputs!I32 -> 0 | AD34: =J34-[2]Outputs!J32 -> 0 | AE34: =K34-[2]Outputs!K32 -> 0 | AF34: =L34-[2]Outputs!L32 -> 0 | AG34: =M34-[2]Outputs!M32 -> 0 | AH34: =N34-[2]Outputs!N32 ->  | AI34: =O34-[2]Outputs!O32 -> 0 | AJ34: =P34-[2]Outputs!P32 -> 0 | AK34: =Q34-[2]Outputs!Q32 -> 0 | AL34: =R34-[2]Outputs!R32 -> 0 | AM34: =S34-[2]Outputs!S32 -> 0
C39: The data panel below is a copy of the outputs from the 2015 DPP reset model | V39: Reconcilation of the this waterfall model with the 2015 financial model outputs is achieved when the tan coloured panel below indicates zero values. The #DIV0! results are from the #DIC0! values in the 2015 DPP reset model outputs. This reconciliation requires the "mode" setting at cell D5 on the Waterfall sheet to be set to 0.
A40: PV at 1 Apr 2015 of BBAR | C40: 163099.0198 | D40: 247691.7372 | E40: 48814.56879 | F40: 144179.6933 | G40: 103952.6872 | H40: 58957.10534 | I40: 95547.21115 | J40: 29921.80788 | K40: 122903.6847 | L40: 665741.9032 | M40: 108078.0521 | N40: 1087074.297 | O40: 148967.8663 | P40: 168714.3866 | Q40: 436524.6314 | R40: 1749930.119 | S40: 432008.2578 | V40: 0 | W40: =C11-C40 -> 44561.37841 | X40: =D11-D40 -> 144222.7481 | Y40: =E11-E40 -> -5788.883305 | Z40: =F11-F40 -> 28389.93379 | AA40: =G11-G40 -> 10747.39933 | AB40: =H11-H40 -> -2687.27989 | AC40: =I11-I40 -> 18939.73514 | AD40: =J11-J40 -> -4339.309302 | AE40: =K11-K40 -> 8851.194218 | AF40: =L11-L40 -> 72080.46504 | AG40: =M11-M40 -> 6757.036927 | AH40: =N11-N40 ->  | AI40: =O11-O40 -> 6422.501235 | AJ40: =P11-P40 -> 24424.3223 | AK40: =Q11-Q40 -> 31571.32158 | AL40: =R11-R40 -> 96551.21986 | AM40: =S11-S40 -> 29481.61438
A41: Starting price for industry-wide X factor | C41: 37559.9229 | D41: 56511.66603 | E41: 11394.05771 | F41: 33046.58332 | G41: 24062.42743 | H41: 13565.26038 | I41: 22026.85063 | J41: 6824.407415 | K41: 28091.76336 | M41: 24779.53509 | N41: 250424.4396 | O41: 34705.26322 | P41: 39089.38949 | Q41: 100101.5151 | R41: 395244.8061 | S41: 98788.23029 | V41: 0 | W41: =C12-C41 -> 7801.457416 | X41: =D12-D41 -> 29098.21516 | Y41: -1995.518079 | Z41: 4649.561705 | AA41: 992.6831919 | AB41: -1273.668075 | AC41: 2981.701589 | AD41: -1236.161135 | AE41: 688.7996391 | AG41: 305.0654865 | AI41: -761.7592052 | AJ41: 3099.870018 | AK41: 2149.461609 | AL41: 8100.959418 | AM41: 2019.712801
A42: Starting price for applicable X factor | C42: 30458.39221 | D42: 56511.66603 | E42: 9983.311486 | F42: 33046.58332 | G42: 22731.95846 | H42: 13565.26038 | I42: 22026.85063 | J42: 6824.407415 | K42: 28091.76336 | M42: 24779.53509 | N42: 250424.4396 | O42: 34705.26322 | P42: 34231.36848 | Q42: 100101.5151 | R42: 395244.8061 | S42: 98788.23029 | V42: 0 | W42: 14902.98811 | X42: 15519.0615 | Y42: -584.7718523 | Z42: 4649.561705 | AA42: 2323.152162 | AB42: -1273.668075 | AC42: 2981.701589 | AD42: -1236.161135 | AE42: 688.7996391 | AG42: 305.0654865 | AI42: -761.7592052 | AJ42: 7957.891021 | AK42: 2149.461609 | AL42: 8100.959418 | AM42: 2019.712801
A43: PV at 1 Apr 2015 of MAR (applicable X) | C43: 163662.2393 | D43: 247691.7372 | E43: 48814.56879 | F43: 144179.6933 | G43: 103952.6872 | H43: 58957.10534 | I43: 95547.21115 | J43: 29921.80788 | K43: 122903.6847 | L43: 665741.9032 | M43: 108140.005 | N43: 1087074.297 | O43: 149068.9809 | P43: 168714.3866 | Q43: 436524.6314 | R43: 1749930.119 | S43: 432008.2578 | V43: 0 | W43: 43998.1589 | X43: 144222.7481 | Y43: -5788.883305 | Z43: 28389.93379 | AA43: 10747.39933 | AB43: -2687.27989 | AC43: 18939.73514 | AD43: -4339.309302 | AE43: 8851.194218 | AF43: 72080.46504 | AG43: 6695.084024 | AI43: 6321.386668 | AJ43: 24424.3223 | AK43: 31571.32158 | AL43: 96551.21986 | AM43: 29481.61438
A44: MAR (industry-wide X factor) 2016 | C44: 37559.9229 | D44: 56511.66603 | E44: 11394.05771 | F44: 33046.58332 | G44: 24062.42743 | H44: 13565.26038 | I44: 22026.85063 | J44: 6824.407415 | K44: 28091.76336 | M44: 24779.53509 | N44: 250424.4396 | O44: 34705.26322 | P44: 39089.38949 | Q44: 100101.5151 | R44: 395244.8061 | S44: 98788.23029 | V44: 0 | W44: 7801.457416 | X44: 29098.21516 | Y44: -1995.518079 | Z44: 4649.561705 | AA44: 992.6831919 | AB44: -1273.668075 | AC44: 2981.701589 | AD44: -1236.161135 | AE44: 688.7996391 | AG44: 305.0654865 | AI44: -761.7592052 | AJ44: 3099.870018 | AK44: 2149.461609 | AL44: 8100.959418 | AM44: 2019.712801
A45: MAR (industry-wide X factor) 2017 | C45: 38224.14473 | D45: 57688.37038 | E45: 11492.41069 | F45: 33653.51318 | G45: 24377.54228 | H45: 13786.522 | I45: 22363.28674 | J45: 6967.762855 | K45: 28649.47282 | M45: 25238.16198 | N45: 254347.0941 | O45: 35052.74047 | P45: 39581.89603 | Q45: 101914.1649 | R45: 405605.5542 | S45: 100725.2836 | V45: 0 | W45: 8078.462643 | X45: 29697.87508 | Y45: -1898.855834 | Z45: 4824.808915 | AA45: 1197.449955 | AB45: -1239.885001 | AC45: 3164.18103 | AD45: -1263.563125 | AE45: 728.2731621 | AG45: 366.9321274 | AI45: -404.9249025 | AJ45: 3482.770527 | AK45: 2458.470982 | AL45: 6109.443975 | AM45: 2174.376286
A46: MAR (industry-wide X factor) 2018 | C46: 39002.16188 | D46: 59044.06506 | E46: 11622.02163 | F46: 34361.49658 | G46: 24761.57236 | H46: 14048.14952 | I46: 22764.42459 | J46: 7132.792588 | K46: 29294.90458 | M46: 25772.71147 | N46: 259008.8889 | O46: 35496.57341 | P46: 40185.75379 | Q46: 104031.8372 | R46: 417329.8358 | S46: 102969.739 | V46: 0 | W46: 8257.366036 | X46: 30148.16281 | Y46: -1830.19997 | Z46: 4912.044172 | AA46: 1341.969713 | AB46: -1242.215364 | AC46: 3290.61085 | AD46: -1310.706063 | AE46: 689.9814892 | AG46: 361.5545794 | AI46: -132.7029829 | AJ46: 3768.915872 | AK46: 2497.833118 | AL46: 2893.939001 | AM46: 2056.513926
A47: MAR (industry-wide X factor) 2019 | C47: 39926.52908 | D47: 60629.80931 | E47: 11791.63952 | F47: 35199.43614 | G47: 25234.13909 | H47: 14361.68831 | I47: 23248.75469 | J47: 7325.677619 | K47: 30053.1164 | M47: 26404.89673 | N47: 264621.1367 | O47: 36063.91396 | P47: 40932.62696 | Q47: 106541.7827 | R47: 430801.2438 | S47: 105609.4297 | V47: 0 | W47: 8293.942579 | X47: 30375.99386 | Y47: -1800.717492 | Z47: 4872.666607 | AA47: 1400.175006 | AB47: -1295.366823 | AC47: 3336.066468 | AD47: -1385.208668 | AE47: 541.4623462 | AG47: 260.7660649 | AI47: 19.02183044 | AJ47: 3915.787655 | AK47: 2153.990894 | AL47: -2032.918899 | AM47: 1552.356962
A48: MAR (industry-wide X factor) 2020 | C48: 40891.18175 | D48: 62286.13491 | E48: 11969.11216 | F48: 36074.02234 | G48: 25727.28715 | H48: 14688.82649 | I48: 23754.065 | J48: 7527.161559 | K48: 30844.81479 | M48: 27064.75265 | N48: 270476.5511 | O48: 36656.79685 | P48: 41712.12771 | Q48: 109161.345 | R48: 444907.4623 | S48: 108365.493 | V48: 0 | W48: 8293.699335 | X48: 30539.78433 | Y48: -1778.371684 | Z48: 4799.522463 | AA48: 1439.713233 | AB48: -1361.178568 | AC48: 3362.452583 | AD48: -1467.88323 | AE48: 361.6555318 | AG48: 134.2234001 | AI48: 147.797651 | AJ48: 4033.255194 | AK48: 1708.344062 | AL48: -7563.770941 | AM48: 939.5294828
A49: MAR (applicable X factor) 2016 | C49: 30458.39221 | D49: 56511.66603 | E49: 9983.311486 | F49: 33046.58332 | G49: 22731.95846 | H49: 13565.26038 | I49: 22026.85063 | J49: 6824.407415 | K49: 28091.76336 | M49: 24779.53509 | N49: 250424.4396 | O49: 34705.26322 | P49: 34231.36848 | Q49: 100101.5151 | R49: 395244.8061 | S49: 98788.23029 | V49: 0 | W49: 14902.98811 | X49: 15519.0615 | Y49: -584.7718523 | Z49: 4649.561705 | AA49: 2323.152162 | AB49: -1273.668075 | AC49: 2981.701589 | AD49: -1236.161135 | AE49: 688.7996391 | AG49: 305.0654865 | AI49: -761.7592052 | AJ49: 7957.891021 | AK49: 2149.461609 | AL49: 8100.959418 | AM49: 2019.712801
A50: MAR (applicable X factor) 2017 | C50: 34406.70138 | D50: 57688.37038 | E50: 10774.35106 | F50: 33653.51318 | G50: 23720.53936 | H50: 13786.522 | I50: 22363.28674 | J50: 6967.762855 | K50: 28649.47282 | M50: 25238.16198 | N50: 254347.0941 | O50: 35052.74047 | P50: 37089.05307 | Q50: 101914.1649 | R50: 405605.5542 | S50: 100725.2836 | V50: 0 | W50: 11895.90599 | X50: 22380.71489 | Y50: -1180.796199 | Z50: 4824.808915 | AA50: 1854.452881 | AB50: -1239.885001 | AC50: 3164.18103 | AD50: -1263.563125 | AE50: 728.2731621 | AG50: 366.9321274 | AI50: -404.9249025 | AJ50: 5975.61349 | AK50: 2458.470982 | AL50: 6109.443975 | AM50: 2174.376286
A51: MAR (applicable X factor) 2018 | C51: 38968.78998 | D51: 59044.06506 | E51: 11658.57421 | F51: 34361.49658 | G51: 24817.04596 | H51: 14048.14952 | I51: 22764.42459 | J51: 7132.792588 | K51: 29294.90458 | M51: 25772.71147 | N51: 259008.8889 | O51: 35496.57341 | P51: 40290.72186 | Q51: 104031.8372 | R51: 417329.8358 | S51: 102969.739 | V51: 0 | W51: 8290.737937 | X51: 29953.20364 | Y51: -1866.75255 | Z51: 4912.044172 | AA51: 1286.496112 | AB51: -1242.215364 | AC51: 3290.61085 | AD51: -1310.706063 | AE51: 689.9814892 | AG51: 361.5545794 | AI51: -132.7029829 | AJ51: 3663.9478 | AK51: 2497.833118 | AL51: 2893.939001 | AM51: 2056.513926
A52: MAR (applicable X factor) 2019 | C52: 44280.52653 | D52: 60629.80931 | E52: 12656.73636 | F52: 35199.43614 | G52: 26049.39153 | H52: 14361.68831 | I52: 23248.75469 | J52: 7325.677619 | K52: 30053.1164 | M52: 26404.89673 | N52: 264621.1367 | O52: 36063.91396 | P52: 43912.31413 | Q52: 106541.7827 | R52: 430801.2438 | S52: 105609.4297 | V52: 0 | W52: 3939.945121 | X52: 38258.88282 | Y52: -2665.81433 | Z52: 4872.666607 | AA52: 584.9225669 | AB52: -1295.366823 | AC52: 3336.066468 | AD52: -1385.208668 | AE52: 541.4623462 | AG52: 260.7660649 | AI52: 19.02183044 | AJ52: 936.1004831 | AK52: 2153.990894 | AL52: -2032.918899 | AM52: 1552.356962
A53: MAR (applicable X factor) 2020 | C53: 50338.91604 | D53: 62286.13491 | E53: 13746.53537 | F53: 36074.02234 | G53: 27355.22614 | H53: 14688.82649 | I53: 23754.065 | J53: 7527.161559 | K53: 30844.81479 | M53: 27064.75265 | N53: 270476.5511 | O53: 36656.79685 | P53: 47880.95768 | Q53: 109161.345 | R53: 444907.4623 | S53: 108365.493 | V53: 0 | W53: -1154.034956 | X53: 47557.44654 | Y53: -3555.794902 | Z53: 4799.522463 | AA53: -188.225756 | AB53: -1361.178568 | AC53: 3362.452583 | AD53: -1467.88323 | AE53: 361.6555318 | AG53: 134.2234001 | AI53: 147.797651 | AJ53: -2135.574772 | AK53: 1708.344062 | AL53: -7563.770941 | AM53: 939.5294828
A54: BBAR before tax 2016 | C54: 37686.55007 | D54: 56742.25911 | E54: 11258.66487 | F54: 32304.51082 | G54: 23603.7491 | H54: 13673.25846 | I54: 22108.11457 | J54: 7005.914968 | K54: 28328.59077 | L54: 153568.7927 | M54: 24616.80347 | N54: 247958.6453 | O54: 34381.36842 | P54: 37798.66999 | Q54: 99427.23543 | R54: 399748.3961 | S54: 99633.73932 | V54: 0 | W54: 6576.328453 | X54: 25785.00904 | Y54: -1959.862793 | Z54: 3918.913512 | AA54: 892.3801166 | AB54: -1645.473878 | AC54: 2559.209216 | AD54: -1533.887604 | AE54: 141.4437674 | AF54: 1842.441636 | AG54: -661.4043291 | AI54: -1213.86686 | AJ54: 2910.858529 | AK54: -666.7996937 | AL54: -12763.87398 | AM54: -1482.743478
A55: BBAR before tax 2017 | C55: 37813.71262 | D55: 57115.8418 | E55: 11288.88193 | F55: 32754.80249 | G55: 23961.81198 | H55: 13713.90803 | I55: 22146.43307 | J55: 6915.435878 | K55: 28270.92205 | L55: 154192.1659 | M55: 24740.60779 | N55: 248570.7654 | O55: 34496.50448 | P55: 38463.07339 | Q55: 100416.833 | R55: 400165.2395 | S55: 99360.96877 | V55: 0 | W55: 8028.636853 | X55: 28725.83521 | Y55: -1753.07479 | Z55: 5021.850185 | AA55: 1330.631213 | AB55: -1305.754041 | AC55: 3214.241707 | AD55: -1277.569419 | AE55: 957.5246474 | AF55: 7219.918153 | AG55: 244.0672732 | AI55: -221.993475 | AJ55: 3931.820552 | AK55: 2180.515066 | AL55: 2680.895276 | AM55: 2240.504463
A56: BBAR before tax 2018 | C56: 38749.75874 | D56: 58684.84202 | E56: 11573.85335 | F56: 34265.57129 | G56: 24809.11479 | H56: 13996.39332 | I56: 22660.86044 | J56: 7050.151231 | K56: 29140.58858 | L56: 157902.9963 | M56: 25563.5739 | N56: 256942.6814 | O56: 35309.25561 | P56: 40094.74625 | Q56: 103553.5118 | R56: 413439.8824 | S56: 102167.9002 | V56: 0 | W56: 8662.79963 | X56: 30772.34941 | Y56: -1779.963522 | Z56: 5168.287239 | AA56: 1325.226902 | AB56: -1172.519616 | AC56: 3417.836811 | AD56: -1223.025961 | AE56: 941.5086115 | AF56: 10334.84303 | AG56: 594.5274719 | AI56: 149.2434395 | AJ56: 3976.913567 | AK56: 3130.679592 | AL56: 7732.742682 | AM56: 3007.402351
A57: BBAR before tax 2019 | C57: 39850.44093 | D57: 60876.86923 | E57: 11948.13601 | F57: 35993.6376 | G57: 25622.21423 | H57: 14352.63622 | I57: 23327.28455 | J57: 7272.173998 | K57: 30182.37628 | L57: 162463.8964 | M57: 26677.55651 | N57: 268179.9455 | O57: 36396.49168 | P57: 41949.98696 | Q57: 107589.7303 | R57: 431595.9182 | S57: 105956.6625 | V57: 0 | W57: 9053.783646 | X57: 32033.0549 | Y57: -1890.341564 | Z57: 4975.465233 | AA57: 1353.394992 | AB57: -1116.120341 | AC57: 3474.691506 | AD57: -1254.076904 | AE57: 635.879031 | AF57: 12377.4918 | AG57: 688.4736157 | AI57: 168.8204892 | AJ57: 3769.769532 | AK57: 3254.074119 | AL57: 7544.925503 | AM57: 2804.838171
A58: BBAR before tax 2020 | C58: 40826.20192 | D58: 62834.74966 | E58: 12286.10583 | F58: 37419.40066 | G58: 26374.2055 | H58: 14704.85404 | I58: 23948.67461 | J58: 7504.295606 | K58: 31037.13804 | L58: 167702.9359 | M58: 27755.15381 | N58: 279405.0593 | O58: 37489.05235 | P58: 43808.02363 | Q58: 111321.8538 | R58: 449279.9452 | S58: 109478.6633 | V58: 0 | W58: 9347.363795 | X58: 33256.72777 | Y58: -1979.022201 | Z58: 4948.213419 | AA58: 1411.06935 | AB58: -1092.800354 | AC58: 3524.021235 | AD58: -1313.156386 | AE58: 379.5376678 | AF58: 13640.51573 | AG58: 781.4274922 | AI58: 85.50289022 | AJ58: 3477.791558 | AK58: 3445.414498 | AL58: 6401.282519 | AM58: 2733.807167
A59: Closing RAB 2016 | C59: 161761.7556 | D59: 360210.8278 | E59: 57680.18433 | F59: 240561.0992 | G59: 148118.4506 | H59: 77602.86593 | I59: 120698.9527 | J59: 41745.1932 | K59: 168303.6496 | L59: 999926.7359 | M59: 159098.8227 | N59: 1540185.481 | O59: 189870.4149 | P59: 230926.956 | Q59: 582770.4555 | R59: 2798661.376 | S59: 589754.7243 | V59: 0 | W59: 48481.01803 | X59: 203235.463 | Y59: 936.4165491 | Z59: 63644.25238 | AA59: 27486.00393 | AB59: 11796.30004 | AC59: 12419.30478 | AD59: 1237.215553 | AE59: 12858.65574 | AF59: 177114.5917 | AG59: 62819.78583 | AI59: 24653.20749 | AJ59: 74080.2871 | AK59: 72195.94936 | AL59: 444129.3295 | AM59: 85502.11957
A60: Closing RAB 2017 | C60: 162740.6042 | D60: 370855.9722 | E60: 58950.66895 | F60: 259045.8891 | G60: 159200.6029 | H60: 79273.84242 | I60: 124604.3942 | J60: 41854.81975 | K60: 172156.0205 | L60: 1028843.775 | M60: 164334.8062 | N60: 1593316.73 | O60: 193296.2097 | P60: 246807.8816 | Q60: 605394.4069 | R60: 2897609.479 | S60: 599557.5244 | V60: 0 | W60: 49985.5919 | X60: 211785.5205 | Y60: 407.1322509 | Z60: 57088.52332 | AA60: 20306.6084 | AB60: 11991.37186 | AC60: 10040.87919 | AD60: 1878.939422 | AE60: 10267.91768 | AF60: 184747.2923 | AG60: 68075.5448 | AI60: 26275.2218 | AJ60: 69171.07388 | AK60: 71957.292 | AL60: 455536.079 | AM60: 84880.02902
A61: Closing RAB 2018 | C61: 164763.808 | D61: 380144.7627 | E61: 60361.94254 | F61: 272906.7563 | G61: 163773.2269 | H61: 80444.33321 | I61: 127931.9304 | J61: 42397.4204 | K61: 178040.462 | L61: 1050140.659 | M61: 170222.2796 | N61: 1659480.014 | O61: 196490.7935 | P61: 259753.0689 | Q61: 626297.9391 | R61: 2998507.702 | S61: 614997.4572 | V61: 0 | W61: 47017.04337 | X61: 220064.4317 | Y61: -363.4491948 | Z61: 53599.82257 | AA61: 18909.469 | AB61: 12894.95128 | AC61: 8401.17427 | AD61: 2051.864395 | AE61: 4943.079054 | AF61: 202588.8888 | AG61: 73038.25612 | AI61: 27299.27661 | AJ61: 66345.55974 | AK61: 71361.61458 | AL61: 472436.5148 | AM61: 78987.38443
A62: Closing RAB 2019 | C62: 163416.5426 | D62: 390164.471 | E62: 61418.22493 | F62: 285729.5759 | G62: 166482.5079 | H62: 80716.7036 | I62: 130503.5958 | J62: 42957.25139 | K62: 180152.2393 | L62: 1058710.21 | M62: 175879.4183 | N62: 1721572.056 | O62: 198752.4485 | P62: 270707.4041 | Q62: 645840.0085 | R62: 3099907.604 | S62: 625245.0654 | V62: 0 | W62: 47225.6016 | X62: 224720.4503 | Y62: -385.6437364 | Z62: 48359.34071 | AA62: 20004.76462 | AB62: 14492.27397 | AC62: 7934.636384 | AD62: 2325.870186 | AE62: 887.0746295 | AF62: 227786.3648 | AG62: 78833.43103 | AI62: 28530.82371 | AJ62: 65259.47365 | AK62: 76556.0371 | AL62: 477942.8805 | AM62: 78346.71942
A63: Closing RAB 2020 | C63: 162399.2099 | D63: 395302.4915 | E63: 62125.31421 | F63: 292824.1191 | G63: 169322.4028 | H63: 81765.77465 | I63: 132968.139 | J63: 43783.18041 | K63: 181225.8172 | L63: 1091933.779 | M63: 180937.2319 | N63: 1787415.856 | O63: 202156.7329 | P63: 283238.4837 | Q63: 660906.3129 | R63: 3191466.262 | S63: 633911.3469 | V63: 0 | W63: 43620.09741 | X63: 234259.8649 | Y63: -113.5542876 | Z63: 48738.97921 | AA63: 21450.9224 | AB63: 15210.02434 | AC63: 7850.492466 | AD63: 2084.617726 | AE63: -2123.893585 | AF63: 238211.4405 | AG63: 84473.45468 | AI63: 28680.46731 | AJ63: 63101.52529 | AK63: 83581.87622 | AL63: 477502.067 | AM63: 80650.45328
